Body Name,Trans.date,Department Code,Department,Expense Area Code,Expense Area,Expense Type Code,Expense Type,Amount Paid (�),Supplier name,Extended description,TransNo,Period
Rother District Council,08/01/2022,T33HOUSING,Housing,20200,Housing Needs - HB (Housing Benefit),D2508,Removals and Storage,312.5,Mr Reliable Removals and Storage,Removals and Storage,2049132,202312
Rother District Council,19/03/2022,T33HREGEN,Regeneration,20150,Peasmarsh Workshops,B2201,Electricity,250.78,Opus Energy Ltd,Electricity,2049347,202312
Rother District Council,25/03/2022,T33HOUSING,Housing,20204,Housing Administration Account,D2513,Hired and Contracted services,86.83,Skyguard Ltd t/a Peoplesafe,Hired and contracted services - Service fee paid,2047226,202310
Rother District Council,31/03/2022,T33PLANDEV,Planning Development Management,20246,Planning Applications,A2203,Training,199,RTPI Royal Town Planning Institute South East,Training,2048390,202311
Rother District Council,19/04/2022,T33HREGEN,Regeneration,20150,Peasmarsh Workshops,B2201,Electricity,29.05,Opus Energy Ltd,Electricity - Electricity Charges,2049351,202312
Rother District Council,27/04/2022,T31HUMANRES,Human Resources,20173,Administrative Offices - Town Hall,B1100,Repairs to Premises,47.37,Cascade Water Systems Ltd,Repairs to Premises - Purchase of Materials - Build Maint,2047390,202310
Rother District Council,05/05/2022,T33HOUSING,Housing,20204,Housing Administration Account,D2513,Hired and Contracted services,549.36,Skyguard Ltd t/a Peoplesafe,Hired and contracted services - Service fee paid,2047227,202310
Rother District Council,19/05/2022,T33HREGEN,Regeneration,20150,Peasmarsh Workshops,B2201,Electricity,93,Opus Energy Ltd,Electricity - Electricity Charges,2049353,202312
Rother District Council,17/06/2022,T31HUMANRES,Human Resources,20173,Administrative Offices - Town Hall,B1100,Repairs to Premises,37.25,Cascade Water Systems Ltd,Repairs to Premises - Purchase of Materials - Build Maint,2047391,202310
Rother District Council,18/06/2022,T33HREGEN,Regeneration,20150,Peasmarsh Workshops,B2201,Electricity,90,Opus Energy Ltd,Electricity - Electricity Charges,2049370,202312
Rother District Council,19/07/2022,T33HREGEN,Regeneration,20150,Peasmarsh Workshops,B2201,Electricity,93,Opus Energy Ltd,Electricity - Electricity Charges,2049371,202312
Rother District Council,19/08/2022,T33HREGEN,Regeneration,20150,Peasmarsh Workshops,B2201,Electricity,93,Opus Energy Ltd,Electricity - Electricity Charges,2049372,202312
Rother District Council,03/09/2022,T31CHFFIN,Chief Finance Officer (S151),20209,Corporate management,D2513,Hired and Contracted services,218.4,Pay 360 Ltd,Bank Charges,2049607,202312
Rother District Council,18/09/2022,T33HREGEN,Regeneration,20150,Peasmarsh Workshops,B2201,Electricity,90,Opus Energy Ltd,Electricity - Electricity Charges,2049373,202312
Rother District Council,30/09/2022,T32DIGCUSSER,Digital & Customer Services,20241,Stationery,D2420,General office supplies (Stationery purchased from ext suppliers),88,Zerographic Systems Ltd T/A Muro Digital,General office supplies - Stationery (Stationery Services to buy ONLY),2049323,202312
Rother District Council,30/09/2022,T32DIGCUSSER,Digital & Customer Services,20240,Printing Services,D1201,Equipment & Materials,8.99,Zerographic Systems Ltd T/A Muro Digital,Equipment & Materials - Carriage/Handling Charge,2049323,202312
Rother District Council,06/10/2022,T31CHFFIN,Chief Finance Officer (S151),20209,Corporate management,D2513,Hired and Contracted services,208.32,Pay 360 Ltd,Bank Charges,2049608,202312
Rother District Council,19/10/2022,T33HREGEN,Regeneration,20150,Peasmarsh Workshops,B2201,Electricity,111,Opus Energy Ltd,Electricity - Electricity Charges,2049374,202312
Rother District Council,18/11/2022,T33HREGEN,Regeneration,20150,Peasmarsh Workshops,B2201,Electricity,231,Opus Energy Ltd,Electricity - Electricity Charges,2049375,202312
Rother District Council,19/12/2022,T33HREGEN,Regeneration,20150,Peasmarsh Workshops,B2201,Electricity,124.08,Opus Energy Ltd,Electricity - Electricity Charges,2049376,202312
Rother District Council,19/01/2023,T33HREGEN,Regeneration,20150,Peasmarsh Workshops,B2201,Electricity,105.95,Opus Energy Ltd,Electricity - Electricity Charges,2049377,202312
Rother District Council,16/02/2023,T33HREGEN,Regeneration,20150,Peasmarsh Workshops,B2201,Electricity,84.33,Opus Energy Ltd,Electricity - Electricity Charges,2049378,202312
Rother District Council,28/02/2023,T3ZCAPITAL,Capital,70705,Capital - Fairlight Coastal Protection Scheme (Preservational Trust),N1007,Plant & Machinery,5593.17,TPGEO,Capital - Plant and Property,2049065,202311
Rother District Council,28/02/2023,T33HOUSING,Housing,20200,Housing Needs - HB (Housing Benefit),D2508,Removals and Storage,250,Mr Reliable Removals and Storage,Removals and Storage,2049131,202312
Rother District Council,28/02/2023,T33HOUSING,Housing,20200,Housing Needs - HB (Housing Benefit),D2508,Removals and Storage,375,Mr Reliable Removals and Storage,Removals and Storage,2049133,202312
Rother District Council,09/03/2023,T32DIGCUSSER,Digital & Customer Services,20239,Computer Services,D2635,Computer Licences,32.38,Lloyds Bank,Computer Licences - Domain Name Renewal,2046340,202310
Rother District Council,09/03/2023,T32DIGCUSSER,Digital & Customer Services,20239,Computer Services,D2635,Computer Licences,129.52,Lloyds Bank,Computer Licences - Domain Name Renewal,2046340,202310
Rother District Council,19/03/2023,T33HREGEN,Regeneration,20150,Peasmarsh Workshops,B2201,Electricity,92.77,Opus Energy Ltd,Electricity - Electricity Charges,2049379,202312
Rother District Council,11/04/2023,T33NBHDSERV,Neighbourhood Services,20116,Rural Open Spaces & Amenities,B1100,Repairs to Premises,47.91,Lloyds Bank,Repairs to Premises - Specified Repairs and Works listed,2047858,202310
Rother District Council,11/04/2023,T33NBHDSERV,Neighbourhood Services,20137,Car Parks,B1100,Repairs to Premises,555.14,Lloyds Bank,Repairs to Premises - Purchase of Materials - Build Maint,2047858,202310
Rother District Council,11/04/2023,T33HOUSING,Housing,20206,UK Resettlement (Syrians),D2513,Hired and Contracted services,58.5,Lloyds Bank,Hired and contracted services - Syrian-Bus Pass,2047860,202310
Rother District Council,11/04/2023,T33HOUSING,Housing,20206,UK Resettlement (Syrians),D2513,Hired and Contracted services,424,Lloyds Bank,Hired and contracted services - Syrian Misc,2047860,202310
Rother District Council,11/04/2023,T33HOUSING,Housing,20204,Housing Administration Account,D2513,Hired and Contracted services,7.47,Lloyds Bank,Hired and contracted services - Service fee paid,2047856,202310
Rother District Council,11/04/2023,T31HUMANRES,Human Resources,20171,Human Resources,D2513,Hired and Contracted services,146.46,Lloyds Bank,Hired and Contracted Services - Health and Safety Act Equipment risk assessment,2047858,202310
Rother District Council,11/04/2023,T33HOUSING,Housing,20261,"TA Purchases (prev - 41 Jameson Mews, Bexhill on Sea)",D1206,Furniture & Fittings,66.65,Lloyds Bank,Furniture & Fittings - for TA purchases,2047856,202310
Rother District Council,11/04/2023,T33HOUSING,Housing,20261,"TA Purchases (prev - 41 Jameson Mews, Bexhill on Sea)",D1206,Furniture & Fittings,10,Lloyds Bank,Furniture & Fittings - for TA purchases,2047856,202310
Rother District Council,11/04/2023,T33HOUSING,Housing,20261,"TA Purchases (prev - 41 Jameson Mews, Bexhill on Sea)",D1206,Furniture & Fittings,78.74,Lloyds Bank,Furniture & Fittings - for TA purchases,2047856,202310
Rother District Council,11/04/2023,T33HOUSING,Housing,20261,"TA Purchases (prev - 41 Jameson Mews, Bexhill on Sea)",D1206,Furniture & Fittings,13.33,Lloyds Bank,Furniture & Fittings - for TA purchases,2047856,202310
Rother District Council,11/04/2023,T33HREGEN,Regeneration,20145,Maintenance Services,D1201,Equipment & Materials,62.49,Lloyds Bank,Equipment & Materials - Purchase of Tools,2047858,202310
Rother District Council,11/04/2023,T33HREGEN,Regeneration,20308,Amherst Road as Investment Property,D1201,Equipment & Materials,273.29,Lloyds Bank,Equipment & materials - Miscellaneous,2047862,202310
Rother District Council,11/04/2023,T32DIGCUSSER,Digital & Customer Services,20236,Customer Services and Development,D2635,Computer Licences,161.99,Lloyds Bank,Computer Licences - New Computer Software,2047861,202310
Rother District Council,11/04/2023,T32DIGCUSSER,Digital & Customer Services,20239,Computer Services,D2635,Computer Licences,984.04,Lloyds Bank,Computer Licences - Computer Licence Renewal,2047859,202310
Rother District Council,11/04/2023,T33HOUSING,Housing,20204,Housing Administration Account,D2513,Hired and Contracted services,5.6,Lloyds Bank,Car Parking - On Street Car Parking,2047849,202310
Rother District Council,11/04/2023,T33HOUSING,Housing,20261,"TA Purchases (prev - 41 Jameson Mews, Bexhill on Sea)",D1206,Furniture & Fittings,-426,Lloyds Bank,Furniture & Fittings,2047856,202310
Rother District Council,11/04/2023,T33HOUSING,Housing,20261,"TA Purchases (prev - 41 Jameson Mews, Bexhill on Sea)",D1206,Furniture & Fittings,-94.5,Lloyds Bank,Furniture & Fittings,2047856,202310
Rother District Council,11/04/2023,T33HOUSING,Housing,20261,"TA Purchases (prev - 41 Jameson Mews, Bexhill on Sea)",D1206,Furniture & Fittings,7,Lloyds Bank,Furniture & Fittings,2047856,202310
Rother District Council,11/04/2023,T33HOUSING,Housing,20261,"TA Purchases (prev - 41 Jameson Mews, Bexhill on Sea)",D1206,Furniture & Fittings,142.56,Lloyds Bank,Furniture & Fittings,2047856,202310
Rother District Council,11/04/2023,T33HOUSING,Housing,20261,"TA Purchases (prev - 41 Jameson Mews, Bexhill on Sea)",D1206,Furniture & Fittings,346.15,Lloyds Bank,Furniture & Fittings,2047856,202310
Rother District Council,11/04/2023,T33HOUSING,Housing,20261,"TA Purchases (prev - 41 Jameson Mews, Bexhill on Sea)",D1206,Furniture & Fittings,8.56,Lloyds Bank,Furniture & Fittings,2047856,202310
Rother District Council,18/04/2023,T33HREGEN,Regeneration,20150,Peasmarsh Workshops,B2201,Electricity,90.03,Opus Energy Ltd,Electricity - Electricity Charges,2049380,202312
Rother District Council,28/04/2023,T31CHFFIN,Chief Finance Officer (S151),20209,Corporate management,D2513,Hired and Contracted services,2895,The Information Commissioner,Hired and contracted services - Data Protection Act,2048273,202311
Rother District Council,09/05/2023,T33HREGEN,Regeneration,20122,Economic Development,A2203,Training,312,Lloyds Bank,Training,2047896,202310
Rother District Council,09/05/2023,T31DEMSERV,Democratic Services,20156,Representing Local Interest,D2312,Refreshments,170,Lloyds Bank,Refreshments - Catering/Refreshments for Meetings,2047891,202310
Rother District Council,09/05/2023,T33HOUSING,Housing,20206,UK Resettlement (Syrians),D2513,Hired and Contracted services,58.5,Lloyds Bank,Hired and contracted services - Syrian-Bus Pass,2047886,202310
Rother District Council,09/05/2023,T33HOUSING,Housing,20206,UK Resettlement (Syrians),D2513,Hired and Contracted services,8.1,Lloyds Bank,Hired and contracted services - Syrian Misc,2047886,202310
Rother District Council,09/05/2023,T33NBHDSERV,Neighbourhood Services,20137,Car Parks,D2513,Hired and Contracted services,1.9,Lloyds Bank,Hired and contracted services - Car Parks-RingGo service charges,2047871,202310
Rother District Council,09/05/2023,T32DIGCUSSER,Digital & Customer Services,20239,Computer Services,D2420,General office supplies (Stationery purchased from ext suppliers),934.63,Lloyds Bank,General office supplies - Stationery,2047878,202310
Rother District Council,09/05/2023,T32DIGCUSSER,Digital & Customer Services,20239,Computer Services,D2420,General office supplies (Stationery purchased from ext suppliers),360.28,Lloyds Bank,General office supplies - Stationery,2047878,202310
Rother District Council,09/05/2023,T33HOUSING,Housing,20261,"TA Purchases (prev - 41 Jameson Mews, Bexhill on Sea)",D1206,Furniture & Fittings,22,Lloyds Bank,Furniture & Fittings - for TA purchases,2047884,202310
Rother District Council,09/05/2023,T33HOUSING,Housing,20261,"TA Purchases (prev - 41 Jameson Mews, Bexhill on Sea)",D1206,Furniture & Fittings,52,Lloyds Bank,Furniture & Fittings - for TA purchases,2047884,202310
Rother District Council,09/05/2023,T32DIGCUSSER,Digital & Customer Services,20239,Computer Services,D2635,Computer Licences,9.99,Lloyds Bank,Computer Licences - Domain Name Renewal,2047891,202310
Rother District Council,09/05/2023,T32DIGCUSSER,Digital & Customer Services,20239,Computer Services,D2635,Computer Licences,161.88,Lloyds Bank,Computer Licences - Domain Name Renewal,2047891,202310
Rother District Council,09/05/2023,T32DIGCUSSER,Digital & Customer Services,20239,Computer Services,D2635,Computer Licences,56.95,Lloyds Bank,Computer Licences - Domain Name Renewal,2047891,202310
Rother District Council,09/05/2023,T32DIGCUSSER,Digital & Customer Services,20239,Computer Services,D2635,Computer Licences,46.84,Lloyds Bank,Computer Licences - Computer Licence Renewal,2047878,202310
Rother District Council,09/05/2023,T32DIGCUSSER,Digital & Customer Services,20239,Computer Services,D2633,Computer Equipment,1557.26,Lloyds Bank,Computer Equipment - Computer peripherals,2047878,202310
Rother District Council,09/05/2023,T33HOUSING,Housing,20337,Homes for Ukraine Accommodation,D2514,Accommodation Costs,7.9,Lloyds Bank,Accommodation Costs,2047868,202310
Rother District Council,09/05/2023,T33HOUSING,Housing,20204,Housing Administration Account,D2513,Hired and Contracted services,440.65,Lloyds Bank,Hired and Contracted services,2047869,202310
Rother District Council,09/05/2023,T33HOUSING,Housing,20204,Housing Administration Account,D2513,Hired and Contracted services,26,Lloyds Bank,Hired and Contracted services,2047873,202310
Rother District Council,16/05/2023,T33HOUSING,Housing,20261,"TA Purchases (prev - 41 Jameson Mews, Bexhill on Sea)",D1206,Furniture & Fittings,225,HFS - Hastings Furniture Service Ltd,Furniture & Fittings - for TA purchases,2049768,202312
Rother District Council,16/05/2023,T33HOUSING,Housing,20261,"TA Purchases (prev - 41 Jameson Mews, Bexhill on Sea)",D1206,Furniture & Fittings,370.37,HFS - Hastings Furniture Service Ltd,Furniture & Fittings - for TA purchases,2049768,202312
Rother District Council,19/05/2023,T33HREGEN,Regeneration,20150,Peasmarsh Workshops,B2201,Electricity,93,Opus Energy Ltd,Electricity,2049381,202312
Rother District Council,31/05/2023,T31CHFFIN,Chief Finance Officer (S151),20209,Corporate management,D2513,Hired and Contracted services,15.23,allpay.net Ltd,Hired and contracted services - Allpay Card/Rep/Let Chrg - Vatable,2048205,202311
Rother District Council,31/05/2023,T31CHFFIN,Chief Finance Officer (S151),20209,Corporate management,D2513,Hired and Contracted services,19.36,allpay.net Ltd,Hired and contracted services - Allpay Card/Rep/Let Chrg - Vatable,2048204,202311
Rother District Council,31/05/2023,T31CHFFIN,Chief Finance Officer (S151),20209,Corporate management,D2513,Hired and Contracted services,11.63,allpay.net Ltd,Hired and contracted services - Allpay Card/Rep/Let Chrg - Vatable,2048203,202311
Rother District Council,31/05/2023,T31CHFFIN,Chief Finance Officer (S151),20209,Corporate management,D2513,Hired and Contracted services,782.73,allpay.net Ltd,Hired and contracted services - Allpay Card/Rep/Let Chrg - Vatable,2048202,202311
Rother District Council,02/06/2023,T32DIGCUSSER,Digital & Customer Services,20242,Communications-Phones,D2621,Telephones,29.36,TalkTalk Communications Ltd T/A TalkTalk Business,Telephones - Leased Line Rental,2046905,202310
Rother District Council,09/06/2023,T33HOUSING,Housing,20202,Rother Tenant Finder (prev Rother Letting Service),A2203,Training,82,Lloyds Bank,Training,2048728,202311
Rother District Council,09/06/2023,T33HREGEN,Regeneration,20308,Amherst Road as Investment Property,B1100,Repairs to Premises,266.94,Lloyds Bank,Repairs to Premises - Specified Repairs and Works listed,2048730,202311
Rother District Council,09/06/2023,T33HREGEN,Regeneration,20308,Amherst Road as Investment Property,B1100,Repairs to Premises,167.78,Lloyds Bank,Repairs to Premises - Specified Repairs and Works listed,2048730,202311
Rother District Council,09/06/2023,T32DIGCUSSER,Digital & Customer Services,20239,Computer Services,C2335,Public transport,159.77,Lloyds Bank,Public Transport - Train tickets,2048721,202311
Rother District Council,09/06/2023,T32DIGCUSSER,Digital & Customer Services,20236,Customer Services and Development,C2335,Public transport,96.3,Lloyds Bank,Public Transport - Train tickets,2048731,202311
Rother District Council,09/06/2023,T3ZCAPITAL,Capital,70751,Capital - Temporary Accommodation,N1005,Other fees,84,Lloyds Bank,Other Fees - Capital exp Std VAT,2048734,202311
Rother District Council,09/06/2023,T33HOUSING,Housing,20206,UK Resettlement (Syrians),D2513,Hired and Contracted services,58.5,Lloyds Bank,Hired and contracted services - Syrian-Bus Pass,2048720,202312
Rother District Council,09/06/2023,T33HOUSING,Housing,20206,UK Resettlement (Syrians),D2513,Hired and Contracted services,868.2,Lloyds Bank,Hired and contracted services - Syrian Misc,2048720,202312
Rother District Council,09/06/2023,T33HOUSING,Housing,20261,"TA Purchases (prev - 41 Jameson Mews, Bexhill on Sea)",D2513,Hired and Contracted services,40,Lloyds Bank,Hired and contracted services - Service fee paid,2048723,202311
Rother District Council,09/06/2023,T33HOUSING,Housing,20304,Housing First,D2513,Hired and Contracted services,14.34,Lloyds Bank,Hired and contracted services - Service fee paid,2048723,202311
Rother District Council,09/06/2023,T32DIGCUSSER,Digital & Customer Services,20239,Computer Services,D2513,Hired and Contracted services,13.49,Lloyds Bank,Hired and contracted services - Delivery and/or Packaging of Equipm,2048721,202311
Rother District Council,09/06/2023,T33HOUSING,Housing,20304,Housing First,D1206,Furniture & Fittings,68.94,Lloyds Bank,Furniture & Fittings - for TA purchases,2048723,202311
Rother District Council,09/06/2023,T33HOUSING,Housing,20261,"TA Purchases (prev - 41 Jameson Mews, Bexhill on Sea)",D1206,Furniture & Fittings,385,Lloyds Bank,Furniture & Fittings - for TA purchases,2048728,202311
Rother District Council,09/06/2023,T33HOUSING,Housing,20304,Housing First,D1206,Furniture & Fittings,3.45,Lloyds Bank,Furniture & Fittings - for TA purchases,2048728,202311
Rother District Council,09/06/2023,T33HOUSING,Housing,20261,"TA Purchases (prev - 41 Jameson Mews, Bexhill on Sea)",D1206,Furniture & Fittings,29.16,Lloyds Bank,Furniture & Fittings - for TA purchases,2048728,202311
Rother District Council,09/06/2023,T33HOUSING,Housing,20304,Housing First,D1206,Furniture & Fittings,284.95,Lloyds Bank,Furniture & Fittings - for TA purchases,2048728,202311
Rother District Council,09/06/2023,T33HOUSING,Housing,20261,"TA Purchases (prev - 41 Jameson Mews, Bexhill on Sea)",D1206,Furniture & Fittings,434,Lloyds Bank,Furniture & Fittings - for TA purchases,2048728,202311
Rother District Council,09/06/2023,T33HOUSING,Housing,20261,"TA Purchases (prev - 41 Jameson Mews, Bexhill on Sea)",D1206,Furniture & Fittings,11.66,Lloyds Bank,Furniture & Fittings - for TA purchases,2048728,202311
Rother District Council,09/06/2023,T33HOUSING,Housing,20261,"TA Purchases (prev - 41 Jameson Mews, Bexhill on Sea)",D1206,Furniture & Fittings,25.02,Lloyds Bank,Furniture & Fittings - for TA purchases,2048728,202311
Rother District Council,09/06/2023,T32DIGCUSSER,Digital & Customer Services,20234,Battle Community Help Point,D1201,Equipment & Materials,12.1,Lloyds Bank,Equipment & Materials - Purchase of Keys/ Locks/ Padlocks,2048731,202311
Rother District Council,09/06/2023,T32DIGCUSSER,Digital & Customer Services,20239,Computer Services,D2635,Computer Licences,40,Lloyds Bank,Computer Licences - New Computer Software,2048721,202311
Rother District Council,09/06/2023,T32DIGCUSSER,Digital & Customer Services,20239,Computer Services,D2635,Computer Licences,28.58,Lloyds Bank,Computer Licences - Computer Licence Renewal,2048721,202311
Rother District Council,09/06/2023,T32DIGCUSSER,Digital & Customer Services,20239,Computer Services,D2633,Computer Equipment,68.35,Lloyds Bank,Computer Equipment - Computer peripherals,2048721,202311
Rother District Council,09/06/2023,T32DIGCUSSER,Digital & Customer Services,20239,Computer Services,D2633,Computer Equipment,7.46,Lloyds Bank,Computer Equipment - Computer peripherals,2048721,202311
Rother District Council,09/06/2023,T32DIGCUSSER,Digital & Customer Services,20239,Computer Services,D2631,Computer Equip Maintenance,8.33,Lloyds Bank,Computer Equip Maintenance - IT EQUIP MAINT,2048721,202311
Rother District Council,09/06/2023,T3ZCAPITAL,Capital,70706,Capital - Disabled Facilities Grant,N1012,Capital Advances,651.8,Lloyds Bank,Capital Grants - Capital Advances Disabled Facilities Grant,2048723,202311
Rother District Council,09/06/2023,T3ZCAPITAL,Capital,70706,Capital - Disabled Facilities Grant,N1012,Capital Advances,-449,Lloyds Bank,Capital Grants - Capital Advances Disabled Facilities Grant,2048723,202311
Rother District Council,09/06/2023,T33HOUSING,Housing,20204,Housing Administration Account,D2513,Hired and Contracted services,129.49,Lloyds Bank,Hired and Contracted services,2048724,202311
Rother District Council,09/06/2023,T33HOUSING,Housing,20261,"TA Purchases (prev - 41 Jameson Mews, Bexhill on Sea)",D2513,Hired and Contracted services,291.37,Lloyds Bank,Hired and Contracted services,2048728,202311
Rother District Council,09/06/2023,T33HOUSING,Housing,20204,Housing Administration Account,C2335,Public transport,4,Lloyds Bank,Public transport,2049414,202312
Rother District Council,09/06/2023,T33HOUSING,Housing,20204,Housing Administration Account,A2203,Training,64,Lloyds Bank,Training,2049414,202312
Rother District Council,09/06/2023,T33HOUSING,Housing,20204,Housing Administration Account,D2513,Hired and Contracted services,1.58,Lloyds Bank,Hired and Contracted services,2049414,202312
Rother District Council,09/06/2023,T33HOUSING,Housing,20204,Housing Administration Account,C2335,Public transport,4.48,Lloyds Bank,Public transport,2049414,202312
Rother District Council,09/06/2023,T33HOUSING,Housing,20204,Housing Administration Account,D2513,Hired and Contracted services,17.5,Lloyds Bank,Hired and Contracted services,2049414,202312
Rother District Council,09/06/2023,T33HOUSING,Housing,20204,Housing Administration Account,D2513,Hired and Contracted services,1.58,Lloyds Bank,Hired and Contracted services,2049414,202312
Rother District Council,09/06/2023,T33HOUSING,Housing,20204,Housing Administration Account,C2335,Public transport,4.08,Lloyds Bank,Public transport,2049414,202312
Rother District Council,09/06/2023,T33HOUSING,Housing,20204,Housing Administration Account,C2335,Public transport,4.08,Lloyds Bank,Public transport,2049414,202312
Rother District Council,19/06/2023,T33HREGEN,Regeneration,20150,Peasmarsh Workshops,B2201,Electricity,93.2,Opus Energy Ltd,Electricity - Electricity Charges,2049382,202312
Rother District Council,28/06/2023,T32DIGCUSSER,Digital & Customer Services,20239,Computer Services,D2635,Computer Licences,1530,GGP Systems Ltd,Computer Licences - Maintenance/Upgrading of Software,2048284,202311
Rother District Council,30/06/2023,T31CHFFIN,Chief Finance Officer (S151),20209,Corporate management,D2513,Hired and Contracted services,24.09,allpay.net Ltd,Hired and contracted services - Allpay Card/Rep/Let Chrg - Vatable,2049478,202312
Rother District Council,30/06/2023,T31CHFFIN,Chief Finance Officer (S151),20209,Corporate management,D2513,Hired and Contracted services,2.41,allpay.net Ltd,Hired and contracted services - Allpay Card/Rep/Let Chrg - Vatable,2049479,202312
Rother District Council,30/06/2023,T31CHFFIN,Chief Finance Officer (S151),20209,Corporate management,D2513,Hired and Contracted services,776.51,allpay.net Ltd,Hired and contracted services - Allpay Card/Rep/Let Chrg - Vatable,2049480,202312
Rother District Council,30/06/2023,T31CHFFIN,Chief Finance Officer (S151),20209,Corporate management,D2513,Hired and Contracted services,13.18,allpay.net Ltd,Hired and contracted services - Allpay Card/Rep/Let Chrg - Vatable,2049481,202312
Rother District Council,30/06/2023,T31CHFFIN,Chief Finance Officer (S151),20209,Corporate management,D2513,Hired and Contracted services,23.26,allpay.net Ltd,Bank Charges,2049482,202312
Rother District Council,30/06/2023,T31CHFFIN,Chief Finance Officer (S151),20209,Corporate management,D2513,Hired and Contracted services,14.57,allpay.net Ltd,Bank Charges,2049483,202312
Rother District Council,02/07/2023,T32DIGCUSSER,Digital & Customer Services,20242,Communications-Phones,D2621,Telephones,29.56,TalkTalk Communications Ltd T/A TalkTalk Business,Telephones - Leased Line Rental,2046906,202310
Rother District Council,04/07/2023,T31HUMANRES,Human Resources,20159,Corporate Policy Making,D2312,Refreshments,124.87,Booker Ltd,Refreshments - Catering/Refreshments for Meetings,2048277,202311
Rother District Council,04/07/2023,T31HUMANRES,Human Resources,20159,Corporate Policy Making,D2312,Refreshments,4.99,Booker Ltd,Refreshments - Catering/Refreshments for Meetings,2048277,202311
Rother District Council,08/07/2023,T33HOUSING,Housing,20261,"TA Purchases (prev - 41 Jameson Mews, Bexhill on Sea)",B2202,Gas,6,Utility Warehouse Ltd,Interest Paid - Late Invoice Payment Fee,2048578,202311
Rother District Council,08/07/2023,T33HOUSING,Housing,20261,"TA Purchases (prev - 41 Jameson Mews, Bexhill on Sea)",B2202,Gas,29.53,Utility Warehouse Ltd,Gas - Gas Charges,2048578,202311
Rother District Council,08/07/2023,T33HOUSING,Housing,20261,"TA Purchases (prev - 41 Jameson Mews, Bexhill on Sea)",B2201,Electricity,99.31,Utility Warehouse Ltd,Electricity - Electricity Charges,2048578,202311
Rother District Council,10/07/2023,T31DEMSERV,Democratic Services,20156,Representing Local Interest,D2737,Vice Chairmans Allowance,30,Lloyds Bank,Vice-Chairmans Allowance - Vice  Chairmans Allowance,2048987,202311
Rother District Council,10/07/2023,T33HREGEN,Regeneration,20145,Maintenance Services,C1101,Vehicle Repairs & Servicing,489.75,Lloyds Bank,Vehicle Repairs & Servicing,2048762,202311
Rother District Council,10/07/2023,T33HREGEN,Regeneration,20264,Property Maintenance Team,C1101,Vehicle Repairs & Servicing,285.36,Lloyds Bank,Vehicle Repairs & Servicing,2048762,202311
Rother District Council,10/07/2023,T33HREGEN,Regeneration,20145,Maintenance Services,C1101,Vehicle Repairs & Servicing,115.25,Lloyds Bank,Vehicle Repairs & Servicing,2048762,202311
Rother District Council,10/07/2023,T33HREGEN,Regeneration,20145,Maintenance Services,C1101,Vehicle Repairs & Servicing,334.86,Lloyds Bank,Vehicle Repairs & Servicing,2048762,202311
Rother District Council,10/07/2023,T31HUMANRES,Human Resources,20171,Human Resources,A2203,Training,60,Lloyds Bank,Training,2048762,202311
Rother District Council,10/07/2023,T33HOUSING,Housing,20204,Housing Administration Account,A2203,Training,42,Lloyds Bank,Training,2048985,202311
Rother District Council,10/07/2023,T33PLANDEV,Planning Development Management,20246,Planning Applications,A2203,Training,95,Lloyds Bank,Training,2048987,202311
Rother District Council,10/07/2023,T33HREGEN,Regeneration,20146,West Trading Estate,B1100,Repairs to Premises,281.94,Lloyds Bank,Repairs to Premises - Purchase of Materials - Build Maint,2048762,202311
Rother District Council,10/07/2023,T33HOUSING,Housing,20204,Housing Administration Account,C2335,Public transport,7.7,Lloyds Bank,Public Transport - Train tickets,2048745,202311
Rother District Council,10/07/2023,T3ZCAPITAL,Capital,70751,Capital - Temporary Accommodation,N1005,Other fees,10,Lloyds Bank,Other Fees - Capital exp Std VAT,2048741,202311
Rother District Council,10/07/2023,T3ZCAPITAL,Capital,70754,Capital - King Offa Residential Development Scheme,N1005,Other fees,160,Lloyds Bank,Other Fees - Capital exp Std VAT,2048984,202311
Rother District Council,10/07/2023,T33HOUSING,Housing,20206,UK Resettlement (Syrians),D2513,Hired and Contracted services,53.42,Lloyds Bank,Hired and contracted services - Syrian Misc,2048986,202312
Rother District Council,10/07/2023,T33HOUSING,Housing,20204,Housing Administration Account,D2513,Hired and Contracted services,19.5,Lloyds Bank,Hired and contracted services - Service fee paid,2048738,202311
Rother District Council,10/07/2023,T33HOUSING,Housing,20202,Rother Tenant Finder (prev Rother Letting Service),D2513,Hired and Contracted services,21,Lloyds Bank,Hired and contracted services - Service fee paid,2048738,202311
Rother District Council,10/07/2023,T33HOUSING,Housing,20202,Rother Tenant Finder (prev Rother Letting Service),D2513,Hired and Contracted services,21,Lloyds Bank,Hired and contracted services - Service fee paid,2048738,202311
Rother District Council,10/07/2023,T33HOUSING,Housing,20204,Housing Administration Account,D2513,Hired and Contracted services,45,Lloyds Bank,Hired and contracted services - Service fee paid,2048745,202311
Rother District Council,10/07/2023,T33HOUSING,Housing,20309,Homelessness Prevention Grant,D2513,Hired and Contracted services,237.47,Lloyds Bank,Hired and contracted services - Service fee paid,2048985,202311
Rother District Council,10/07/2023,T33HOUSING,Housing,20309,Homelessness Prevention Grant,D2513,Hired and Contracted services,69.28,Lloyds Bank,Hired and contracted services - Service fee paid,2048985,202311
Rother District Council,10/07/2023,T32DIGCUSSER,Digital & Customer Services,20236,Customer Services and Development,D2513,Hired and Contracted services,216,Lloyds Bank,Hired and Contracted Services - Health and Safety Act Equipment risk assessment,2048993,202312
Rother District Council,10/07/2023,T32DIGCUSSER,Digital & Customer Services,20239,Computer Services,D2513,Hired and Contracted services,34.18,Lloyds Bank,Hired and contracted services - Delivery and/or Packaging of Equipm,2048744,202311
Rother District Council,10/07/2023,T33NBHDSERV,Neighbourhood Services,20137,Car Parks,D2513,Hired and Contracted services,9.6,Lloyds Bank,Hired and contracted services - Car Parks-RingGo service charges,2048741,202311
Rother District Council,10/07/2023,T33HOUSING,Housing,20261,"TA Purchases (prev - 41 Jameson Mews, Bexhill on Sea)",D1206,Furniture & Fittings,141.1,Lloyds Bank,Furniture & Fittings - for TA purchases,2048738,202311
Rother District Council,10/07/2023,T33HOUSING,Housing,20261,"TA Purchases (prev - 41 Jameson Mews, Bexhill on Sea)",D1206,Furniture & Fittings,1.4,Lloyds Bank,Furniture & Fittings - for TA purchases,2048738,202311
Rother District Council,10/07/2023,T33NBHDSERV,Neighbourhood Services,20128,Public Conveniences,D1201,Equipment & Materials,210.4,Lloyds Bank,Equipment & Materials - PCs Equipment,2048762,202311
Rother District Council,10/07/2023,T32DIGCUSSER,Digital & Customer Services,20236,Customer Services and Development,D1201,Equipment & Materials,34.99,Lloyds Bank,Equipment & Materials - Electrical Equipment,2048993,202312
Rother District Council,10/07/2023,T32DIGCUSSER,Digital & Customer Services,20236,Customer Services and Development,D1201,Equipment & Materials,13.32,Lloyds Bank,Equipment & Materials - Electrical Equipment,2048993,202312
Rother District Council,10/07/2023,T32DIGCUSSER,Digital & Customer Services,20239,Computer Services,D2635,Computer Licences,9.99,Lloyds Bank,Computer Licences - Domain Name Renewal,2048987,202311
Rother District Council,10/07/2023,T32DIGCUSSER,Digital & Customer Services,20239,Computer Services,D2635,Computer Licences,79.92,Lloyds Bank,Computer Licences - Domain Name Renewal,2048987,202311
Rother District Council,10/07/2023,T32DIGCUSSER,Digital & Customer Services,20239,Computer Services,D2635,Computer Licences,38.05,Lloyds Bank,Computer Licences - Computer Licence Renewal,2048744,202311
Rother District Council,10/07/2023,T32DIGCUSSER,Digital & Customer Services,20239,Computer Services,D2513,Hired and Contracted services,12.25,Lloyds Bank,Hired and Contracted services,2048744,202311
Rother District Council,10/07/2023,T33HOUSING,Housing,20202,Rother Tenant Finder (prev Rother Letting Service),D2513,Hired and Contracted services,58.84,Lloyds Bank,Hired and Contracted services,2048738,202311
Rother District Council,10/07/2023,T33HOUSING,Housing,20204,Housing Administration Account,D2513,Hired and Contracted services,7.05,Lloyds Bank,Hired and Contracted services,2048740,202311
Rother District Council,12/07/2023,T33HOUSING,Housing,20204,Housing Administration Account,D2513,Hired and Contracted services,3650,London Borough of Southwark,Hired and contracted services - Service fee paid,2048579,202312
Rother District Council,14/07/2023,T31HUMANRES,Human Resources,20177,Administrative Offices - Rear Depot,B2201,Electricity,45.84,Opus Energy Ltd,Electricity - Electricity Charges,2048348,202311
Rother District Council,14/07/2023,T31HUMANRES,Human Resources,20175,Admin Building - Amherst Rd (fmr Treasurer�s building),B2201,Electricity,2720.6,Opus Energy Ltd,Electricity - Electricity Charges,2048348,202311
Rother District Council,14/07/2023,T33NBHDSERV,Neighbourhood Services,20128,Public Conveniences,B2201,Electricity,29.98,Opus Energy Ltd,Electricity - Electricity Charges,2048348,202311
Rother District Council,14/07/2023,T33NBHDSERV,Neighbourhood Services,20128,Public Conveniences,B2201,Electricity,27.34,Opus Energy Ltd,Electricity - Electricity Charges,2048348,202311
Rother District Council,14/07/2023,T33NBHDSERV,Neighbourhood Services,20128,Public Conveniences,B2201,Electricity,80.65,Opus Energy Ltd,Electricity - Electricity Charges,2048348,202311
Rother District Council,14/07/2023,T33NBHDSERV,Neighbourhood Services,20114,Bexhill Parks & Open Spaces,B2201,Electricity,88.34,Opus Energy Ltd,Electricity - Electricity Charges,2048348,202311
Rother District Council,14/07/2023,T33NBHDSERV,Neighbourhood Services,20128,Public Conveniences,B2201,Electricity,22.09,Opus Energy Ltd,Electricity - Electricity Charges,2048348,202311
Rother District Council,14/07/2023,T33NBHDSERV,Neighbourhood Services,20114,Bexhill Parks & Open Spaces,B2201,Electricity,53.54,Opus Energy Ltd,Electricity - Electricity Charges,2048348,202311
Rother District Council,14/07/2023,T33NBHDSERV,Neighbourhood Services,20128,Public Conveniences,B2201,Electricity,13.39,Opus Energy Ltd,Electricity - Electricity Charges,2048348,202311
Rother District Council,14/07/2023,T33NBHDSERV,Neighbourhood Services,20128,Public Conveniences,B2201,Electricity,32.4,Opus Energy Ltd,Electricity - Electricity Charges,2048348,202311
Rother District Council,14/07/2023,T33NBHDSERV,Neighbourhood Services,20128,Public Conveniences,B2201,Electricity,20.68,Opus Energy Ltd,Electricity - Electricity Charges,2048348,202311
Rother District Council,14/07/2023,T33HREGEN,Regeneration,20151,Udimore Workshops,B2201,Electricity,16.54,Opus Energy Ltd,Electricity - Electricity Charges,2048348,202311
Rother District Council,14/07/2023,T33HOUSING,Housing,20261,"TA Purchases (prev - 41 Jameson Mews, Bexhill on Sea)",B2201,Electricity,106.58,Opus Energy Ltd,Electricity - Electricity Charges,2048348,202311
Rother District Council,14/07/2023,T33NBHDSERV,Neighbourhood Services,20114,Bexhill Parks & Open Spaces,B2201,Electricity,37.24,Opus Energy Ltd,Electricity - Electricity Charges,2048348,202311
Rother District Council,14/07/2023,T33NBHDSERV,Neighbourhood Services,20107,Camber Beach & Foreshore,B2201,Electricity,32.39,Opus Energy Ltd,Electricity - Electricity Charges,2048348,202311
Rother District Council,14/07/2023,T33NBHDSERV,Neighbourhood Services,20128,Public Conveniences,B2201,Electricity,47.92,Opus Energy Ltd,Electricity - Electricity Charges,2048348,202311
Rother District Council,14/07/2023,T33NBHDSERV,Neighbourhood Services,20128,Public Conveniences,B2201,Electricity,129.26,Opus Energy Ltd,Electricity - Electricity Charges,2048348,202311
Rother District Council,14/07/2023,T33NBHDSERV,Neighbourhood Services,20128,Public Conveniences,B2201,Electricity,65.49,Opus Energy Ltd,Electricity - Electricity Charges,2048348,202311
Rother District Council,14/07/2023,T33NBHDSERV,Neighbourhood Services,20123,Cemeteries,B2201,Electricity,61.35,Opus Energy Ltd,Electricity - Electricity Charges,2048348,202311
Rother District Council,14/07/2023,T33NBHDSERV,Neighbourhood Services,20128,Public Conveniences,B2201,Electricity,19.64,Opus Energy Ltd,Electricity - Electricity Charges,2048348,202311
Rother District Council,14/07/2023,T33HREGEN,Regeneration,20150,Peasmarsh Workshops,B2201,Electricity,20.43,Opus Energy Ltd,Electricity - Electricity Charges,2048348,202311
Rother District Council,14/07/2023,T33HREGEN,Regeneration,20104,Ancient Monuments & Gazebo,B2201,Electricity,16.19,Opus Energy Ltd,Electricity - Electricity Charges,2048348,202311
Rother District Council,14/07/2023,T33NBHDSERV,Neighbourhood Services,20128,Public Conveniences,B2201,Electricity,22.41,Opus Energy Ltd,Electricity - Electricity Charges,2048348,202311
Rother District Council,14/07/2023,T33HOUSING,Housing,20261,"TA Purchases (prev - 41 Jameson Mews, Bexhill on Sea)",B2201,Electricity,101.74,Opus Energy Ltd,Electricity - Electricity Charges,2048348,202311
Rother District Council,14/07/2023,T33NBHDSERV,Neighbourhood Services,20128,Public Conveniences,B2201,Electricity,38.6,Opus Energy Ltd,Electricity - Electricity Charges,2048348,202311
Rother District Council,14/07/2023,T33NBHDSERV,Neighbourhood Services,20128,Public Conveniences,B2201,Electricity,26.21,Opus Energy Ltd,Electricity - Electricity Charges,2048348,202311
Rother District Council,14/07/2023,T33HREGEN,Regeneration,20148,Misc Land & Buildings,B2201,Electricity,18.28,Opus Energy Ltd,Electricity - Electricity Charges,2048348,202311
Rother District Council,14/07/2023,T33NBHDSERV,Neighbourhood Services,20115,Rye Area Parks & Gardens,B2201,Electricity,18.27,Opus Energy Ltd,Electricity - Electricity Charges,2048348,202311
Rother District Council,14/07/2023,T33NBHDSERV,Neighbourhood Services,20128,Public Conveniences,B2201,Electricity,34.8,Opus Energy Ltd,Electricity - Electricity Charges,2048348,202311
Rother District Council,14/07/2023,T33NBHDSERV,Neighbourhood Services,20114,Bexhill Parks & Open Spaces,B2201,Electricity,17.93,Opus Energy Ltd,Electricity - Electricity Charges,2048348,202311
Rother District Council,14/07/2023,T33NBHDSERV,Neighbourhood Services,20128,Public Conveniences,B2201,Electricity,4.48,Opus Energy Ltd,Electricity - Electricity Charges,2048348,202311
Rother District Council,14/07/2023,T33NBHDSERV,Neighbourhood Services,20137,Car Parks,B2201,Electricity,45.5,Opus Energy Ltd,Electricity - Electricity Charges,2048348,202311
Rother District Council,14/07/2023,T33NBHDSERV,Neighbourhood Services,20114,Bexhill Parks & Open Spaces,B2201,Electricity,30.35,Opus Energy Ltd,Electricity - Electricity Charges,2048348,202311
Rother District Council,14/07/2023,T33NBHDSERV,Neighbourhood Services,20114,Bexhill Parks & Open Spaces,B2201,Electricity,22.07,Opus Energy Ltd,Electricity - Electricity Charges,2048348,202311
Rother District Council,14/07/2023,T33NBHDSERV,Neighbourhood Services,20128,Public Conveniences,B2201,Electricity,45.45,Opus Energy Ltd,Electricity - Electricity Charges,2048348,202311
Rother District Council,14/07/2023,T33NBHDSERV,Neighbourhood Services,20128,Public Conveniences,B2201,Electricity,23.77,Opus Energy Ltd,Electricity - Electricity Charges,2048348,202311
Rother District Council,14/07/2023,T33NBHDSERV,Neighbourhood Services,20115,Rye Area Parks & Gardens,B2201,Electricity,19.64,Opus Energy Ltd,Electricity - Electricity Charges,2048348,202311
Rother District Council,14/07/2023,T33NBHDSERV,Neighbourhood Services,20128,Public Conveniences,B2201,Electricity,337.92,Opus Energy Ltd,Electricity - Electricity Charges,2048348,202311
Rother District Council,14/07/2023,T33NBHDSERV,Neighbourhood Services,20114,Bexhill Parks & Open Spaces,B2201,Electricity,788.49,Opus Energy Ltd,Electricity - Electricity Charges,2048348,202311
Rother District Council,14/07/2023,T33NBHDSERV,Neighbourhood Services,20137,Car Parks,B2201,Electricity,28.26,Opus Energy Ltd,Electricity - Electricity Charges,2048348,202311
Rother District Council,14/07/2023,T33NBHDSERV,Neighbourhood Services,20108,Bexhill Promenade & Foreshore,B2201,Electricity,25.71,Opus Energy Ltd,Electricity - Electricity Charges,2048348,202311
Rother District Council,14/07/2023,T33NBHDSERV,Neighbourhood Services,20108,Bexhill Promenade & Foreshore,B2201,Electricity,19.56,Opus Energy Ltd,Electricity - Electricity Charges,2048348,202311
Rother District Council,14/07/2023,T33NBHDSERV,Neighbourhood Services,20108,Bexhill Promenade & Foreshore,B2201,Electricity,21.19,Opus Energy Ltd,Electricity - Electricity Charges,2048348,202311
Rother District Council,14/07/2023,T33NBHDSERV,Neighbourhood Services,20108,Bexhill Promenade & Foreshore,B2201,Electricity,20.68,Opus Energy Ltd,Electricity - Electricity Charges,2048348,202311
Rother District Council,14/07/2023,T33NBHDSERV,Neighbourhood Services,20108,Bexhill Promenade & Foreshore,B2201,Electricity,60.17,Opus Energy Ltd,Electricity - Electricity Charges,2048348,202311
Rother District Council,14/07/2023,T33HREGEN,Regeneration,20154,Committee Property Account,B2201,Electricity,15.07,Opus Energy Ltd,Electricity - Electricity Charges,2048348,202311
Rother District Council,14/07/2023,T33HREGEN,Regeneration,20154,Committee Property Account,B2201,Electricity,15.07,Opus Energy Ltd,Electricity - Electricity Charges,2048348,202311
Rother District Council,14/07/2023,T33HREGEN,Regeneration,20154,Committee Property Account,B2201,Electricity,15.07,Opus Energy Ltd,Electricity - Electricity Charges,2048348,202311
Rother District Council,14/07/2023,T33HREGEN,Regeneration,20154,Committee Property Account,B2201,Electricity,15.07,Opus Energy Ltd,Electricity - Electricity Charges,2048348,202311
Rother District Council,14/07/2023,T33NBHDSERV,Neighbourhood Services,20108,Bexhill Promenade & Foreshore,B2201,Electricity,37.78,Opus Energy Ltd,Electricity - Electricity Charges,2048348,202311
Rother District Council,14/07/2023,T33NBHDSERV,Neighbourhood Services,20128,Public Conveniences,B2201,Electricity,25.85,Opus Energy Ltd,Electricity - Electricity Charges,2048348,202311
Rother District Council,19/07/2023,T33HREGEN,Regeneration,20150,Peasmarsh Workshops,B2201,Electricity,90.05,Opus Energy Ltd,Electricity - Electricity Charges,2049383,202312
Rother District Council,02/08/2023,T32DIGCUSSER,Digital & Customer Services,20242,Communications-Phones,D2621,Telephones,29.86,TalkTalk Communications Ltd T/A TalkTalk Business,Telephones - Leased Line Rental,2046907,202310
Rother District Council,03/08/2023,T31HUMANRES,Human Resources,20176,Administrative Offices - Print Room,D1201,Equipment & Materials,2512,Black Sheep Engineering Ltd,Equipment & Materials - Fire Equipment Maintenance,2045730,202310
Rother District Council,03/08/2023,T31HUMANRES,Human Resources,20173,Administrative Offices - Town Hall,D1201,Equipment & Materials,1194,Black Sheep Engineering Ltd,Equipment & Materials - Fire Equipment Maintenance,2045730,202310
Rother District Council,03/08/2023,T31HUMANRES,Human Resources,20175,Admin Building - Amherst Rd (fmr Treasurer�s building),D1201,Equipment & Materials,594,Black Sheep Engineering Ltd,Equipment & Materials - Fire Equipment Maintenance,2045730,202310
Rother District Council,07/08/2023,T33HOUSING,Housing,20200,Housing Needs - HB (Housing Benefit),D2514,Accommodation Costs,413,BNM Parkstone LLP T/A Fourways Residential,Accommodation Costs,2047851,202310
Rother District Council,09/08/2023,T33HREGEN,Regeneration,20145,Maintenance Services,C1101,Vehicle Repairs & Servicing,86.22,Lloyds Bank,Vehicle Repairs & Servicing,2049736,202312
Rother District Council,09/08/2023,T33HOUSING,Housing,20204,Housing Administration Account,A2203,Training,85,Lloyds Bank,Training,2049733,202312
Rother District Council,09/08/2023,T33HOUSING,Housing,20204,Housing Administration Account,A2203,Training,40,Lloyds Bank,Training,2049735,202312
Rother District Council,09/08/2023,T33HOUSING,Housing,20204,Housing Administration Account,C2335,Public transport,7.1,Lloyds Bank,Public Transport - Train tickets,2049735,202312
Rother District Council,09/08/2023,T33HOUSING,Housing,20204,Housing Administration Account,C2335,Public transport,8,Lloyds Bank,Public Transport - Train tickets,2049739,202312
Rother District Council,09/08/2023,T32ENVSERV,"Environmental Services, Licensing & Community Safety",32134,EH Pollution R + W Partnership,D2626,Postages,4.99,Lloyds Bank,Postages - Carriage of Supplies,2049741,202312
Rother District Council,09/08/2023,T31CHFEXEC,Chief Executive,20183,Chief Executive,D2513,Hired and Contracted services,196.67,Lloyds Bank,Hired and contracted services - Staff Recruitment Fee,2049736,202312
Rother District Council,09/08/2023,T31CHFEXEC,Chief Executive,20183,Chief Executive,D2513,Hired and Contracted services,118.8,Lloyds Bank,Hired and contracted services - Staff Recruitment Fee,2049736,202312
Rother District Council,09/08/2023,T32ENVSERV,"Environmental Services, Licensing & Community Safety",32134,EH Pollution R + W Partnership,D2513,Hired and Contracted services,7.9,Lloyds Bank,Hired and contracted services - Service fee paid,2049741,202312
Rother District Council,09/08/2023,T33HOUSING,Housing,20204,Housing Administration Account,D2513,Hired and Contracted services,4.5,Lloyds Bank,Hired and contracted services - Service fee paid,2049733,202312
Rother District Council,09/08/2023,T33HOUSING,Housing,20204,Housing Administration Account,D2513,Hired and Contracted services,-4.5,Lloyds Bank,Hired and contracted services - Service fee paid,2049733,202312
Rother District Council,09/08/2023,T33HOUSING,Housing,20261,"TA Purchases (prev - 41 Jameson Mews, Bexhill on Sea)",D2513,Hired and Contracted services,37.96,Lloyds Bank,Hired and contracted services - Service fee paid,2049735,202312
Rother District Council,09/08/2023,T33HOUSING,Housing,20202,Rother Tenant Finder (prev Rother Letting Service),D2513,Hired and Contracted services,52.5,Lloyds Bank,Hired and contracted services - Service fee paid,2049739,202312
Rother District Council,09/08/2023,T31HUMANRES,Human Resources,20171,Human Resources,D2513,Hired and Contracted services,169.97,Lloyds Bank,Hired and Contracted Services - Health and Safety Act Equipment risk assessment,2049736,202312
Rother District Council,09/08/2023,T32DIGCUSSER,Digital & Customer Services,20236,Customer Services and Development,D2513,Hired and Contracted services,4.95,Lloyds Bank,Hired and contracted services - Delivery and/or Packaging of Equipm,2049740,202312
Rother District Council,09/08/2023,T32DIGCUSSER,Digital & Customer Services,20239,Computer Services,D2420,General office supplies (Stationery purchased from ext suppliers),37.95,Lloyds Bank,General office supplies - Stationery,2049734,202312
Rother District Council,09/08/2023,T33HOUSING,Housing,20261,"TA Purchases (prev - 41 Jameson Mews, Bexhill on Sea)",D1206,Furniture & Fittings,1.23,Lloyds Bank,Furniture & Fittings - for TA purchases,2049733,202312
Rother District Council,09/08/2023,T33HOUSING,Housing,20261,"TA Purchases (prev - 41 Jameson Mews, Bexhill on Sea)",D1206,Furniture & Fittings,55.62,Lloyds Bank,Furniture & Fittings - for TA purchases,2049733,202312
Rother District Council,09/08/2023,T33HOUSING,Housing,20304,Housing First,D1206,Furniture & Fittings,56.64,Lloyds Bank,Furniture & Fittings - for TA purchases,2049733,202312
Rother District Council,09/08/2023,T33HOUSING,Housing,20204,Housing Administration Account,D1201,Equipment & Materials,3.84,Lloyds Bank,Equipment & materials - Miscellaneous,2049739,202312
Rother District Council,09/08/2023,T33HOUSING,Housing,20204,Housing Administration Account,D2738,Conferences,300,Lloyds Bank,Conferences - Officers Conference fees,2049735,202312
Rother District Council,09/08/2023,T32DIGCUSSER,Digital & Customer Services,20236,Customer Services and Development,D2636,Computer Software,51.79,Lloyds Bank,Computer Software - charged to departments,2049740,202312
Rother District Council,09/08/2023,T32DIGCUSSER,Digital & Customer Services,20239,Computer Services,D2635,Computer Licences,16.33,Lloyds Bank,Computer Licences - Computer Licence Renewal,2049734,202312
Rother District Council,09/08/2023,T32DIGCUSSER,Digital & Customer Services,20236,Customer Services and Development,D2352,Clothing and Uniforms,140,Lloyds Bank,Clothing and Uniforms - Womens Uniform-Blouse,2049740,202312
Rother District Council,09/08/2023,T31CHFFIN,Chief Finance Officer (S151),20209,Corporate management,D2511,Bank Charges,1.42,Lloyds Bank,Bank Charges,2049740,202312
Rother District Council,09/08/2023,T32DIGCUSSER,Digital & Customer Services,20239,Computer Services,D2632,Additional Computer Equipment,4.5,Lloyds Bank,Additional Computer Equipment - New PC/Computer,2049734,202312
Rother District Council,09/08/2023,T32DIGCUSSER,Digital & Customer Services,20239,Computer Services,D2632,Additional Computer Equipment,7.5,Lloyds Bank,Additional Computer Equipment - New PC/Computer,2049734,202312
Rother District Council,09/08/2023,T32DIGCUSSER,Digital & Customer Services,20239,Computer Services,D2632,Additional Computer Equipment,13.08,Lloyds Bank,Additional Computer Equipment - New PC/Computer,2049734,202312
Rother District Council,09/08/2023,T33HOUSING,Housing,20204,Housing Administration Account,D2513,Hired and Contracted services,7.98,Lloyds Bank,Hired and Contracted services,2049737,202312
Rother District Council,14/08/2023,T33HOUSING,Housing,20261,"TA Purchases (prev - 41 Jameson Mews, Bexhill on Sea)",B2201,Electricity,137.62,Opus Energy Ltd,Electricity - Electricity Charges,2049149,202312
Rother District Council,14/08/2023,T33HREGEN,Regeneration,20151,Udimore Workshops,B2201,Electricity,17.08,Opus Energy Ltd,Electricity - Electricity Charges,2049149,202312
Rother District Council,14/08/2023,T33HREGEN,Regeneration,20150,Peasmarsh Workshops,B2201,Electricity,21,Opus Energy Ltd,Electricity - Electricity Charges,2049149,202312
Rother District Council,14/08/2023,T33HREGEN,Regeneration,20104,Ancient Monuments & Gazebo,B2201,Electricity,16.73,Opus Energy Ltd,Electricity - Electricity Charges,2049149,202312
Rother District Council,14/08/2023,T33HOUSING,Housing,20261,"TA Purchases (prev - 41 Jameson Mews, Bexhill on Sea)",B2201,Electricity,105.83,Opus Energy Ltd,Electricity - Electricity Charges,2049149,202312
Rother District Council,14/08/2023,T31HUMANRES,Human Resources,20177,Administrative Offices - Rear Depot,B2201,Electricity,46.72,Opus Energy Ltd,Electricity - Electricity Charges,2049149,202312
Rother District Council,14/08/2023,T33HREGEN,Regeneration,20148,Misc Land & Buildings,B2201,Electricity,34.83,Opus Energy Ltd,Electricity - Electricity Charges,2049149,202312
Rother District Council,14/08/2023,T33HREGEN,Regeneration,20154,Committee Property Account,B2201,Electricity,15.55,Opus Energy Ltd,Electricity - Electricity Charges,2049149,202312
Rother District Council,14/08/2023,T33HREGEN,Regeneration,20154,Committee Property Account,B2201,Electricity,15.55,Opus Energy Ltd,Electricity - Electricity Charges,2049149,202312
Rother District Council,14/08/2023,T33HREGEN,Regeneration,20154,Committee Property Account,B2201,Electricity,15.56,Opus Energy Ltd,Electricity - Electricity Charges,2049149,202312
Rother District Council,14/08/2023,T33HREGEN,Regeneration,20154,Committee Property Account,B2201,Electricity,15.56,Opus Energy Ltd,Electricity - Electricity Charges,2049149,202312
Rother District Council,14/08/2023,T31HUMANRES,Human Resources,20175,Admin Building - Amherst Rd (fmr Treasurer�s building),B2201,Electricity,2820.46,Opus Energy Ltd,Electricity - Electricity Charges,2049149,202312
Rother District Council,14/08/2023,T33HREGEN,Regeneration,20148,Misc Land & Buildings,B2201,Electricity,-18.28,Opus Energy Ltd,Electricity - Electricity Charges,2049149,202312
Rother District Council,14/08/2023,T33HREGEN,Regeneration,20148,Misc Land & Buildings,B2201,Electricity,-19.24,Opus Energy Ltd,Electricity - Electricity Charges,2049149,202312
Rother District Council,14/08/2023,T33NBHDSERV,Neighbourhood Services,20128,Public Conveniences,B2201,Electricity,-57.05,Opus Energy Ltd,Electricity - Electricity Charges,2049149,202312
Rother District Council,14/08/2023,T33NBHDSERV,Neighbourhood Services,20128,Public Conveniences,B2201,Electricity,-51.4,Opus Energy Ltd,Electricity - Electricity Charges,2049149,202312
Rother District Council,14/08/2023,T33NBHDSERV,Neighbourhood Services,20115,Rye Area Parks & Gardens,B2201,Electricity,-21.64,Opus Energy Ltd,Electricity - Electricity Charges,2049149,202312
Rother District Council,14/08/2023,T33NBHDSERV,Neighbourhood Services,20128,Public Conveniences,B2201,Electricity,30.52,Opus Energy Ltd,Electricity - Electricity Charges,2049149,202312
Rother District Council,14/08/2023,T33NBHDSERV,Neighbourhood Services,20128,Public Conveniences,B2201,Electricity,28.29,Opus Energy Ltd,Electricity - Electricity Charges,2049149,202312
Rother District Council,14/08/2023,T33NBHDSERV,Neighbourhood Services,20128,Public Conveniences,B2201,Electricity,82.23,Opus Energy Ltd,Electricity - Electricity Charges,2049149,202312
Rother District Council,14/08/2023,T33NBHDSERV,Neighbourhood Services,20114,Bexhill Parks & Open Spaces,B2201,Electricity,-82.77,Opus Energy Ltd,Electricity - Electricity Charges,2049149,202312
Rother District Council,14/08/2023,T33NBHDSERV,Neighbourhood Services,20128,Public Conveniences,B2201,Electricity,-20.69,Opus Energy Ltd,Electricity - Electricity Charges,2049149,202312
Rother District Council,14/08/2023,T33NBHDSERV,Neighbourhood Services,20128,Public Conveniences,B2201,Electricity,33.28,Opus Energy Ltd,Electricity - Electricity Charges,2049149,202312
Rother District Council,14/08/2023,T33NBHDSERV,Neighbourhood Services,20128,Public Conveniences,B2201,Electricity,21.22,Opus Energy Ltd,Electricity - Electricity Charges,2049149,202312
Rother District Council,14/08/2023,T33NBHDSERV,Neighbourhood Services,20114,Bexhill Parks & Open Spaces,B2201,Electricity,38.12,Opus Energy Ltd,Electricity - Electricity Charges,2049149,202312
Rother District Council,14/08/2023,T33NBHDSERV,Neighbourhood Services,20107,Camber Beach & Foreshore,B2201,Electricity,397.57,Opus Energy Ltd,Electricity - Electricity Charges,2049149,202312
Rother District Council,14/08/2023,T33NBHDSERV,Neighbourhood Services,20128,Public Conveniences,B2201,Electricity,48.8,Opus Energy Ltd,Electricity - Electricity Charges,2049149,202312
Rother District Council,14/08/2023,T33NBHDSERV,Neighbourhood Services,20128,Public Conveniences,B2201,Electricity,131.53,Opus Energy Ltd,Electricity - Electricity Charges,2049149,202312
Rother District Council,14/08/2023,T33NBHDSERV,Neighbourhood Services,20128,Public Conveniences,B2201,Electricity,30.51,Opus Energy Ltd,Electricity - Electricity Charges,2049149,202312
Rother District Council,14/08/2023,T33NBHDSERV,Neighbourhood Services,20123,Cemeteries,B2201,Electricity,65.68,Opus Energy Ltd,Electricity - Electricity Charges,2049149,202312
Rother District Council,14/08/2023,T33NBHDSERV,Neighbourhood Services,20128,Public Conveniences,B2201,Electricity,42.29,Opus Energy Ltd,Electricity - Electricity Charges,2049149,202312
Rother District Council,14/08/2023,T33NBHDSERV,Neighbourhood Services,20128,Public Conveniences,B2201,Electricity,22.95,Opus Energy Ltd,Electricity - Electricity Charges,2049149,202312
Rother District Council,14/08/2023,T33NBHDSERV,Neighbourhood Services,20128,Public Conveniences,B2201,Electricity,39.49,Opus Energy Ltd,Electricity - Electricity Charges,2049149,202312
Rother District Council,14/08/2023,T33NBHDSERV,Neighbourhood Services,20128,Public Conveniences,B2201,Electricity,26.75,Opus Energy Ltd,Electricity - Electricity Charges,2049149,202312
Rother District Council,14/08/2023,T33NBHDSERV,Neighbourhood Services,20128,Public Conveniences,B2201,Electricity,26.03,Opus Energy Ltd,Electricity - Electricity Charges,2049149,202312
Rother District Council,14/08/2023,T33NBHDSERV,Neighbourhood Services,20114,Bexhill Parks & Open Spaces,B2201,Electricity,18.35,Opus Energy Ltd,Electricity - Electricity Charges,2049149,202312
Rother District Council,14/08/2023,T33NBHDSERV,Neighbourhood Services,20128,Public Conveniences,B2201,Electricity,4.59,Opus Energy Ltd,Electricity - Electricity Charges,2049149,202312
Rother District Council,14/08/2023,T33NBHDSERV,Neighbourhood Services,20114,Bexhill Parks & Open Spaces,B2201,Electricity,30.89,Opus Energy Ltd,Electricity - Electricity Charges,2049149,202312
Rother District Council,14/08/2023,T33NBHDSERV,Neighbourhood Services,20114,Bexhill Parks & Open Spaces,B2201,Electricity,22.95,Opus Energy Ltd,Electricity - Electricity Charges,2049149,202312
Rother District Council,14/08/2023,T33NBHDSERV,Neighbourhood Services,20128,Public Conveniences,B2201,Electricity,26.38,Opus Energy Ltd,Electricity - Electricity Charges,2049149,202312
Rother District Council,14/08/2023,T33NBHDSERV,Neighbourhood Services,20137,Car Parks,B2201,Electricity,29.14,Opus Energy Ltd,Electricity - Electricity Charges,2049149,202312
Rother District Council,14/08/2023,T33NBHDSERV,Neighbourhood Services,20108,Bexhill Promenade & Foreshore,B2201,Electricity,26.92,Opus Energy Ltd,Electricity - Electricity Charges,2049149,202312
Rother District Council,14/08/2023,T33NBHDSERV,Neighbourhood Services,20108,Bexhill Promenade & Foreshore,B2201,Electricity,20.13,Opus Energy Ltd,Electricity - Electricity Charges,2049149,202312
Rother District Council,14/08/2023,T33NBHDSERV,Neighbourhood Services,20114,Bexhill Parks & Open Spaces,B2201,Electricity,653.94,Opus Energy Ltd,Electricity - Electricity Charges,2049149,202312
Rother District Council,14/08/2023,T33NBHDSERV,Neighbourhood Services,20128,Public Conveniences,B2201,Electricity,163.49,Opus Energy Ltd,Electricity - Electricity Charges,2049149,202312
Rother District Council,14/08/2023,T33NBHDSERV,Neighbourhood Services,20115,Rye Area Parks & Gardens,B2201,Electricity,34.83,Opus Energy Ltd,Electricity - Electricity Charges,2049149,202312
Rother District Council,14/08/2023,T33NBHDSERV,Neighbourhood Services,20137,Car Parks,B2201,Electricity,96.16,Opus Energy Ltd,Electricity - Electricity Charges,2049149,202312
Rother District Council,14/08/2023,T33NBHDSERV,Neighbourhood Services,20128,Public Conveniences,B2201,Electricity,223.08,Opus Energy Ltd,Electricity - Electricity Charges,2049149,202312
Rother District Council,14/08/2023,T33NBHDSERV,Neighbourhood Services,20115,Rye Area Parks & Gardens,B2201,Electricity,81.11,Opus Energy Ltd,Electricity - Electricity Charges,2049149,202312
Rother District Council,14/08/2023,T33NBHDSERV,Neighbourhood Services,20102,Rother Museum Services,B2201,Electricity,906.44,Opus Energy Ltd,Electricity - Electricity Charges,2049149,202312
Rother District Council,14/08/2023,T33NBHDSERV,Neighbourhood Services,20128,Public Conveniences,B2201,Electricity,92.7,Opus Energy Ltd,Electricity - Electricity Charges,2049149,202312
Rother District Council,14/08/2023,T33NBHDSERV,Neighbourhood Services,20114,Bexhill Parks & Open Spaces,B2201,Electricity,30.9,Opus Energy Ltd,Electricity - Electricity Charges,2049149,202312
Rother District Council,14/08/2023,T33NBHDSERV,Neighbourhood Services,20108,Bexhill Promenade & Foreshore,B2201,Electricity,21.76,Opus Energy Ltd,Electricity - Electricity Charges,2049149,202312
Rother District Council,14/08/2023,T33NBHDSERV,Neighbourhood Services,20108,Bexhill Promenade & Foreshore,B2201,Electricity,21.22,Opus Energy Ltd,Electricity - Electricity Charges,2049149,202312
Rother District Council,14/08/2023,T33NBHDSERV,Neighbourhood Services,20108,Bexhill Promenade & Foreshore,B2201,Electricity,61.99,Opus Energy Ltd,Electricity - Electricity Charges,2049149,202312
Rother District Council,14/08/2023,T33NBHDSERV,Neighbourhood Services,20108,Bexhill Promenade & Foreshore,B2201,Electricity,39.36,Opus Energy Ltd,Electricity - Electricity Charges,2049149,202312
Rother District Council,14/08/2023,T33NBHDSERV,Neighbourhood Services,20128,Public Conveniences,B2201,Electricity,26.73,Opus Energy Ltd,Electricity - Electricity Charges,2049149,202312
Rother District Council,14/08/2023,T33NBHDSERV,Neighbourhood Services,20115,Rye Area Parks & Gardens,B2201,Electricity,-18.28,Opus Energy Ltd,Electricity - Electricity Charges,2049149,202312
Rother District Council,14/08/2023,T33NBHDSERV,Neighbourhood Services,20115,Rye Area Parks & Gardens,B2201,Electricity,-19.64,Opus Energy Ltd,Electricity - Electricity Charges,2049149,202312
Rother District Council,14/08/2023,T33NBHDSERV,Neighbourhood Services,20114,Bexhill Parks & Open Spaces,B2201,Electricity,-88.34,Opus Energy Ltd,Electricity - Electricity Charges,2049149,202312
Rother District Council,14/08/2023,T33NBHDSERV,Neighbourhood Services,20128,Public Conveniences,B2201,Electricity,-22.09,Opus Energy Ltd,Electricity - Electricity Charges,2049149,202312
Rother District Council,14/08/2023,T33NBHDSERV,Neighbourhood Services,20114,Bexhill Parks & Open Spaces,B2201,Electricity,-92.53,Opus Energy Ltd,Electricity - Electricity Charges,2049149,202312
Rother District Council,14/08/2023,T33NBHDSERV,Neighbourhood Services,20128,Public Conveniences,B2201,Electricity,-23.13,Opus Energy Ltd,Electricity - Electricity Charges,2049149,202312
Rother District Council,14/08/2023,T33NBHDSERV,Neighbourhood Services,20114,Bexhill Parks & Open Spaces,B2201,Electricity,-101.02,Opus Energy Ltd,Electricity - Electricity Charges,2049149,202312
Rother District Council,14/08/2023,T33NBHDSERV,Neighbourhood Services,20128,Public Conveniences,B2201,Electricity,-25.25,Opus Energy Ltd,Electricity - Electricity Charges,2049149,202312
Rother District Council,14/08/2023,T33NBHDSERV,Neighbourhood Services,20115,Rye Area Parks & Gardens,B2201,Electricity,-20.34,Opus Energy Ltd,Electricity - Electricity Charges,2049149,202312
Rother District Council,14/08/2023,T33NBHDSERV,Neighbourhood Services,20115,Rye Area Parks & Gardens,B2201,Electricity,-20.53,Opus Energy Ltd,Electricity - Electricity Charges,2049149,202312
Rother District Council,14/08/2023,T33NBHDSERV,Neighbourhood Services,20115,Rye Area Parks & Gardens,B2201,Electricity,-19.24,Opus Energy Ltd,Electricity - Electricity Charges,2049149,202312
Rother District Council,14/08/2023,T33NBHDSERV,Neighbourhood Services,20128,Public Conveniences,B2201,Electricity,-45.45,Opus Energy Ltd,Electricity - Electricity Charges,2049149,202312
Rother District Council,14/08/2023,T33NBHDSERV,Neighbourhood Services,20137,Car Parks,B2201,Electricity,-45.5,Opus Energy Ltd,Electricity - Electricity Charges,2049149,202312
Rother District Council,14/08/2023,T33NBHDSERV,Neighbourhood Services,20128,Public Conveniences,B2201,Electricity,-47.91,Opus Energy Ltd,Electricity - Electricity Charges,2049149,202312
Rother District Council,14/08/2023,T33NBHDSERV,Neighbourhood Services,20137,Car Parks,B2201,Electricity,-48.12,Opus Energy Ltd,Electricity - Electricity Charges,2049149,202312
Rother District Council,14/08/2023,T33NBHDSERV,Neighbourhood Services,20137,Car Parks,B2201,Electricity,-48.96,Opus Energy Ltd,Electricity - Electricity Charges,2049149,202312
Rother District Council,14/08/2023,T33NBHDSERV,Neighbourhood Services,20128,Public Conveniences,B2201,Electricity,-49.86,Opus Energy Ltd,Electricity - Electricity Charges,2049149,202312
Rother District Council,15/08/2023,T33HOUSING,Housing,20200,Housing Needs - HB (Housing Benefit),D2508,Removals and Storage,375,Mr Reliable Removals and Storage,Removals and Storage,2049130,202312
Rother District Council,18/08/2023,T33NBHDSERV,Neighbourhood Services,20113,Bexhill Leisure Pool,D2513,Hired and Contracted services,1801.2,Savills (UK) Ltd (Clients Account Rent/Service Charges),Hired and contracted services - Service Charge-Savills,2044190,202312
Rother District Council,21/08/2023,T33HREGEN,Regeneration,20150,Peasmarsh Workshops,B2201,Electricity,99.2,Opus Energy Ltd,Electricity - Electricity Charges,2049384,202312
Rother District Council,22/08/2023,T31HUMANRES,Human Resources,20176,Administrative Offices - Print Room,B2202,Gas,83.39,Laser Energy Buying Group (Kent County Council Commercial Services),Gas - Gas Charges,2047492,202310
Rother District Council,22/08/2023,T31HUMANRES,Human Resources,20173,Administrative Offices - Town Hall,B2202,Gas,291.4,Laser Energy Buying Group (Kent County Council Commercial Services),Gas - Gas Charges,2047492,202310
Rother District Council,22/08/2023,T31HUMANRES,Human Resources,20175,Admin Building - Amherst Rd (fmr Treasurer�s building),B2202,Gas,342.39,Laser Energy Buying Group (Kent County Council Commercial Services),Gas - Gas Charges,2047492,202310
Rother District Council,22/08/2023,T33HREGEN,Regeneration,20154,Committee Property Account,B2202,Gas,13.64,Laser Energy Buying Group (Kent County Council Commercial Services),Gas - Gas Charges,2047492,202310
Rother District Council,29/08/2023,T32DIGCUSSER,Digital & Customer Services,20239,Computer Services,D2633,Computer Equipment,432.5,Apple Retail UK Ltd,Computer Equipment - New - Computer Hardware,2048214,202311
Rother District Council,31/08/2023,T31DEMSERV,Democratic Services,20156,Representing Local Interest,D2513,Hired and Contracted services,3159.5,Wilkin Chapman LLP Solicitors,Hired and contracted services - Standards Investigator (Demo. Srvs),2048449,202311
Rother District Council,31/08/2023,T33NBHDSERV,Neighbourhood Services,20114,Bexhill Parks & Open Spaces,D1201,Equipment & Materials,265,Shelley Signs Ltd,Equipment & Materials - Parks - Purchase of Signs,2047385,202310
Rother District Council,02/09/2023,T32DIGCUSSER,Digital & Customer Services,20242,Communications-Phones,D2621,Telephones,32.89,TalkTalk Communications Ltd T/A TalkTalk Business,Telephones - Leased Line Rental,2046908,202310
Rother District Council,02/09/2023,T32DIGCUSSER,Digital & Customer Services,20242,Communications-Phones,D2621,Telephones,479.64,TalkTalk Communications Ltd T/A TalkTalk Business,Telephones - Leased Line Rental,2046909,202310
Rother District Council,05/09/2023,T31HUMANRES,Human Resources,20170,Communications-Postages,D2626,Postages,132.16,Royal Mail Group Ltd,Postages,2049577,202312
Rother District Council,11/09/2023,T33HOUSING,Housing,20204,Housing Administration Account,A2203,Training,280,Lloyds Bank,Training,2049742,202312
Rother District Council,11/09/2023,T33HREGEN,Regeneration,20122,Economic Development,A2203,Training,234,Lloyds Bank,Training,2049751,202312
Rother District Council,11/09/2023,T31HUMANRES,Human Resources,20175,Admin Building - Amherst Rd (fmr Treasurer�s building),B1100,Repairs to Premises,481.98,Lloyds Bank,Repairs to Premises - Specified Repairs and Works listed,2049745,202312
Rother District Council,11/09/2023,T33HOUSING,Housing,20204,Housing Administration Account,C2335,Public transport,4,Lloyds Bank,Public Transport - Train tickets,2049744,202312
Rother District Council,11/09/2023,T33HOUSING,Housing,20204,Housing Administration Account,C2335,Public transport,6.48,Lloyds Bank,Public Transport - Train tickets,2049749,202312
Rother District Council,11/09/2023,T33PLANDEV,Planning Development Management,20244,General Planning Expenses,D2513,Hired and Contracted services,1476,Lloyds Bank,Hired and contracted services - Staff Recruitment Fee,2049745,202312
Rother District Council,11/09/2023,T33PLANDEV,Planning Development Management,20244,General Planning Expenses,D2513,Hired and Contracted services,110.49,Lloyds Bank,Hired and contracted services - Staff Recruitment Fee,2049745,202312
Rother District Council,11/09/2023,T33HOUSING,Housing,20261,"TA Purchases (prev - 41 Jameson Mews, Bexhill on Sea)",D2513,Hired and Contracted services,33.32,Lloyds Bank,Hired and contracted services - Service fee paid,2049742,202312
Rother District Council,11/09/2023,T33HOUSING,Housing,20261,"TA Purchases (prev - 41 Jameson Mews, Bexhill on Sea)",D2513,Hired and Contracted services,220,Lloyds Bank,Hired and contracted services - Service fee paid,2049742,202312
Rother District Council,11/09/2023,T33HOUSING,Housing,20304,Housing First,D2513,Hired and Contracted services,18.06,Lloyds Bank,Hired and contracted services - Service fee paid,2049744,202312
Rother District Council,11/09/2023,T33HOUSING,Housing,20204,Housing Administration Account,D2513,Hired and Contracted services,35,Lloyds Bank,Hired and contracted services - Service fee paid,2049749,202312
Rother District Council,11/09/2023,T33HOUSING,Housing,20204,Housing Administration Account,D2513,Hired and Contracted services,74,Lloyds Bank,Hired and contracted services - Service fee paid,2049749,202312
Rother District Council,11/09/2023,T32DIGCUSSER,Digital & Customer Services,20236,Customer Services and Development,D2513,Hired and Contracted services,48.19,Lloyds Bank,Hired and Contracted Services - Health and Safety Act Equipment risk assessment,2049750,202312
Rother District Council,11/09/2023,T32DIGCUSSER,Digital & Customer Services,20239,Computer Services,D2513,Hired and Contracted services,24.98,Lloyds Bank,Hired and contracted services - Delivery and/or Packaging of Equipm,2049743,202312
Rother District Council,11/09/2023,T32DIGCUSSER,Digital & Customer Services,20239,Computer Services,D2635,Computer Licences,12,Lloyds Bank,Hired and contracted services - Delivery and/or Packaging of Equipm,2049743,202312
Rother District Council,11/09/2023,T32DIGCUSSER,Digital & Customer Services,20239,Computer Services,D2635,Computer Licences,13.08,Lloyds Bank,Hired and contracted services - Delivery and/or Packaging of Equipm,2049743,202312
Rother District Council,11/09/2023,T33HOUSING,Housing,20261,"TA Purchases (prev - 41 Jameson Mews, Bexhill on Sea)",D1206,Furniture & Fittings,5.6,Lloyds Bank,Furniture & Fittings - for TA purchases,2049742,202312
Rother District Council,11/09/2023,T33HOUSING,Housing,20261,"TA Purchases (prev - 41 Jameson Mews, Bexhill on Sea)",D1206,Furniture & Fittings,2.8,Lloyds Bank,Furniture & Fittings - for TA purchases,2049742,202312
Rother District Council,11/09/2023,T33HOUSING,Housing,20304,Housing First,D1206,Furniture & Fittings,63.3,Lloyds Bank,Furniture & Fittings - for TA purchases,2049742,202312
Rother District Council,11/09/2023,T33HOUSING,Housing,20304,Housing First,D1206,Furniture & Fittings,38.29,Lloyds Bank,Furniture & Fittings - for TA purchases,2049742,202312
Rother District Council,11/09/2023,T33HREGEN,Regeneration,20145,Maintenance Services,D1201,Equipment & Materials,27.47,Lloyds Bank,Equipment & Materials - Purchase of Tools,2049745,202312
Rother District Council,11/09/2023,T33NBHDSERV,Neighbourhood Services,20108,Bexhill Promenade & Foreshore,D1201,Equipment & Materials,72.38,Lloyds Bank,Equipment & materials - Miscellaneous,2049745,202312
Rother District Council,11/09/2023,T31HUMANRES,Human Resources,20177,Administrative Offices - Rear Depot,B2201,Electricity,47.41,Opus Energy Ltd,Electricity - Electricity Charges,2048430,202311
Rother District Council,11/09/2023,T31HUMANRES,Human Resources,20175,Admin Building - Amherst Rd (fmr Treasurer�s building),B2201,Electricity,2938.74,Opus Energy Ltd,Electricity - Electricity Charges,2048430,202311
Rother District Council,11/09/2023,T33NBHDSERV,Neighbourhood Services,20128,Public Conveniences,B2201,Electricity,30.87,Opus Energy Ltd,Electricity - Electricity Charges,2048430,202311
Rother District Council,11/09/2023,T33NBHDSERV,Neighbourhood Services,20128,Public Conveniences,B2201,Electricity,28.67,Opus Energy Ltd,Electricity - Electricity Charges,2048430,202311
Rother District Council,11/09/2023,T33NBHDSERV,Neighbourhood Services,20128,Public Conveniences,B2201,Electricity,83.61,Opus Energy Ltd,Electricity - Electricity Charges,2048430,202311
Rother District Council,11/09/2023,T33HREGEN,Regeneration,20104,Ancient Monuments & Gazebo,B2201,Electricity,16.73,Opus Energy Ltd,Electricity - Electricity Charges,2048430,202311
Rother District Council,11/09/2023,T33NBHDSERV,Neighbourhood Services,20128,Public Conveniences,B2201,Electricity,22.95,Opus Energy Ltd,Electricity - Electricity Charges,2048430,202311
Rother District Council,11/09/2023,T33HOUSING,Housing,20261,"TA Purchases (prev - 41 Jameson Mews, Bexhill on Sea)",B2201,Electricity,5,Opus Energy Ltd,Electricity - Electricity Charges,2048430,202311
Rother District Council,11/09/2023,T33NBHDSERV,Neighbourhood Services,20128,Public Conveniences,B2201,Electricity,40.18,Opus Energy Ltd,Electricity - Electricity Charges,2048430,202311
Rother District Council,11/09/2023,T33NBHDSERV,Neighbourhood Services,20128,Public Conveniences,B2201,Electricity,27.1,Opus Energy Ltd,Electricity - Electricity Charges,2048430,202311
Rother District Council,11/09/2023,T33HREGEN,Regeneration,20148,Misc Land & Buildings,B2201,Electricity,17.17,Opus Energy Ltd,Electricity - Electricity Charges,2048430,202311
Rother District Council,11/09/2023,T33NBHDSERV,Neighbourhood Services,20115,Rye Area Parks & Gardens,B2201,Electricity,17.16,Opus Energy Ltd,Electricity - Electricity Charges,2048430,202311
Rother District Council,11/09/2023,T33NBHDSERV,Neighbourhood Services,20128,Public Conveniences,B2201,Electricity,35,Opus Energy Ltd,Electricity - Electricity Charges,2048430,202311
Rother District Council,11/09/2023,T33NBHDSERV,Neighbourhood Services,20114,Bexhill Parks & Open Spaces,B2201,Electricity,18.63,Opus Energy Ltd,Electricity - Electricity Charges,2048430,202311
Rother District Council,11/09/2023,T33NBHDSERV,Neighbourhood Services,20128,Public Conveniences,B2201,Electricity,4.66,Opus Energy Ltd,Electricity - Electricity Charges,2048430,202311
Rother District Council,11/09/2023,T33NBHDSERV,Neighbourhood Services,20137,Car Parks,B2201,Electricity,39.49,Opus Energy Ltd,Electricity - Electricity Charges,2048430,202311
Rother District Council,11/09/2023,T33NBHDSERV,Neighbourhood Services,20114,Bexhill Parks & Open Spaces,B2201,Electricity,31.23,Opus Energy Ltd,Electricity - Electricity Charges,2048430,202311
Rother District Council,11/09/2023,T33NBHDSERV,Neighbourhood Services,20114,Bexhill Parks & Open Spaces,B2201,Electricity,22.95,Opus Energy Ltd,Electricity - Electricity Charges,2048430,202311
Rother District Council,11/09/2023,T33NBHDSERV,Neighbourhood Services,20128,Public Conveniences,B2201,Electricity,41.24,Opus Energy Ltd,Electricity - Electricity Charges,2048430,202311
Rother District Council,11/09/2023,T33NBHDSERV,Neighbourhood Services,20128,Public Conveniences,B2201,Electricity,25.35,Opus Energy Ltd,Electricity - Electricity Charges,2048430,202311
Rother District Council,11/09/2023,T33NBHDSERV,Neighbourhood Services,20115,Rye Area Parks & Gardens,B2201,Electricity,18.6,Opus Energy Ltd,Electricity - Electricity Charges,2048430,202311
Rother District Council,11/09/2023,T33NBHDSERV,Neighbourhood Services,20128,Public Conveniences,B2201,Electricity,368.38,Opus Energy Ltd,Electricity - Electricity Charges,2048430,202311
Rother District Council,11/09/2023,T33NBHDSERV,Neighbourhood Services,20114,Bexhill Parks & Open Spaces,B2201,Electricity,859.54,Opus Energy Ltd,Electricity - Electricity Charges,2048430,202311
Rother District Council,11/09/2023,T33NBHDSERV,Neighbourhood Services,20137,Car Parks,B2201,Electricity,29.49,Opus Energy Ltd,Electricity - Electricity Charges,2048430,202311
Rother District Council,11/09/2023,T33NBHDSERV,Neighbourhood Services,20108,Bexhill Promenade & Foreshore,B2201,Electricity,27.56,Opus Energy Ltd,Electricity - Electricity Charges,2048430,202311
Rother District Council,11/09/2023,T33NBHDSERV,Neighbourhood Services,20108,Bexhill Promenade & Foreshore,B2201,Electricity,20.13,Opus Energy Ltd,Electricity - Electricity Charges,2048430,202311
Rother District Council,11/09/2023,T33NBHDSERV,Neighbourhood Services,20108,Bexhill Promenade & Foreshore,B2201,Electricity,22.01,Opus Energy Ltd,Electricity - Electricity Charges,2048430,202311
Rother District Council,11/09/2023,T33NBHDSERV,Neighbourhood Services,20108,Bexhill Promenade & Foreshore,B2201,Electricity,21.22,Opus Energy Ltd,Electricity - Electricity Charges,2048430,202311
Rother District Council,11/09/2023,T33NBHDSERV,Neighbourhood Services,20108,Bexhill Promenade & Foreshore,B2201,Electricity,64,Opus Energy Ltd,Electricity - Electricity Charges,2048430,202311
Rother District Council,11/09/2023,T33HREGEN,Regeneration,20154,Committee Property Account,B2201,Electricity,16.03,Opus Energy Ltd,Electricity - Electricity Charges,2048430,202311
Rother District Council,11/09/2023,T33HREGEN,Regeneration,20154,Committee Property Account,B2201,Electricity,16.03,Opus Energy Ltd,Electricity - Electricity Charges,2048430,202311
Rother District Council,11/09/2023,T33HREGEN,Regeneration,20154,Committee Property Account,B2201,Electricity,16.03,Opus Energy Ltd,Electricity - Electricity Charges,2048430,202311
Rother District Council,11/09/2023,T33HREGEN,Regeneration,20154,Committee Property Account,B2201,Electricity,16.03,Opus Energy Ltd,Electricity - Electricity Charges,2048430,202311
Rother District Council,11/09/2023,T33NBHDSERV,Neighbourhood Services,20108,Bexhill Promenade & Foreshore,B2201,Electricity,39.99,Opus Energy Ltd,Electricity - Electricity Charges,2048430,202311
Rother District Council,11/09/2023,T33NBHDSERV,Neighbourhood Services,20128,Public Conveniences,B2201,Electricity,26.73,Opus Energy Ltd,Electricity - Electricity Charges,2048430,202311
Rother District Council,11/09/2023,T33NBHDSERV,Neighbourhood Services,20128,Public Conveniences,B2201,Electricity,-500.12,Opus Energy Ltd,Electricity - Electricity Charges,2048430,202311
Rother District Council,11/09/2023,T33NBHDSERV,Neighbourhood Services,20114,Bexhill Parks & Open Spaces,B2201,Electricity,-1166.95,Opus Energy Ltd,Electricity - Electricity Charges,2048430,202311
Rother District Council,11/09/2023,T33NBHDSERV,Neighbourhood Services,20128,Public Conveniences,B2201,Electricity,-449.93,Opus Energy Ltd,Electricity - Electricity Charges,2048430,202311
Rother District Council,11/09/2023,T33NBHDSERV,Neighbourhood Services,20114,Bexhill Parks & Open Spaces,B2201,Electricity,-1049.85,Opus Energy Ltd,Electricity - Electricity Charges,2048430,202311
Rother District Council,11/09/2023,T33NBHDSERV,Neighbourhood Services,20128,Public Conveniences,B2201,Electricity,-431.65,Opus Energy Ltd,Electricity - Electricity Charges,2048430,202311
Rother District Council,11/09/2023,T33NBHDSERV,Neighbourhood Services,20114,Bexhill Parks & Open Spaces,B2201,Electricity,-1007.17,Opus Energy Ltd,Electricity - Electricity Charges,2048430,202311
Rother District Council,11/09/2023,T33NBHDSERV,Neighbourhood Services,20128,Public Conveniences,B2201,Electricity,-583.39,Opus Energy Ltd,Electricity - Electricity Charges,2048430,202311
Rother District Council,11/09/2023,T33NBHDSERV,Neighbourhood Services,20114,Bexhill Parks & Open Spaces,B2201,Electricity,-1361.25,Opus Energy Ltd,Electricity - Electricity Charges,2048430,202311
Rother District Council,11/09/2023,T33NBHDSERV,Neighbourhood Services,20114,Bexhill Parks & Open Spaces,B2201,Electricity,39.72,Opus Energy Ltd,Electricity - Electricity Charges,2048430,202311
Rother District Council,11/09/2023,T33NBHDSERV,Neighbourhood Services,20128,Public Conveniences,B2201,Electricity,9.93,Opus Energy Ltd,Electricity - Electricity Charges,2048430,202311
Rother District Council,11/09/2023,T33NBHDSERV,Neighbourhood Services,20128,Public Conveniences,B2201,Electricity,33.63,Opus Energy Ltd,Electricity - Electricity Charges,2048430,202311
Rother District Council,11/09/2023,T33NBHDSERV,Neighbourhood Services,20128,Public Conveniences,B2201,Electricity,21.22,Opus Energy Ltd,Electricity - Electricity Charges,2048430,202311
Rother District Council,11/09/2023,T33HREGEN,Regeneration,20151,Udimore Workshops,B2201,Electricity,17.08,Opus Energy Ltd,Electricity - Electricity Charges,2048430,202311
Rother District Council,11/09/2023,T33HOUSING,Housing,20261,"TA Purchases (prev - 41 Jameson Mews, Bexhill on Sea)",B2201,Electricity,131.59,Opus Energy Ltd,Electricity - Electricity Charges,2048430,202311
Rother District Council,11/09/2023,T33NBHDSERV,Neighbourhood Services,20114,Bexhill Parks & Open Spaces,B2201,Electricity,38.47,Opus Energy Ltd,Electricity - Electricity Charges,2048430,202311
Rother District Council,11/09/2023,T33NBHDSERV,Neighbourhood Services,20107,Camber Beach & Foreshore,B2201,Electricity,63.63,Opus Energy Ltd,Electricity - Electricity Charges,2048430,202311
Rother District Council,11/09/2023,T33NBHDSERV,Neighbourhood Services,20128,Public Conveniences,B2201,Electricity,49.49,Opus Energy Ltd,Electricity - Electricity Charges,2048430,202311
Rother District Council,11/09/2023,T33NBHDSERV,Neighbourhood Services,20128,Public Conveniences,B2201,Electricity,62.92,Opus Energy Ltd,Electricity - Electricity Charges,2048430,202311
Rother District Council,11/09/2023,T33NBHDSERV,Neighbourhood Services,20128,Public Conveniences,B2201,Electricity,65.34,Opus Energy Ltd,Electricity - Electricity Charges,2048430,202311
Rother District Council,11/09/2023,T33NBHDSERV,Neighbourhood Services,20123,Cemeteries,B2201,Electricity,64.65,Opus Energy Ltd,Electricity - Electricity Charges,2048430,202311
Rother District Council,11/09/2023,T33NBHDSERV,Neighbourhood Services,20128,Public Conveniences,B2201,Electricity,23.98,Opus Energy Ltd,Electricity - Electricity Charges,2048430,202311
Rother District Council,11/09/2023,T33HREGEN,Regeneration,20150,Peasmarsh Workshops,B2201,Electricity,21,Opus Energy Ltd,Electricity - Electricity Charges,2048430,202311
Rother District Council,11/09/2023,T33NBHDSERV,Neighbourhood Services,20128,Public Conveniences,B2201,Electricity,-309.01,Opus Energy Ltd,Electricity - Electricity Charges,2048430,202311
Rother District Council,11/09/2023,T33NBHDSERV,Neighbourhood Services,20114,Bexhill Parks & Open Spaces,B2201,Electricity,-721.03,Opus Energy Ltd,Electricity - Electricity Charges,2048430,202311
Rother District Council,11/09/2023,T33NBHDSERV,Neighbourhood Services,20128,Public Conveniences,B2201,Electricity,-337.92,Opus Energy Ltd,Electricity - Electricity Charges,2048430,202311
Rother District Council,11/09/2023,T33NBHDSERV,Neighbourhood Services,20114,Bexhill Parks & Open Spaces,B2201,Electricity,-788.49,Opus Energy Ltd,Electricity - Electricity Charges,2048430,202311
Rother District Council,11/09/2023,T33NBHDSERV,Neighbourhood Services,20128,Public Conveniences,B2201,Electricity,-361.28,Opus Energy Ltd,Electricity - Electricity Charges,2048430,202311
Rother District Council,11/09/2023,T33NBHDSERV,Neighbourhood Services,20114,Bexhill Parks & Open Spaces,B2201,Electricity,-842.99,Opus Energy Ltd,Electricity - Electricity Charges,2048430,202311
Rother District Council,11/09/2023,T33NBHDSERV,Neighbourhood Services,20128,Public Conveniences,B2201,Electricity,-309.43,Opus Energy Ltd,Electricity - Electricity Charges,2048430,202311
Rother District Council,11/09/2023,T33NBHDSERV,Neighbourhood Services,20114,Bexhill Parks & Open Spaces,B2201,Electricity,-722.01,Opus Energy Ltd,Electricity - Electricity Charges,2048430,202311
Rother District Council,11/09/2023,T33NBHDSERV,Neighbourhood Services,20114,Bexhill Parks & Open Spaces,B2201,Electricity,130.86,Opus Energy Ltd,Electricity - Electricity Charges,2048430,202311
Rother District Council,11/09/2023,T33NBHDSERV,Neighbourhood Services,20128,Public Conveniences,B2201,Electricity,32.71,Opus Energy Ltd,Electricity - Electricity Charges,2048430,202311
Rother District Council,11/09/2023,T33NBHDSERV,Neighbourhood Services,20114,Bexhill Parks & Open Spaces,B2201,Electricity,-2251.8,Opus Energy Ltd,Electricity - Electricity Charges,2048430,202311
Rother District Council,11/09/2023,T33NBHDSERV,Neighbourhood Services,20128,Public Conveniences,B2201,Electricity,4274.39,Opus Energy Ltd,Electricity - Electricity Charges,2048430,202311
Rother District Council,11/09/2023,T33NBHDSERV,Neighbourhood Services,20114,Bexhill Parks & Open Spaces,B2201,Electricity,9973.57,Opus Energy Ltd,Electricity - Electricity Charges,2048430,202311
Rother District Council,11/09/2023,T33NBHDSERV,Neighbourhood Services,20128,Public Conveniences,B2201,Electricity,-965.06,Opus Energy Ltd,Electricity - Electricity Charges,2048430,202311
Rother District Council,11/09/2023,T32DIGCUSSER,Digital & Customer Services,20239,Computer Services,D2635,Computer Licences,19.98,Lloyds Bank,Computer Licences - Domain Name Renewal,2049746,202312
Rother District Council,11/09/2023,T32DIGCUSSER,Digital & Customer Services,20239,Computer Services,D2632,Additional Computer Equipment,16.38,Lloyds Bank,Additional Computer Equipment - New PC/Computer,2049743,202312
Rother District Council,18/09/2023,T33HREGEN,Regeneration,20150,Peasmarsh Workshops,B2201,Electricity,84,Opus Energy Ltd,Electricity - Electricity Charges,2049389,202312
Rother District Council,20/09/2023,T33NBHDSERV,Neighbourhood Services,20114,Bexhill Parks & Open Spaces,B1100,Repairs to Premises,580,Mr A Norwood ta AW Spectrum Ltd,Repairs to Premises - Repairs Drainage Works,2047543,202310
Rother District Council,20/09/2023,T33NBHDSERV,Neighbourhood Services,20114,Bexhill Parks & Open Spaces,B1100,Repairs to Premises,380,Mr A Norwood ta AW Spectrum Ltd,Repairs to Premises - Repairs Drainage Works,2047543,202310
Rother District Council,20/09/2023,T33NBHDSERV,Neighbourhood Services,20114,Bexhill Parks & Open Spaces,B1100,Repairs to Premises,120,Mr A Norwood ta AW Spectrum Ltd,Repairs to Premises - Repairs Drainage Works,2047543,202310
Rother District Council,22/09/2023,T31HUMANRES,Human Resources,20176,Administrative Offices - Print Room,B2202,Gas,80.24,Laser Energy Buying Group (Kent County Council Commercial Services),Gas - Gas Charges,2047493,202310
Rother District Council,22/09/2023,T31HUMANRES,Human Resources,20175,Admin Building - Amherst Rd (fmr Treasurer�s building),B2202,Gas,335.04,Laser Energy Buying Group (Kent County Council Commercial Services),Gas - Gas Charges,2047493,202310
Rother District Council,22/09/2023,T31HUMANRES,Human Resources,20173,Administrative Offices - Town Hall,B2202,Gas,291.4,Laser Energy Buying Group (Kent County Council Commercial Services),Gas - Gas Charges,2047493,202310
Rother District Council,22/09/2023,T33HREGEN,Regeneration,20154,Committee Property Account,B2202,Gas,13.64,Laser Energy Buying Group (Kent County Council Commercial Services),Gas - Gas Charges,2047493,202310
Rother District Council,22/09/2023,T31HUMANRES,Human Resources,20173,Administrative Offices - Town Hall,B2201,Electricity,2957.34,Ecotricity Ltd,Electricity - Electricity Charges,2048385,202311
Rother District Council,22/09/2023,T33NBHDSERV,Neighbourhood Services,20128,Public Conveniences,B2201,Electricity,287.23,Ecotricity Ltd,Electricity - Electricity Charges,2048385,202311
Rother District Council,22/09/2023,T33NBHDSERV,Neighbourhood Services,20128,Public Conveniences,B2201,Electricity,358.66,Ecotricity Ltd,Electricity - Electricity Charges,2048385,202311
Rother District Council,22/09/2023,T33HREGEN,Regeneration,20153,"Elva Business Centre, Bexhill",B2201,Electricity,2249.61,Ecotricity Ltd,Electricity - Electricity Charges,2048385,202311
Rother District Council,22/09/2023,T33NBHDSERV,Neighbourhood Services,20128,Public Conveniences,B2201,Electricity,143.46,Ecotricity Ltd,Electricity - Electricity Charges,2048385,202311
Rother District Council,22/09/2023,T33HREGEN,Regeneration,20154,Committee Property Account,B2201,Electricity,37.59,Ecotricity Ltd,Electricity - Electricity Charges,2048385,202311
Rother District Council,22/09/2023,T33HREGEN,Regeneration,20154,Committee Property Account,B2201,Electricity,37.59,Ecotricity Ltd,Electricity - Electricity Charges,2048385,202311
Rother District Council,22/09/2023,T33HREGEN,Regeneration,20154,Committee Property Account,B2201,Electricity,37.59,Ecotricity Ltd,Electricity - Electricity Charges,2048385,202311
Rother District Council,22/09/2023,T33HREGEN,Regeneration,20154,Committee Property Account,B2201,Electricity,37.59,Ecotricity Ltd,Electricity - Electricity Charges,2048385,202311
Rother District Council,22/09/2023,T33NBHDSERV,Neighbourhood Services,20108,Bexhill Promenade & Foreshore,B2201,Electricity,18.79,Ecotricity Ltd,Electricity - Electricity Charges,2048385,202311
Rother District Council,22/09/2023,T33NBHDSERV,Neighbourhood Services,20108,Bexhill Promenade & Foreshore,B2201,Electricity,18.79,Ecotricity Ltd,Electricity - Electricity Charges,2048385,202311
Rother District Council,22/09/2023,T33HREGEN,Regeneration,20154,Committee Property Account,B2201,Electricity,1691.64,Ecotricity Ltd,Electricity - Electricity Charges,2048385,202311
Rother District Council,22/09/2023,T33HREGEN,Regeneration,20148,Misc Land & Buildings,B2201,Electricity,182.7,Ecotricity Ltd,Electricity - Electricity Charges,2048385,202311
Rother District Council,22/09/2023,T33HREGEN,Regeneration,20155,Investment properties,B2201,Electricity,49.17,Ecotricity Ltd,Electricity - Electricity Charges,2048385,202311
Rother District Council,22/09/2023,T33NBHDSERV,Neighbourhood Services,20128,Public Conveniences,B2201,Electricity,49.19,Ecotricity Ltd,Electricity - Electricity Charges,2048385,202311
Rother District Council,22/09/2023,T33NBHDSERV,Neighbourhood Services,20125,Coast Protection,B2201,Electricity,1324.8,Ecotricity Ltd,Electricity - Electricity Charges,2048385,202311
Rother District Council,22/09/2023,T33NBHDSERV,Neighbourhood Services,20114,Bexhill Parks & Open Spaces,B2201,Electricity,578.1,Ecotricity Ltd,Electricity - Electricity Charges,2048385,202311
Rother District Council,22/09/2023,T33HREGEN,Regeneration,20145,Maintenance Services,B2201,Electricity,80.64,Ecotricity Ltd,Electricity - Electricity Charges,2048385,202311
Rother District Council,22/09/2023,T33HREGEN,Regeneration,20154,Committee Property Account,B2201,Electricity,43.02,Ecotricity Ltd,Electricity - Electricity Charges,2048385,202311
Rother District Council,22/09/2023,T33HREGEN,Regeneration,20154,Committee Property Account,B2201,Electricity,43.02,Ecotricity Ltd,Electricity - Electricity Charges,2048385,202311
Rother District Council,22/09/2023,T33HREGEN,Regeneration,20154,Committee Property Account,B2201,Electricity,43.02,Ecotricity Ltd,Electricity - Electricity Charges,2048385,202311
Rother District Council,22/09/2023,T33NBHDSERV,Neighbourhood Services,20108,Bexhill Promenade & Foreshore,B2201,Electricity,43.02,Ecotricity Ltd,Electricity - Electricity Charges,2048385,202311
Rother District Council,25/09/2023,T31HUMANRES,Human Resources,20170,Communications-Postages,D2626,Postages,56.65,Royal Mail Group Ltd,Postages - Response Service-Royal Mail Chg,2047145,202310
Rother District Council,26/09/2023,T32ENVSERV,"Environmental Services, Licensing & Community Safety",20129,Community Safety - CCTV costs only,B2201,Electricity,979.81,Ecotricity Ltd,Electricity - Electricity Charges,2048386,202311
Rother District Council,26/09/2023,T32ENVSERV,"Environmental Services, Licensing & Community Safety",20129,Community Safety - CCTV costs only,B2201,Electricity,104.22,Ecotricity Ltd,Electricity - Electricity Charges,2048386,202311
Rother District Council,26/09/2023,T33NBHDSERV,Neighbourhood Services,20114,Bexhill Parks & Open Spaces,B2201,Electricity,49.04,Ecotricity Ltd,Electricity - Electricity Charges,2048386,202311
Rother District Council,26/09/2023,T33NBHDSERV,Neighbourhood Services,20137,Car Parks,B2201,Electricity,130.71,Ecotricity Ltd,Electricity - Electricity Charges,2048386,202311
Rother District Council,26/09/2023,T33NBHDSERV,Neighbourhood Services,20138,Residual Highway Services,B2201,Electricity,108.76,Ecotricity Ltd,Electricity - Electricity Charges,2048386,202311
Rother District Council,26/09/2023,T33NBHDSERV,Neighbourhood Services,20137,Car Parks,B2201,Electricity,50.75,Ecotricity Ltd,Electricity - Electricity Charges,2048386,202311
Rother District Council,26/09/2023,T33NBHDSERV,Neighbourhood Services,20138,Residual Highway Services,B2201,Electricity,8.01,Ecotricity Ltd,Electricity - Electricity Charges,2048386,202311
Rother District Council,26/09/2023,T33NBHDSERV,Neighbourhood Services,20108,Bexhill Promenade & Foreshore,B2201,Electricity,8.01,Ecotricity Ltd,Electricity - Electricity Charges,2048386,202311
Rother District Council,26/09/2023,T33NBHDSERV,Neighbourhood Services,20137,Car Parks,B2201,Electricity,13.89,Ecotricity Ltd,Electricity - Electricity Charges,2048386,202311
Rother District Council,26/09/2023,T33NBHDSERV,Neighbourhood Services,20138,Residual Highway Services,B2201,Electricity,11.57,Ecotricity Ltd,Electricity - Electricity Charges,2048386,202311
Rother District Council,26/09/2023,T33NBHDSERV,Neighbourhood Services,20128,Public Conveniences,B2201,Electricity,31,Ecotricity Ltd,Electricity - Electricity Charges,2048386,202311
Rother District Council,26/09/2023,T33NBHDSERV,Neighbourhood Services,20128,Public Conveniences,B2201,Electricity,110.2,Ecotricity Ltd,Electricity - Electricity Charges,2048386,202311
Rother District Council,26/09/2023,T33HOUSING,Housing,20261,"TA Purchases (prev - 41 Jameson Mews, Bexhill on Sea)",B2201,Electricity,54.72,Ecotricity Ltd,Electricity - Electricity Charges,2048386,202311
Rother District Council,26/09/2023,T33HOUSING,Housing,20261,"TA Purchases (prev - 41 Jameson Mews, Bexhill on Sea)",B2201,Electricity,115.71,Ecotricity Ltd,Electricity - Electricity Charges,2048386,202311
Rother District Council,28/09/2023,T31DEMSERV,Democratic Services,20156,Representing Local Interest,D2513,Hired and Contracted services,6505.5,Wilkin Chapman LLP Solicitors,Hired and contracted services - Standards Investigator (Demo. Srvs),2048450,202311
Rother District Council,28/09/2023,T32DIGCUSSER,Digital & Customer Services,20239,Computer Services,D2635,Computer Licences,1265,Apple Retail UK Ltd,Computer Licences - Website Management,2048213,202311
Rother District Council,29/09/2023,T32DIGCUSSER,Digital & Customer Services,20241,Stationery,D2638,Photocopier Contracts,919.65,Konica Minolta Business Solutions (UK) Ltd,Photocopier Contracts,2047198,202310
Rother District Council,30/09/2023,T3ZCAPITAL,Capital,70737,Capital � Barnhorn Green,N1004,Architects & Consultant Fees,1020,R H Partnership Architects Ltd,Architects & Consultant Fees Capital-Architect and Conslt Fees,2047392,202310
Rother District Council,01/10/2023,T32DIGCUSSER,Digital & Customer Services,20242,Communications-Phones,D2621,Telephones,11254.41,GCI Network Solutions Ltd / Nasstar,Telephones - KCOM Smartnumber Charges,2047207,202310
Rother District Council,01/10/2023,T32DIGCUSSER,Digital & Customer Services,20242,Communications-Phones,D2621,Telephones,29.52,GCI Network Solutions Ltd / Nasstar,Telephones - KCOM Smartnumber Charges,2047201,202310
Rother District Council,01/10/2023,T32DIGCUSSER,Digital & Customer Services,20242,Communications-Phones,D2621,Telephones,178.84,GCI Network Solutions Ltd / Nasstar,Telephones - KCOM Smartnumber Charges,2047202,202310
Rother District Council,01/10/2023,T32DIGCUSSER,Digital & Customer Services,20239,Computer Services,D2621,Telephones,754.47,MLL Telecom Ltd,Telephones - Broadband Connection,2047200,202310
Rother District Council,02/10/2023,T32DIGCUSSER,Digital & Customer Services,20242,Communications-Phones,D2621,Telephones,29.36,TalkTalk Communications Ltd T/A TalkTalk Business,Telephones - Leased Line Rental,2049581,202312
Rother District Council,03/10/2023,T33PLANDEV,Planning Development Management,20246,Planning Applications,D2513,Hired and Contracted services,12,H M Land Registry,Hired and contracted services - Land Registry-Planning,2048314,202311
Rother District Council,03/10/2023,T32ENVSERV,"Environmental Services, Licensing & Community Safety",32134,EH Pollution R + W Partnership,D2513,Hired and Contracted services,9,H M Land Registry,Hired and contracted services - Env H-Land Registry,2048314,202311
Rother District Council,03/10/2023,T33PLANDEV,Planning Development Management,20258,BC Dangerous Structures H+R Partnership,D2513,Hired and Contracted services,6,H M Land Registry,Hired and contracted services - Env H-Land Registry,2048314,202311
Rother District Council,03/10/2023,T32REVBEN,Revenues & Benefits,20216,Cost Of Collection,D2513,Hired and Contracted services,27,H M Land Registry,Hired and contracted services - Council Tax-Land Registry Enquiries,2048314,202311
Rother District Council,04/10/2023,T33NBHDSERV,Neighbourhood Services,20128,Public Conveniences,B1100,Repairs to Premises,825,Icklesham Parish Council,Repairs to Premises - Repairs Refurbishment of premises,2048152,202310
Rother District Council,04/10/2023,T33NBHDSERV,Neighbourhood Services,20128,Public Conveniences,B1100,Repairs to Premises,217.59,Icklesham Parish Council,Repairs to Premises - Car Park Maintenance,2048152,202310
Rother District Council,04/10/2023,T33NBHDSERV,Neighbourhood Services,20137,Car Parks,D2513,Hired and Contracted services,158.72,Planet Merchant Services,Hired and contracted services - Car Parks-Card payments transaction fee,2049583,202312
Rother District Council,05/10/2023,T32DIGCUSSER,Digital & Customer Services,20241,Stationery,D2638,Photocopier Contracts,3968.7,Konica Minolta Business Solutions (UK) Ltd,Photocopier Contracts,2047199,202310
Rother District Council,05/10/2023,T33HOUSING,Housing,20309,Homelessness Prevention Grant,D2513,Hired and Contracted services,2500,Bexhill & Rother Homelessness Unity Group (HUG) CIO,Hired and contracted services - Service fee paid,2044909,202311
Rother District Council,06/10/2023,T33HREGEN,Regeneration,20144,Property Management,D2513,Hired and Contracted services,12,H M Land Registry,Hired and contracted services - Land Registry-Property Management,2048321,202311
Rother District Council,06/10/2023,T33PLANDEV,Planning Development Management,20246,Planning Applications,D2513,Hired and Contracted services,24,H M Land Registry,Hired and contracted services - Land Registry-Planning,2048321,202311
Rother District Council,06/10/2023,T32ENVSERV,"Environmental Services, Licensing & Community Safety",20129,Community Safety - CCTV costs only,D2513,Hired and Contracted services,12,H M Land Registry,Hired and contracted services - Env H-Land Registry,2048321,202311
Rother District Council,06/10/2023,T33PLANDEV,Planning Development Management,20258,BC Dangerous Structures H+R Partnership,D2513,Hired and Contracted services,9,H M Land Registry,Hired and contracted services - Env H-Land Registry,2048321,202311
Rother District Council,06/10/2023,T32REVBEN,Revenues & Benefits,20216,Cost Of Collection,D2513,Hired and Contracted services,12,H M Land Registry,Hired and contracted services - Council Tax-Land Registry Enquiries,2048321,202311
Rother District Council,06/10/2023,T31CHFFIN,Chief Finance Officer (S151),20209,Corporate management,D2513,Hired and Contracted services,286.02,Pay 360 Ltd,Bank Charges,2048331,202311
Rother District Council,09/10/2023,T33HOUSING,Housing,20204,Housing Administration Account,A2203,Training,342.56,Lloyds Bank,Training,2049862,202312
Rother District Council,09/10/2023,T32DIGCUSSER,Digital & Customer Services,20239,Computer Services,C2335,Public transport,160.28,Lloyds Bank,Public Transport - Train tickets,2049863,202312
Rother District Council,09/10/2023,T33HOUSING,Housing,20261,"TA Purchases (prev - 41 Jameson Mews, Bexhill on Sea)",D2513,Hired and Contracted services,19.79,Lloyds Bank,Hired and contracted services - Service fee paid,2049861,202312
Rother District Council,09/10/2023,T33HOUSING,Housing,20204,Housing Administration Account,D2513,Hired and Contracted services,46.66,Lloyds Bank,Hired and contracted services - Service fee paid,2049862,202312
Rother District Council,09/10/2023,T33HOUSING,Housing,20204,Housing Administration Account,D2513,Hired and Contracted services,6.54,Lloyds Bank,Hired and contracted services - Service fee paid,2049862,202312
Rother District Council,09/10/2023,T33HOUSING,Housing,20261,"TA Purchases (prev - 41 Jameson Mews, Bexhill on Sea)",D2513,Hired and Contracted services,4.08,Lloyds Bank,Hired and contracted services - Service fee paid,2049861,202312
Rother District Council,09/10/2023,T33HOUSING,Housing,20261,"TA Purchases (prev - 41 Jameson Mews, Bexhill on Sea)",D2513,Hired and Contracted services,8.34,Lloyds Bank,Hired and contracted services - Service fee paid,2049861,202312
Rother District Council,09/10/2023,T32DIGCUSSER,Digital & Customer Services,20239,Computer Services,D2420,General office supplies (Stationery purchased from ext suppliers),81,Lloyds Bank,General office supplies - Stationery,2049863,202312
Rother District Council,09/10/2023,T33HOUSING,Housing,20261,"TA Purchases (prev - 41 Jameson Mews, Bexhill on Sea)",D1206,Furniture & Fittings,23.32,Lloyds Bank,Furniture & Fittings - for TA purchases,2049861,202312
Rother District Council,09/10/2023,T33HOUSING,Housing,20261,"TA Purchases (prev - 41 Jameson Mews, Bexhill on Sea)",D1206,Furniture & Fittings,34.98,Lloyds Bank,Furniture & Fittings - for TA purchases,2049861,202312
Rother District Council,09/10/2023,T33HOUSING,Housing,20261,"TA Purchases (prev - 41 Jameson Mews, Bexhill on Sea)",D1206,Furniture & Fittings,109.8,Lloyds Bank,Furniture & Fittings - for TA purchases,2049861,202312
Rother District Council,09/10/2023,T33HOUSING,Housing,20304,Housing First,D1206,Furniture & Fittings,53.54,Lloyds Bank,Furniture & Fittings - for TA purchases,2049861,202312
Rother District Council,09/10/2023,T32DIGCUSSER,Digital & Customer Services,20239,Computer Services,D2635,Computer Licences,9.99,Lloyds Bank,Computer Licences - Domain Name Renewal,2049867,202312
Rother District Council,09/10/2023,T32DIGCUSSER,Digital & Customer Services,20239,Computer Services,D2635,Computer Licences,19.98,Lloyds Bank,Computer Licences - Domain Name Renewal,2049867,202312
Rother District Council,09/10/2023,T32DIGCUSSER,Digital & Customer Services,20239,Computer Services,D2635,Computer Licences,24.34,Lloyds Bank,Computer Licences - Computer Licence Renewal,2049863,202312
Rother District Council,09/10/2023,T32DIGCUSSER,Digital & Customer Services,20239,Computer Services,D2635,Computer Licences,18,Lloyds Bank,Computer Licences - Computer Licence Renewal,2049863,202312
Rother District Council,09/10/2023,T32DIGCUSSER,Digital & Customer Services,20239,Computer Services,D2635,Computer Licences,5.88,Lloyds Bank,Computer Licences - Computer Licence Renewal,2049863,202312
Rother District Council,13/10/2023,T33HREGEN,Regeneration,20144,Property Management,D2513,Hired and Contracted services,6,H M Land Registry,Hired and contracted services - Land Registry-Property Management,2048313,202311
Rother District Council,13/10/2023,T33PLANDEV,Planning Development Management,20246,Planning Applications,D2513,Hired and Contracted services,18,H M Land Registry,Hired and contracted services - Land Registry-Planning,2048313,202311
Rother District Council,13/10/2023,T32ENVSERV,"Environmental Services, Licensing & Community Safety",32144,EH Environmental Services Admin R + W Partnership,D2513,Hired and Contracted services,6,H M Land Registry,Hired and contracted services - Env H-Land Registry,2048313,202311
Rother District Council,13/10/2023,T32REVBEN,Revenues & Benefits,20216,Cost Of Collection,D2513,Hired and Contracted services,18,H M Land Registry,Hired and contracted services - Council Tax-Land Registry Enquiries,2048313,202311
Rother District Council,13/10/2023,T33HREGEN,Regeneration,20104,Ancient Monuments & Gazebo,B2201,Electricity,16.19,Opus Energy Ltd,Electricity - Electricity Charges,2049415,202312
Rother District Council,13/10/2023,T33HREGEN,Regeneration,20151,Udimore Workshops,B2201,Electricity,16.54,Opus Energy Ltd,Electricity - Electricity Charges,2049415,202312
Rother District Council,13/10/2023,T33HREGEN,Regeneration,20150,Peasmarsh Workshops,B2201,Electricity,20.43,Opus Energy Ltd,Electricity - Electricity Charges,2049415,202312
Rother District Council,13/10/2023,T33HREGEN,Regeneration,20154,Committee Property Account,B2201,Electricity,16.17,Opus Energy Ltd,Electricity - Electricity Charges,2049415,202312
Rother District Council,13/10/2023,T33HREGEN,Regeneration,20154,Committee Property Account,B2201,Electricity,16.17,Opus Energy Ltd,Electricity - Electricity Charges,2049415,202312
Rother District Council,13/10/2023,T33HREGEN,Regeneration,20154,Committee Property Account,B2201,Electricity,16.17,Opus Energy Ltd,Electricity - Electricity Charges,2049415,202312
Rother District Council,13/10/2023,T33HREGEN,Regeneration,20154,Committee Property Account,B2201,Electricity,16.17,Opus Energy Ltd,Electricity - Electricity Charges,2049415,202312
Rother District Council,13/10/2023,T31HUMANRES,Human Resources,20175,Admin Building - Amherst Rd (fmr Treasurer�s building),B2201,Electricity,3039.13,Opus Energy Ltd,Electricity - Electricity Charges,2049415,202312
Rother District Council,13/10/2023,T33HOUSING,Housing,20261,"TA Purchases (prev - 41 Jameson Mews, Bexhill on Sea)",B2201,Electricity,-105.83,Opus Energy Ltd,Electricity - Electricity Charges,2049415,202312
Rother District Council,13/10/2023,T33HOUSING,Housing,20261,"TA Purchases (prev - 41 Jameson Mews, Bexhill on Sea)",B2201,Electricity,84.36,Opus Energy Ltd,Electricity - Electricity Charges,2049415,202312
Rother District Council,13/10/2023,T33HOUSING,Housing,20261,"TA Purchases (prev - 41 Jameson Mews, Bexhill on Sea)",B2201,Electricity,-131.59,Opus Energy Ltd,Electricity - Electricity Charges,2049415,202312
Rother District Council,13/10/2023,T33HOUSING,Housing,20261,"TA Purchases (prev - 41 Jameson Mews, Bexhill on Sea)",B2201,Electricity,-5,Opus Energy Ltd,Electricity - Electricity Charges,2049415,202312
Rother District Council,13/10/2023,T33HOUSING,Housing,20261,"TA Purchases (prev - 41 Jameson Mews, Bexhill on Sea)",B2201,Electricity,40.75,Opus Energy Ltd,Electricity - Electricity Charges,2049415,202312
Rother District Council,13/10/2023,T31HUMANRES,Human Resources,20177,Administrative Offices - Rear Depot,B2201,Electricity,48.25,Opus Energy Ltd,Electricity - Electricity Charges,2049415,202312
Rother District Council,13/10/2023,T33HREGEN,Regeneration,20148,Misc Land & Buildings,B2201,Electricity,17.41,Opus Energy Ltd,Electricity - Electricity Charges,2049415,202312
Rother District Council,13/10/2023,T33NBHDSERV,Neighbourhood Services,20114,Bexhill Parks & Open Spaces,B2201,Electricity,130.28,Opus Energy Ltd,Electricity - Electricity Charges,2049415,202312
Rother District Council,13/10/2023,T33NBHDSERV,Neighbourhood Services,20128,Public Conveniences,B2201,Electricity,32.57,Opus Energy Ltd,Electricity - Electricity Charges,2049415,202312
Rother District Council,13/10/2023,T33NBHDSERV,Neighbourhood Services,20114,Bexhill Parks & Open Spaces,B2201,Electricity,-2.37,Opus Energy Ltd,Electricity - Electricity Charges,2049415,202312
Rother District Council,13/10/2023,T33NBHDSERV,Neighbourhood Services,20128,Public Conveniences,B2201,Electricity,-0.59,Opus Energy Ltd,Electricity - Electricity Charges,2049415,202312
Rother District Council,13/10/2023,T33NBHDSERV,Neighbourhood Services,20128,Public Conveniences,B2201,Electricity,33.78,Opus Energy Ltd,Electricity - Electricity Charges,2049415,202312
Rother District Council,13/10/2023,T33NBHDSERV,Neighbourhood Services,20128,Public Conveniences,B2201,Electricity,21.03,Opus Energy Ltd,Electricity - Electricity Charges,2049415,202312
Rother District Council,13/10/2023,T33NBHDSERV,Neighbourhood Services,20114,Bexhill Parks & Open Spaces,B2201,Electricity,38.96,Opus Energy Ltd,Electricity - Electricity Charges,2049415,202312
Rother District Council,13/10/2023,T33NBHDSERV,Neighbourhood Services,20107,Camber Beach & Foreshore,B2201,Electricity,65.15,Opus Energy Ltd,Electricity - Electricity Charges,2049415,202312
Rother District Council,13/10/2023,T33NBHDSERV,Neighbourhood Services,20128,Public Conveniences,B2201,Electricity,50.68,Opus Energy Ltd,Electricity - Electricity Charges,2049415,202312
Rother District Council,13/10/2023,T33NBHDSERV,Neighbourhood Services,20128,Public Conveniences,B2201,Electricity,130.99,Opus Energy Ltd,Electricity - Electricity Charges,2049415,202312
Rother District Council,13/10/2023,T33NBHDSERV,Neighbourhood Services,20128,Public Conveniences,B2201,Electricity,67.22,Opus Energy Ltd,Electricity - Electricity Charges,2049415,202312
Rother District Council,13/10/2023,T33NBHDSERV,Neighbourhood Services,20123,Cemeteries,B2201,Electricity,66.52,Opus Energy Ltd,Electricity - Electricity Charges,2049415,202312
Rother District Council,13/10/2023,T33NBHDSERV,Neighbourhood Services,20128,Public Conveniences,B2201,Electricity,38.99,Opus Energy Ltd,Electricity - Electricity Charges,2049415,202312
Rother District Council,13/10/2023,T33NBHDSERV,Neighbourhood Services,20128,Public Conveniences,B2201,Electricity,22.75,Opus Energy Ltd,Electricity - Electricity Charges,2049415,202312
Rother District Council,13/10/2023,T33NBHDSERV,Neighbourhood Services,20128,Public Conveniences,B2201,Electricity,40.67,Opus Energy Ltd,Electricity - Electricity Charges,2049415,202312
Rother District Council,13/10/2023,T33NBHDSERV,Neighbourhood Services,20128,Public Conveniences,B2201,Electricity,27.25,Opus Energy Ltd,Electricity - Electricity Charges,2049415,202312
Rother District Council,13/10/2023,T33NBHDSERV,Neighbourhood Services,20115,Rye Area Parks & Gardens,B2201,Electricity,17.41,Opus Energy Ltd,Electricity - Electricity Charges,2049415,202312
Rother District Council,13/10/2023,T33NBHDSERV,Neighbourhood Services,20128,Public Conveniences,B2201,Electricity,35.49,Opus Energy Ltd,Electricity - Electricity Charges,2049415,202312
Rother District Council,13/10/2023,T33NBHDSERV,Neighbourhood Services,20114,Bexhill Parks & Open Spaces,B2201,Electricity,18.48,Opus Energy Ltd,Electricity - Electricity Charges,2049415,202312
Rother District Council,13/10/2023,T33NBHDSERV,Neighbourhood Services,20128,Public Conveniences,B2201,Electricity,4.62,Opus Energy Ltd,Electricity - Electricity Charges,2049415,202312
Rother District Council,13/10/2023,T33NBHDSERV,Neighbourhood Services,20137,Car Parks,B2201,Electricity,40.33,Opus Energy Ltd,Electricity - Electricity Charges,2049415,202312
Rother District Council,13/10/2023,T33NBHDSERV,Neighbourhood Services,20114,Bexhill Parks & Open Spaces,B2201,Electricity,31.38,Opus Energy Ltd,Electricity - Electricity Charges,2049415,202312
Rother District Council,13/10/2023,T33NBHDSERV,Neighbourhood Services,20114,Bexhill Parks & Open Spaces,B2201,Electricity,22.76,Opus Energy Ltd,Electricity - Electricity Charges,2049415,202312
Rother District Council,13/10/2023,T33NBHDSERV,Neighbourhood Services,20128,Public Conveniences,B2201,Electricity,41.43,Opus Energy Ltd,Electricity - Electricity Charges,2049415,202312
Rother District Council,13/10/2023,T33NBHDSERV,Neighbourhood Services,20128,Public Conveniences,B2201,Electricity,26.54,Opus Energy Ltd,Electricity - Electricity Charges,2049415,202312
Rother District Council,13/10/2023,T33NBHDSERV,Neighbourhood Services,20115,Rye Area Parks & Gardens,B2201,Electricity,18.26,Opus Energy Ltd,Electricity - Electricity Charges,2049415,202312
Rother District Council,13/10/2023,T33NBHDSERV,Neighbourhood Services,20102,Rother Museum Services,B2201,Electricity,1066.53,Opus Energy Ltd,Electricity - Electricity Charges,2049415,202312
Rother District Council,13/10/2023,T33NBHDSERV,Neighbourhood Services,20128,Public Conveniences,B2201,Electricity,109.08,Opus Energy Ltd,Electricity - Electricity Charges,2049415,202312
Rother District Council,13/10/2023,T33NBHDSERV,Neighbourhood Services,20114,Bexhill Parks & Open Spaces,B2201,Electricity,36.36,Opus Energy Ltd,Electricity - Electricity Charges,2049415,202312
Rother District Council,13/10/2023,T33NBHDSERV,Neighbourhood Services,20137,Car Parks,B2201,Electricity,29.29,Opus Energy Ltd,Electricity - Electricity Charges,2049415,202312
Rother District Council,13/10/2023,T33NBHDSERV,Neighbourhood Services,20108,Bexhill Promenade & Foreshore,B2201,Electricity,26.72,Opus Energy Ltd,Electricity - Electricity Charges,2049415,202312
Rother District Council,13/10/2023,T33NBHDSERV,Neighbourhood Services,20108,Bexhill Promenade & Foreshore,B2201,Electricity,19.56,Opus Energy Ltd,Electricity - Electricity Charges,2049415,202312
Rother District Council,13/10/2023,T33NBHDSERV,Neighbourhood Services,20128,Public Conveniences,B2201,Electricity,31.02,Opus Energy Ltd,Electricity - Electricity Charges,2049415,202312
Rother District Council,13/10/2023,T33NBHDSERV,Neighbourhood Services,20128,Public Conveniences,B2201,Electricity,28.48,Opus Energy Ltd,Electricity - Electricity Charges,2049415,202312
Rother District Council,13/10/2023,T33NBHDSERV,Neighbourhood Services,20128,Public Conveniences,B2201,Electricity,86.52,Opus Energy Ltd,Electricity - Electricity Charges,2049415,202312
Rother District Council,13/10/2023,T33NBHDSERV,Neighbourhood Services,20108,Bexhill Promenade & Foreshore,B2201,Electricity,70.2,Opus Energy Ltd,Electricity - Electricity Charges,2049415,202312
Rother District Council,13/10/2023,T33NBHDSERV,Neighbourhood Services,20108,Bexhill Promenade & Foreshore,B2201,Electricity,-9.38,Opus Energy Ltd,Electricity - Electricity Charges,2049415,202312
Rother District Council,13/10/2023,T33NBHDSERV,Neighbourhood Services,20108,Bexhill Promenade & Foreshore,B2201,Electricity,64.06,Opus Energy Ltd,Electricity - Electricity Charges,2049415,202312
Rother District Council,13/10/2023,T33NBHDSERV,Neighbourhood Services,20108,Bexhill Promenade & Foreshore,B2201,Electricity,39.92,Opus Energy Ltd,Electricity - Electricity Charges,2049415,202312
Rother District Council,13/10/2023,T33NBHDSERV,Neighbourhood Services,20128,Public Conveniences,B2201,Electricity,26.88,Opus Energy Ltd,Electricity - Electricity Charges,2049415,202312
Rother District Council,13/10/2023,T33NBHDSERV,Neighbourhood Services,20120,Neighbourhood Services,D2513,Hired and Contracted services,4,H M Land Registry,Hired and Contracted services,2048313,202311
Rother District Council,17/10/2023,T32DIGCUSSER,Digital & Customer Services,20242,Communications-Phones,D2621,Telephones,2362.72,GCI Network Solutions Ltd / Nasstar,Telephones - KCOM Smartnumber Charges,2047206,202310
Rother District Council,18/10/2023,T33HREGEN,Regeneration,20122,Economic Development,A2202,Recruitment expenses,4259,Penna PLC,Recruitment expenses Advertising Vacant Post,2047393,202310
Rother District Council,19/10/2023,T33PLANDEV,Planning Development Management,20246,Planning Applications,D2513,Hired and Contracted services,3,H M Land Registry,Hired and contracted services - Land Registry-Planning,2048319,202311
Rother District Council,19/10/2023,T32ENVSERV,"Environmental Services, Licensing & Community Safety",32134,EH Pollution R + W Partnership,D2513,Hired and Contracted services,9,H M Land Registry,Hired and contracted services - Env H-Land Registry,2048319,202311
Rother District Council,19/10/2023,T32ENVSERV,"Environmental Services, Licensing & Community Safety",32144,EH Environmental Services Admin R + W Partnership,D2513,Hired and Contracted services,12,H M Land Registry,Hired and contracted services - Env H-Land Registry,2048319,202311
Rother District Council,19/10/2023,T32ENVSERV,"Environmental Services, Licensing & Community Safety",20129,Community Safety - CCTV costs only,D2513,Hired and Contracted services,9,H M Land Registry,Hired and contracted services - Env H-Land Registry,2048319,202311
Rother District Council,19/10/2023,T33PLANDEV,Planning Development Management,20258,BC Dangerous Structures H+R Partnership,D2513,Hired and Contracted services,12,H M Land Registry,Hired and contracted services - Env H-Land Registry,2048319,202311
Rother District Council,19/10/2023,T32REVBEN,Revenues & Benefits,20216,Cost Of Collection,D2513,Hired and Contracted services,21,H M Land Registry,Hired and contracted services - Council Tax-Land Registry Enquiries,2048319,202311
Rother District Council,19/10/2023,T33HREGEN,Regeneration,20150,Peasmarsh Workshops,B2201,Electricity,93,Opus Energy Ltd,Electricity - Electricity Charges,2049385,202312
Rother District Council,20/10/2023,T32ENVSERV,"Environmental Services, Licensing & Community Safety",32134,EH Pollution R + W Partnership,D2513,Hired and Contracted services,3,H M Land Registry,Hired and contracted services - Env H-Land Registry,2048300,202311
Rother District Council,23/10/2023,T31HUMANRES,Human Resources,20176,Administrative Offices - Print Room,B2202,Gas,106.02,Laser Energy Buying Group (Kent County Council Commercial Services),Gas - Gas Charges,2047494,202310
Rother District Council,23/10/2023,T31HUMANRES,Human Resources,20175,Admin Building - Amherst Rd (fmr Treasurer�s building),B2202,Gas,444.45,Laser Energy Buying Group (Kent County Council Commercial Services),Gas - Gas Charges,2047494,202310
Rother District Council,23/10/2023,T31HUMANRES,Human Resources,20173,Administrative Offices - Town Hall,B2202,Gas,302.54,Laser Energy Buying Group (Kent County Council Commercial Services),Gas - Gas Charges,2047494,202310
Rother District Council,23/10/2023,T33HREGEN,Regeneration,20154,Committee Property Account,B2202,Gas,13.2,Laser Energy Buying Group (Kent County Council Commercial Services),Gas - Gas Charges,2047494,202310
Rother District Council,24/10/2023,T33PLANDEV,Planning Development Management,20246,Planning Applications,E2302,Third party payment private contractors,225.85,Curley Consultants,Third Party Private contractors,2047394,202310
Rother District Council,24/10/2023,T32ENVSERV,"Environmental Services, Licensing & Community Safety",20130,Crime and Disorder Initiatives,D1201,Equipment & Materials,48.29,De La Warr Pavilion (Enterprise) Ltd,Equipment & Materials - Safer Rother Partnership,2047395,202310
Rother District Council,26/10/2023,T31DEMSERV,Democratic Services,20156,Representing Local Interest,D2513,Hired and Contracted services,236,Wilkin Chapman LLP Solicitors,Hired and contracted services - Standards Investigator (Demo. Srvs),2048447,202311
Rother District Council,26/10/2023,T33HREGEN,Regeneration,20144,Property Management,D2513,Hired and Contracted services,6,H M Land Registry,Hired and contracted services - Land Registry-Property Management,2048318,202311
Rother District Council,26/10/2023,T32ENVSERV,"Environmental Services, Licensing & Community Safety",32144,EH Environmental Services Admin R + W Partnership,D2513,Hired and Contracted services,6,H M Land Registry,Hired and contracted services - Env H-Land Registry,2048318,202311
Rother District Council,26/10/2023,T33PLANDEV,Planning Development Management,20258,BC Dangerous Structures H+R Partnership,D2513,Hired and Contracted services,3,H M Land Registry,Hired and contracted services - Env H-Land Registry,2048318,202311
Rother District Council,26/10/2023,T32REVBEN,Revenues & Benefits,20216,Cost Of Collection,D2513,Hired and Contracted services,45,H M Land Registry,Hired and contracted services - Council Tax-Land Registry Enquiries,2048318,202311
Rother District Council,27/10/2023,T33HREGEN,Regeneration,20144,Property Management,D2513,Hired and Contracted services,6,H M Land Registry,Hired and contracted services - Land Registry-Property Management,2048301,202311
Rother District Council,27/10/2023,T33PLANDEV,Planning Development Management,20246,Planning Applications,D2513,Hired and Contracted services,24,H M Land Registry,Hired and contracted services - Land Registry-Planning,2048301,202311
Rother District Council,27/10/2023,T32REVBEN,Revenues & Benefits,20216,Cost Of Collection,D2513,Hired and Contracted services,6,H M Land Registry,Hired and contracted services - Council Tax-Land Registry Enquiries,2048301,202311
Rother District Council,27/10/2023,T31CHFFIN,Chief Finance Officer (S151),20222,Accountancy,D2636,Computer Software,113.34,Arribatec UK Ltd,Computer Software - charged to departments,2047530,202310
Rother District Council,27/10/2023,T31CHFFIN,Chief Finance Officer (S151),20209,Corporate management,D2511,Bank Charges,65,National Westminster Bank PLC,Bank Charges,2047140,202310
Rother District Council,30/10/2023,T33HOUSING,Housing,20306,Afghan Relocation Assistance Policy,D2513,Hired and Contracted services,120,Digital Sussex Ltd,Hired and contracted services - Service fee paid,2047848,202310
Rother District Council,31/10/2023,T31HUMANRES,Human Resources,20171,Human Resources,D2513,Hired and Contracted services,23.44,Computershare Voucher Services,Hired and contracted services - Child Care Voucher Service Charge,2048187,202311
Rother District Council,31/10/2023,T31CHFFIN,Chief Finance Officer (S151),20209,Corporate management,D2513,Hired and Contracted services,19.88,allpay.net Ltd,Hired and contracted services - Allpay Card/Rep/Let Chrg - Vatable,2048209,202311
Rother District Council,31/10/2023,T31CHFFIN,Chief Finance Officer (S151),20209,Corporate management,D2513,Hired and Contracted services,11.63,allpay.net Ltd,Hired and contracted services - Allpay Card/Rep/Let Chrg - Vatable,2048208,202311
Rother District Council,31/10/2023,T31CHFFIN,Chief Finance Officer (S151),20209,Corporate management,D2513,Hired and Contracted services,20.26,allpay.net Ltd,Hired and contracted services - Allpay Card/Rep/Let Chrg - Vatable,2048207,202311
Rother District Council,31/10/2023,T31CHFFIN,Chief Finance Officer (S151),20209,Corporate management,D2513,Hired and Contracted services,775.07,allpay.net Ltd,Hired and contracted services - Allpay Card/Rep/Let Chrg - Vatable,2048206,202311
Rother District Council,31/10/2023,T33NBHDSERV,Neighbourhood Services,20128,Public Conveniences,B2201,Electricity,11.54,Ecotricity Ltd,Electricity - Electricity Charges,2046454,202310
Rother District Council,31/10/2023,T33NBHDSERV,Neighbourhood Services,20128,Public Conveniences,B2201,Electricity,30,Ecotricity Ltd,Electricity - Electricity Charges,2046455,202310
Rother District Council,31/10/2023,T33NBHDSERV,Neighbourhood Services,20128,Public Conveniences,B2201,Electricity,31,Ecotricity Ltd,Electricity - Electricity Charges,2046456,202310
Rother District Council,31/10/2023,T33NBHDSERV,Neighbourhood Services,20128,Public Conveniences,B2201,Electricity,31,Ecotricity Ltd,Electricity - Electricity Charges,2046457,202310
Rother District Council,31/10/2023,T33NBHDSERV,Neighbourhood Services,20128,Public Conveniences,B2201,Electricity,30,Ecotricity Ltd,Electricity - Electricity Charges,2046458,202310
Rother District Council,31/10/2023,T32ENVSERV,"Environmental Services, Licensing & Community Safety",32136,EH Pest Control R + W Partnership,C1104,Derv,3.8,Allstar Business Solutions,Derv - Fuel Service fee payable on fuel cards,2048210,202311
Rother District Council,31/10/2023,T33NBHDSERV,Neighbourhood Services,20107,Camber Beach & Foreshore,C1104,Derv,1.9,Allstar Business Solutions,Derv - Fuel Service fee payable on fuel cards,2048210,202311
Rother District Council,31/10/2023,T33HREGEN,Regeneration,20145,Maintenance Services,C1104,Derv,17.1,Allstar Business Solutions,Derv - Fuel Service fee payable on fuel cards,2048210,202311
Rother District Council,31/10/2023,T33HOUSING,Housing,20261,"TA Purchases (prev - 41 Jameson Mews, Bexhill on Sea)",D2513,Hired and Contracted services,6484.5,Thomas Building & Refurbishment Ltd,Hired and Contracted services,2047093,202310
Rother District Council,31/10/2023,T33HOUSING,Housing,20261,"TA Purchases (prev - 41 Jameson Mews, Bexhill on Sea)",D2513,Hired and Contracted services,1142.09,Thomas Building & Refurbishment Ltd,Hired and Contracted services,2047093,202310
Rother District Council,31/10/2023,T32ENVSERV,"Environmental Services, Licensing & Community Safety",32136,EH Pest Control R + W Partnership,C1104,Derv,110.83,Allstar Business Solutions,Derv,2048210,202311
Rother District Council,31/10/2023,T33NBHDSERV,Neighbourhood Services,20107,Camber Beach & Foreshore,C1104,Derv,81.48,Allstar Business Solutions,Derv,2048210,202311
Rother District Council,31/10/2023,T33HREGEN,Regeneration,20145,Maintenance Services,C1104,Derv,152.46,Allstar Business Solutions,Derv,2048210,202311
Rother District Council,31/10/2023,T33HREGEN,Regeneration,20145,Maintenance Services,C1104,Derv,178.72,Allstar Business Solutions,Derv,2048210,202311
Rother District Council,31/10/2023,T33HREGEN,Regeneration,20145,Maintenance Services,C1104,Derv,86.08,Allstar Business Solutions,Derv,2048210,202311
Rother District Council,31/10/2023,T33HREGEN,Regeneration,20145,Maintenance Services,C1104,Derv,129.95,Allstar Business Solutions,Derv,2048210,202311
Rother District Council,31/10/2023,T3ZZNOREPORT,Resources,90000,Balance sheet all accounts,T1002,Childcare Vouchers,293,Computershare Voucher Services,Childcare Vouchers,2048187,202311
Rother District Council,01/11/2023,T32DIGCUSSER,Digital & Customer Services,20242,Communications-Phones,D2621,Telephones,29.52,GCI Network Solutions Ltd / Nasstar,Telephones - KCOM Smartnumber Charges,2047204,202310
Rother District Council,01/11/2023,T32DIGCUSSER,Digital & Customer Services,20242,Communications-Phones,D2621,Telephones,192.4,GCI Network Solutions Ltd / Nasstar,Telephones - KCOM Smartnumber Charges,2047288,202310
Rother District Council,01/11/2023,T33NBHDSERV,Neighbourhood Services,20107,Camber Beach & Foreshore,D2621,Telephones,118,Beaming Ltd,Telephones - Broadband Connection,2048192,202311
Rother District Council,01/11/2023,T32DIGCUSSER,Digital & Customer Services,20242,Communications-Phones,D2622,Mobile Phones,780.78,Telefonica UK Ltd,Mobile Phones - Purchase of mobile phones,2047203,202310
Rother District Council,01/11/2023,T31CHFFIN,Chief Finance Officer (S151),20209,Corporate management,D2513,Hired and Contracted services,28.29,Merchant Rentals Ltd,Hired and contracted services - Streamline Machine-Rental,2049588,202312
Rother District Council,01/11/2023,T33PLANDEV,Planning Development Management,20246,Planning Applications,D2513,Hired and Contracted services,6,H M Land Registry,Hired and contracted services - Land Registry-Planning,2048310,202311
Rother District Council,01/11/2023,T33HOUSING,Housing,20200,Housing Needs - HB (Housing Benefit),D2513,Hired and Contracted services,9,H M Land Registry,Hired and contracted services - Housing-Land Registry,2048310,202311
Rother District Council,01/11/2023,T32ENVSERV,"Environmental Services, Licensing & Community Safety",32134,EH Pollution R + W Partnership,D2513,Hired and Contracted services,6,H M Land Registry,Hired and contracted services - Env H-Land Registry,2048310,202311
Rother District Council,01/11/2023,T32ENVSERV,"Environmental Services, Licensing & Community Safety",32144,EH Environmental Services Admin R + W Partnership,D2513,Hired and Contracted services,3,H M Land Registry,Hired and contracted services - Env H-Land Registry,2048310,202311
Rother District Council,01/11/2023,T31CHFFIN,Chief Finance Officer (S151),20209,Corporate management,D2513,Hired and Contracted services,292,Her Majestys Court Service,Hired and contracted services - Court Costs/Fees,2048275,202311
Rother District Council,01/11/2023,T32REVBEN,Revenues & Benefits,20216,Cost Of Collection,D2513,Hired and Contracted services,9,H M Land Registry,Hired and contracted services - Council Tax-Land Registry Enquiries,2048310,202311
Rother District Council,01/11/2023,T31CHFFIN,Chief Finance Officer (S151),20209,Corporate management,D2513,Hired and Contracted services,20,Lloyds Bank,Bank Charges,2048237,202311
Rother District Council,01/11/2023,T31CHFFIN,Chief Finance Officer (S151),20209,Corporate management,D2513,Hired and Contracted services,20,Lloyds Bank,Bank Charges,2048238,202311
Rother District Council,01/11/2023,T31CHFFIN,Chief Finance Officer (S151),20209,Corporate management,D2513,Hired and Contracted services,865.42,Lloyds Bank,Bank Charges,2048257,202311
Rother District Council,01/11/2023,T31CHFFIN,Chief Finance Officer (S151),20209,Corporate management,D2513,Hired and Contracted services,50.04,Lloyds Bank,Bank Charges,2048258,202311
Rother District Council,01/11/2023,T31CHFFIN,Chief Finance Officer (S151),20209,Corporate management,D2513,Hired and Contracted services,20,Lloyds Bank,Bank Charges,2048235,202311
Rother District Council,01/11/2023,T31CHFFIN,Chief Finance Officer (S151),20209,Corporate management,D2513,Hired and Contracted services,20,Lloyds Bank,Bank Charges,2048255,202311
Rother District Council,01/11/2023,T31CHFFIN,Chief Finance Officer (S151),20209,Corporate management,D2513,Hired and Contracted services,20,Lloyds Bank,Bank Charges,2048241,202311
Rother District Council,01/11/2023,T31CHFFIN,Chief Finance Officer (S151),20209,Corporate management,D2513,Hired and Contracted services,20,Lloyds Bank,Bank Charges,2048243,202311
Rother District Council,01/11/2023,T31CHFFIN,Chief Finance Officer (S151),20209,Corporate management,D2513,Hired and Contracted services,20,Lloyds Bank,Bank Charges,2048253,202311
Rother District Council,01/11/2023,T33HOUSING,Housing,20200,Housing Needs - HB (Housing Benefit),D2513,Hired and Contracted services,280,Safe Partnership Ltd,Hired and Contracted services,2047772,202310
Rother District Council,01/11/2023,T33NBHDSERV,Neighbourhood Services,20120,Neighbourhood Services,D2513,Hired and Contracted services,18,H M Land Registry,Hired and Contracted services,2048310,202311
Rother District Council,02/11/2023,T32DIGCUSSER,Digital & Customer Services,20242,Communications-Phones,D2621,Telephones,29.36,TalkTalk Communications Ltd T/A TalkTalk Business,Telephones - Leased Line Rental,2049580,202312
Rother District Council,02/11/2023,T33NBHDSERV,Neighbourhood Services,20114,Bexhill Parks & Open Spaces,B1100,Repairs to Premises,43.07,Stark Building Materials UK Ltd t/a Jewson,Repairs to Premises,2045926,202310
Rother District Council,03/11/2023,T32ENVSERV,"Environmental Services, Licensing & Community Safety",32134,EH Pollution R + W Partnership,D2513,Hired and Contracted services,3,H M Land Registry,Hired and contracted services - Env H-Land Registry,2048297,202311
Rother District Council,03/11/2023,T32REVBEN,Revenues & Benefits,20216,Cost Of Collection,D2513,Hired and Contracted services,15,H M Land Registry,Hired and contracted services - Council Tax-Land Registry Enquiries,2048297,202311
Rother District Council,06/11/2023,T31DEMSERV,Democratic Services,20162,Electoral Registration,D2415,Printing by external suppliers,5798.49,Civica Election Services Ltd,Printing by external suppliers - Printing (Not from RDC Print Room),2047419,202310
Rother District Council,06/11/2023,T32ENVSERV,"Environmental Services, Licensing & Community Safety",32144,EH Environmental Services Admin R + W Partnership,D2626,Postages,52.08,DSI Billing Services Ltd,Postages - DSI Billing,2048409,202311
Rother District Council,06/11/2023,T32REVBEN,Revenues & Benefits,20216,Cost Of Collection,D2626,Postages,1844.24,DSI Billing Services Ltd,Postages - DSI Billing,2048409,202311
Rother District Council,06/11/2023,T31CHFFIN,Chief Finance Officer (S151),20222,Accountancy,D2626,Postages,118.93,DSI Billing Services Ltd,Postages - DSI Billing,2048409,202311
Rother District Council,06/11/2023,T32DIGCUSSER,Digital & Customer Services,20236,Customer Services and Development,D2626,Postages,12.7,DSI Billing Services Ltd,Postages - DSI Billing,2048409,202311
Rother District Council,06/11/2023,T33HOUSING,Housing,20200,Housing Needs - HB (Housing Benefit),D2626,Postages,114.88,DSI Billing Services Ltd,Postages - DSI Billing,2048409,202311
Rother District Council,06/11/2023,T33NBHDSERV,Neighbourhood Services,20120,Neighbourhood Services,D2626,Postages,40.94,DSI Billing Services Ltd,Postages - DSI Billing,2048409,202311
Rother District Council,06/11/2023,T33HREGEN,Regeneration,20122,Economic Development,D2626,Postages,0.66,DSI Billing Services Ltd,Postages - DSI Billing,2048409,202311
Rother District Council,06/11/2023,T33NBHDSERV,Neighbourhood Services,20107,Camber Beach & Foreshore,D1201,Equipment & Materials,2750,Rye Pilots,Equipment & Materials - Marker Buoys and Signs,2047086,202310
Rother District Council,06/11/2023,T31CHFFIN,Chief Finance Officer (S151),20209,Corporate management,D2513,Hired and Contracted services,294.07,Pay 360 Ltd,Bank Charges,2048332,202311
Rother District Council,07/11/2023,T33NBHDSERV,Neighbourhood Services,20137,Car Parks,D2513,Hired and Contracted services,95.78,Planet Merchant Services,Hired and contracted services - Car Parks-Card payments transaction fee,2049584,202312
Rother District Council,08/11/2023,T32DEPUTYCHF,Deputy Chief Executive,20179,Communications,E1101,Third party payment other LAs,128.57,East Sussex County Council,Third party payment other LAs - Communications-Officer costs,2046674,202310
Rother District Council,08/11/2023,T33HOUSING,Housing,20204,Housing Administration Account,D2312,Refreshments,181.91,Old Town Occasions Limited,Refreshments - Catering/Refreshments for Meetings,2049831,202312
Rother District Council,08/11/2023,T33HREGEN,Regeneration,20144,Property Management,D2513,Hired and Contracted services,1980,Park Avenue Recruitment Ltd,Hired and contracted services - Service fee paid,2048580,202311
Rother District Council,08/11/2023,T33NBHDSERV,Neighbourhood Services,20108,Bexhill Promenade & Foreshore,D2621,Telephones,8.35,Commtel Ltd T/A Teleguard,Telephones,2048191,202311
Rother District Council,09/11/2023,T31DEMSERV,Democratic Services,20156,Representing Local Interest,D2737,Vice Chairmans Allowance,50,Lloyds Bank,Vice-Chairmans Allowance - Vice  Chairmans Allowance,2049879,202312
Rother District Council,09/11/2023,T32DEPUTYCHF,Deputy Chief Executive,20179,Communications,E1101,Third party payment other LAs,-3600,East Sussex County Council,Third party payment other LAs - Communications-Officer costs,2047254,202312
Rother District Council,09/11/2023,T32DEPUTYCHF,Deputy Chief Executive,20179,Communications,E1101,Third party payment other LAs,-3600,East Sussex County Council,Third party payment other LAs - Communications-Officer costs,2047255,202312
Rother District Council,09/11/2023,T32DEPUTYCHF,Deputy Chief Executive,20179,Communications,E1101,Third party payment other LAs,-3600,East Sussex County Council,Third party payment other LAs - Communications-Officer costs,2047256,202312
Rother District Council,09/11/2023,T32DEPUTYCHF,Deputy Chief Executive,20179,Communications,E1101,Third party payment other LAs,-3600,East Sussex County Council,Third party payment other LAs - Communications-Officer costs,2047257,202312
Rother District Council,09/11/2023,T32DEPUTYCHF,Deputy Chief Executive,20179,Communications,E1101,Third party payment other LAs,-3600,East Sussex County Council,Third party payment other LAs - Communications-Officer costs,2047258,202312
Rother District Council,09/11/2023,T32DEPUTYCHF,Deputy Chief Executive,20179,Communications,E1101,Third party payment other LAs,-3600,East Sussex County Council,Third party payment other LAs - Communications-Officer costs,2047259,202312
Rother District Council,09/11/2023,T32DEPUTYCHF,Deputy Chief Executive,20179,Communications,E1101,Third party payment other LAs,-3600,East Sussex County Council,Third party payment other LAs - Communications-Officer costs,2047260,202312
Rother District Council,09/11/2023,T32DIGCUSSER,Digital & Customer Services,20242,Communications-Phones,D2621,Telephones,44.38,GCI Network Solutions Ltd / Nasstar,Telephones - KCOM Smartnumber Charges,2047205,202310
Rother District Council,09/11/2023,T33HOUSING,Housing,20204,Housing Administration Account,C2335,Public transport,7.68,Lloyds Bank,Public Transport - Train tickets,2049876,202312
Rother District Council,09/11/2023,T33HOUSING,Housing,20204,Housing Administration Account,D2513,Hired and Contracted services,270,Lloyds Bank,Hired and contracted services - Service fee paid,2049876,202312
Rother District Council,09/11/2023,T32DIGCUSSER,Digital & Customer Services,20239,Computer Services,D2513,Hired and Contracted services,7.99,Lloyds Bank,Hired and contracted services - Delivery and/or Packaging of Equipm,2049870,202312
Rother District Council,09/11/2023,T33HOUSING,Housing,20306,Afghan Relocation Assistance Policy,D2513,Hired and Contracted services,536.32,Lloyds Bank,Hired and contracted services - Afghan Misc,2049878,202312
Rother District Council,09/11/2023,T33HOUSING,Housing,20306,Afghan Relocation Assistance Policy,D2513,Hired and Contracted services,-13.98,Lloyds Bank,Hired and contracted services - Afghan Misc,2049878,202312
Rother District Council,09/11/2023,T32DIGCUSSER,Digital & Customer Services,20239,Computer Services,D2635,Computer Licences,20.66,Lloyds Bank,Computer Licences - Computer Licence Renewal,2049870,202312
Rother District Council,09/11/2023,T32DIGCUSSER,Digital & Customer Services,20239,Computer Services,D2635,Computer Licences,18,Lloyds Bank,Computer Licences - Computer Licence Renewal,2049870,202312
Rother District Council,09/11/2023,T32DIGCUSSER,Digital & Customer Services,20239,Computer Services,D2635,Computer Licences,6.03,Lloyds Bank,Computer Licences - Computer Licence Renewal,2049870,202312
Rother District Council,09/11/2023,T32DIGCUSSER,Digital & Customer Services,20239,Computer Services,D2633,Computer Equipment,953.11,Lloyds Bank,Computer Equipment - Computer peripherals,2049870,202312
Rother District Council,09/11/2023,T32DIGCUSSER,Digital & Customer Services,20239,Computer Services,D2631,Computer Equip Maintenance,7.91,Lloyds Bank,Computer Equip Maintenance - IT EQUIP MAINT,2049870,202312
Rother District Council,09/11/2023,T31DEMSERV,Democratic Services,20156,Representing Local Interest,D2736,Chairmans Allowance,100,Lloyds Bank,Chairmans Allowance - Chairmans Allowance,2049879,202312
Rother District Council,09/11/2023,T33HREGEN,Regeneration,20145,Maintenance Services,D2513,Hired and Contracted services,150,Lloyds Bank,Car Parking - On Street Car Parking,2049869,202312
Rother District Council,09/11/2023,T33NBHDSERV,Neighbourhood Services,20120,Neighbourhood Services,D2513,Hired and Contracted services,175,Lloyds Bank,Car Parking - On Street Car Parking,2049869,202312
Rother District Council,09/11/2023,T33NBHDSERV,Neighbourhood Services,20114,Bexhill Parks & Open Spaces,D2513,Hired and Contracted services,189,Lloyds Bank,Car Parking - On Street Car Parking,2049873,202312
Rother District Council,09/11/2023,T33HOUSING,Housing,20204,Housing Administration Account,D2513,Hired and Contracted services,360,Lloyds Bank,Hired and Contracted services,2049874,202312
Rother District Council,10/11/2023,T33PLANDEV,Planning Development Management,20246,Planning Applications,D2513,Hired and Contracted services,18,H M Land Registry,Hired and contracted services - Land Registry-Planning,2048298,202311
Rother District Council,10/11/2023,T31DEMSERV,Democratic Services,20164,Parish Council Elections,D2513,Hired and Contracted services,472.5,Parochial Church Council of St Barnabas Bexhill,Hired and contracted services - election misc payment-net,2047724,202310
Rother District Council,10/11/2023,T32ENVSERV,"Environmental Services, Licensing & Community Safety",20126,Sub Standard Housing,D2513,Hired and Contracted services,3,H M Land Registry,Hired and contracted services - Council Tax-Land Registry Enquiries,2048298,202311
Rother District Council,13/11/2023,T33HREGEN,Regeneration,20155,Investment properties,B2201,Electricity,32.94,Opus Energy Ltd,Electricity - Electricity Charges,2048541,202312
Rother District Council,13/11/2023,T33HREGEN,Regeneration,20148,Misc Land & Buildings,B2201,Electricity,94.06,Opus Energy Ltd,Electricity - Electricity Charges,2048541,202312
Rother District Council,13/11/2023,T31HUMANRES,Human Resources,20176,Administrative Offices - Print Room,B2201,Electricity,374.22,Opus Energy Ltd,Electricity - Electricity Charges,2048541,202312
Rother District Council,13/11/2023,T33HREGEN,Regeneration,20154,Committee Property Account,B2201,Electricity,36.03,Opus Energy Ltd,Electricity - Electricity Charges,2048541,202312
Rother District Council,13/11/2023,T33HREGEN,Regeneration,20154,Committee Property Account,B2201,Electricity,36.03,Opus Energy Ltd,Electricity - Electricity Charges,2048541,202312
Rother District Council,13/11/2023,T33HREGEN,Regeneration,20151,Udimore Workshops,B2201,Electricity,17.08,Opus Energy Ltd,Electricity - Electricity Charges,2048541,202312
Rother District Council,13/11/2023,T33HREGEN,Regeneration,20150,Peasmarsh Workshops,B2201,Electricity,21.64,Opus Energy Ltd,Electricity - Electricity Charges,2048541,202312
Rother District Council,13/11/2023,T33HREGEN,Regeneration,20104,Ancient Monuments & Gazebo,B2201,Electricity,16.73,Opus Energy Ltd,Electricity - Electricity Charges,2048541,202312
Rother District Council,13/11/2023,T31HUMANRES,Human Resources,20177,Administrative Offices - Rear Depot,B2201,Electricity,53.27,Opus Energy Ltd,Electricity - Electricity Charges,2048541,202312
Rother District Council,13/11/2023,T33HREGEN,Regeneration,20154,Committee Property Account,B2201,Electricity,18.07,Opus Energy Ltd,Electricity - Electricity Charges,2048541,202312
Rother District Council,13/11/2023,T33HREGEN,Regeneration,20154,Committee Property Account,B2201,Electricity,18.08,Opus Energy Ltd,Electricity - Electricity Charges,2048541,202312
Rother District Council,13/11/2023,T33HREGEN,Regeneration,20154,Committee Property Account,B2201,Electricity,18.07,Opus Energy Ltd,Electricity - Electricity Charges,2048541,202312
Rother District Council,13/11/2023,T33HREGEN,Regeneration,20154,Committee Property Account,B2201,Electricity,18.08,Opus Energy Ltd,Electricity - Electricity Charges,2048541,202312
Rother District Council,13/11/2023,T31HUMANRES,Human Resources,20175,Admin Building - Amherst Rd (fmr Treasurer�s building),B2201,Electricity,3192.89,Opus Energy Ltd,Electricity - Electricity Charges,2048541,202312
Rother District Council,13/11/2023,T33HREGEN,Regeneration,20154,Committee Property Account,B2201,Electricity,36.03,Opus Energy Ltd,Electricity - Electricity Charges,2048541,202312
Rother District Council,13/11/2023,T33HREGEN,Regeneration,20154,Committee Property Account,B2201,Electricity,32.66,Opus Energy Ltd,Electricity - Electricity Charges,2048541,202312
Rother District Council,13/11/2023,T33HREGEN,Regeneration,20154,Committee Property Account,B2201,Electricity,32.66,Opus Energy Ltd,Electricity - Electricity Charges,2048541,202312
Rother District Council,13/11/2023,T33HREGEN,Regeneration,20154,Committee Property Account,B2201,Electricity,32.66,Opus Energy Ltd,Electricity - Electricity Charges,2048541,202312
Rother District Council,13/11/2023,T33HREGEN,Regeneration,20154,Committee Property Account,B2201,Electricity,32.66,Opus Energy Ltd,Electricity - Electricity Charges,2048541,202312
Rother District Council,13/11/2023,T33HREGEN,Regeneration,20154,Committee Property Account,B2201,Electricity,1469.48,Opus Energy Ltd,Electricity - Electricity Charges,2048541,202312
Rother District Council,13/11/2023,T33HREGEN,Regeneration,20145,Maintenance Services,B2201,Electricity,302.52,Opus Energy Ltd,Electricity - Electricity Charges,2048541,202312
Rother District Council,13/11/2023,T33NBHDSERV,Neighbourhood Services,20128,Public Conveniences,B2201,Electricity,33.63,Opus Energy Ltd,Electricity - Electricity Charges,2048541,202312
Rother District Council,13/11/2023,T33NBHDSERV,Neighbourhood Services,20128,Public Conveniences,B2201,Electricity,30.43,Opus Energy Ltd,Electricity - Electricity Charges,2048541,202312
Rother District Council,13/11/2023,T33NBHDSERV,Neighbourhood Services,20128,Public Conveniences,B2201,Electricity,96.36,Opus Energy Ltd,Electricity - Electricity Charges,2048541,202312
Rother District Council,13/11/2023,T33NBHDSERV,Neighbourhood Services,20114,Bexhill Parks & Open Spaces,B2201,Electricity,-111.74,Opus Energy Ltd,Electricity - Electricity Charges,2048541,202312
Rother District Council,13/11/2023,T33NBHDSERV,Neighbourhood Services,20128,Public Conveniences,B2201,Electricity,-27.93,Opus Energy Ltd,Electricity - Electricity Charges,2048541,202312
Rother District Council,13/11/2023,T33NBHDSERV,Neighbourhood Services,20128,Public Conveniences,B2201,Electricity,36.73,Opus Energy Ltd,Electricity - Electricity Charges,2048541,202312
Rother District Council,13/11/2023,T33NBHDSERV,Neighbourhood Services,20128,Public Conveniences,B2201,Electricity,22.26,Opus Energy Ltd,Electricity - Electricity Charges,2048541,202312
Rother District Council,13/11/2023,T33NBHDSERV,Neighbourhood Services,20114,Bexhill Parks & Open Spaces,B2201,Electricity,42.61,Opus Energy Ltd,Electricity - Electricity Charges,2048541,202312
Rother District Council,13/11/2023,T33NBHDSERV,Neighbourhood Services,20107,Camber Beach & Foreshore,B2201,Electricity,72.25,Opus Energy Ltd,Electricity - Electricity Charges,2048541,202312
Rother District Council,13/11/2023,T33NBHDSERV,Neighbourhood Services,20128,Public Conveniences,B2201,Electricity,55.7,Opus Energy Ltd,Electricity - Electricity Charges,2048541,202312
Rother District Council,13/11/2023,T33NBHDSERV,Neighbourhood Services,20128,Public Conveniences,B2201,Electricity,146.69,Opus Energy Ltd,Electricity - Electricity Charges,2048541,202312
Rother District Council,13/11/2023,T33NBHDSERV,Neighbourhood Services,20128,Public Conveniences,B2201,Electricity,74.65,Opus Energy Ltd,Electricity - Electricity Charges,2048541,202312
Rother District Council,13/11/2023,T33NBHDSERV,Neighbourhood Services,20123,Cemeteries,B2201,Electricity,73.61,Opus Energy Ltd,Electricity - Electricity Charges,2048541,202312
Rother District Council,13/11/2023,T33NBHDSERV,Neighbourhood Services,20128,Public Conveniences,B2201,Electricity,24.33,Opus Energy Ltd,Electricity - Electricity Charges,2048541,202312
Rother District Council,13/11/2023,T33NBHDSERV,Neighbourhood Services,20128,Public Conveniences,B2201,Electricity,24.33,Opus Energy Ltd,Electricity - Electricity Charges,2048541,202312
Rother District Council,13/11/2023,T33NBHDSERV,Neighbourhood Services,20128,Public Conveniences,B2201,Electricity,44.66,Opus Energy Ltd,Electricity - Electricity Charges,2048541,202312
Rother District Council,13/11/2023,T33NBHDSERV,Neighbourhood Services,20128,Public Conveniences,B2201,Electricity,29.17,Opus Energy Ltd,Electricity - Electricity Charges,2048541,202312
Rother District Council,13/11/2023,T33NBHDSERV,Neighbourhood Services,20114,Bexhill Parks & Open Spaces,B2201,Electricity,18.89,Opus Energy Ltd,Electricity - Electricity Charges,2048541,202312
Rother District Council,13/11/2023,T33NBHDSERV,Neighbourhood Services,20115,Rye Area Parks & Gardens,B2201,Electricity,18.89,Opus Energy Ltd,Electricity - Electricity Charges,2048541,202312
Rother District Council,13/11/2023,T33NBHDSERV,Neighbourhood Services,20128,Public Conveniences,B2201,Electricity,38.45,Opus Energy Ltd,Electricity - Electricity Charges,2048541,202312
Rother District Council,13/11/2023,T33NBHDSERV,Neighbourhood Services,20114,Bexhill Parks & Open Spaces,B2201,Electricity,19.46,Opus Energy Ltd,Electricity - Electricity Charges,2048541,202312
Rother District Council,13/11/2023,T33NBHDSERV,Neighbourhood Services,20128,Public Conveniences,B2201,Electricity,4.87,Opus Energy Ltd,Electricity - Electricity Charges,2048541,202312
Rother District Council,13/11/2023,T33NBHDSERV,Neighbourhood Services,20137,Car Parks,B2201,Electricity,43.98,Opus Energy Ltd,Electricity - Electricity Charges,2048541,202312
Rother District Council,13/11/2023,T33NBHDSERV,Neighbourhood Services,20114,Bexhill Parks & Open Spaces,B2201,Electricity,33.99,Opus Energy Ltd,Electricity - Electricity Charges,2048541,202312
Rother District Council,13/11/2023,T33NBHDSERV,Neighbourhood Services,20114,Bexhill Parks & Open Spaces,B2201,Electricity,23.99,Opus Energy Ltd,Electricity - Electricity Charges,2048541,202312
Rother District Council,13/11/2023,T33NBHDSERV,Neighbourhood Services,20128,Public Conveniences,B2201,Electricity,45.65,Opus Energy Ltd,Electricity - Electricity Charges,2048541,202312
Rother District Council,13/11/2023,T33NBHDSERV,Neighbourhood Services,20128,Public Conveniences,B2201,Electricity,28.11,Opus Energy Ltd,Electricity - Electricity Charges,2048541,202312
Rother District Council,13/11/2023,T33NBHDSERV,Neighbourhood Services,20115,Rye Area Parks & Gardens,B2201,Electricity,19.15,Opus Energy Ltd,Electricity - Electricity Charges,2048541,202312
Rother District Council,13/11/2023,T33NBHDSERV,Neighbourhood Services,20102,Rother Museum Services,B2201,Electricity,1238.2,Opus Energy Ltd,Electricity - Electricity Charges,2048541,202312
Rother District Council,13/11/2023,T33NBHDSERV,Neighbourhood Services,20128,Public Conveniences,B2201,Electricity,126.63,Opus Energy Ltd,Electricity - Electricity Charges,2048541,202312
Rother District Council,13/11/2023,T33NBHDSERV,Neighbourhood Services,20114,Bexhill Parks & Open Spaces,B2201,Electricity,42.21,Opus Energy Ltd,Electricity - Electricity Charges,2048541,202312
Rother District Council,13/11/2023,T33NBHDSERV,Neighbourhood Services,20114,Bexhill Parks & Open Spaces,B2201,Electricity,54.22,Opus Energy Ltd,Electricity - Electricity Charges,2048541,202312
Rother District Council,13/11/2023,T33NBHDSERV,Neighbourhood Services,20128,Public Conveniences,B2201,Electricity,13.55,Opus Energy Ltd,Electricity - Electricity Charges,2048541,202312
Rother District Council,13/11/2023,T33NBHDSERV,Neighbourhood Services,20137,Car Parks,B2201,Electricity,31.56,Opus Energy Ltd,Electricity - Electricity Charges,2048541,202312
Rother District Council,13/11/2023,T33NBHDSERV,Neighbourhood Services,20108,Bexhill Promenade & Foreshore,B2201,Electricity,46.94,Opus Energy Ltd,Electricity - Electricity Charges,2048541,202312
Rother District Council,13/11/2023,T33NBHDSERV,Neighbourhood Services,20108,Bexhill Promenade & Foreshore,B2201,Electricity,20.76,Opus Energy Ltd,Electricity - Electricity Charges,2048541,202312
Rother District Council,13/11/2023,T33NBHDSERV,Neighbourhood Services,20108,Bexhill Promenade & Foreshore,B2201,Electricity,21.56,Opus Energy Ltd,Electricity - Electricity Charges,2048541,202312
Rother District Council,13/11/2023,T33NBHDSERV,Neighbourhood Services,20108,Bexhill Promenade & Foreshore,B2201,Electricity,72.55,Opus Energy Ltd,Electricity - Electricity Charges,2048541,202312
Rother District Council,13/11/2023,T33NBHDSERV,Neighbourhood Services,20108,Bexhill Promenade & Foreshore,B2201,Electricity,44.52,Opus Energy Ltd,Electricity - Electricity Charges,2048541,202312
Rother District Council,13/11/2023,T33NBHDSERV,Neighbourhood Services,20128,Public Conveniences,B2201,Electricity,28.8,Opus Energy Ltd,Electricity - Electricity Charges,2048541,202312
Rother District Council,13/11/2023,T33NBHDSERV,Neighbourhood Services,20107,Camber Beach & Foreshore,B2201,Electricity,158.48,Opus Energy Ltd,Electricity - Electricity Charges,2048541,202312
Rother District Council,13/11/2023,T33NBHDSERV,Neighbourhood Services,20114,Bexhill Parks & Open Spaces,B2201,Electricity,339.92,Opus Energy Ltd,Electricity - Electricity Charges,2048541,202312
Rother District Council,13/11/2023,T33NBHDSERV,Neighbourhood Services,20128,Public Conveniences,B2201,Electricity,198.29,Opus Energy Ltd,Electricity - Electricity Charges,2048541,202312
Rother District Council,13/11/2023,T33NBHDSERV,Neighbourhood Services,20128,Public Conveniences,B2201,Electricity,131.42,Opus Energy Ltd,Electricity - Electricity Charges,2048541,202312
Rother District Council,13/11/2023,T33NBHDSERV,Neighbourhood Services,20128,Public Conveniences,B2201,Electricity,94.46,Opus Energy Ltd,Electricity - Electricity Charges,2048541,202312
Rother District Council,13/11/2023,T33NBHDSERV,Neighbourhood Services,20128,Public Conveniences,B2201,Electricity,32.94,Opus Energy Ltd,Electricity - Electricity Charges,2048541,202312
Rother District Council,13/11/2023,T33NBHDSERV,Neighbourhood Services,20128,Public Conveniences,B2201,Electricity,236.44,Opus Energy Ltd,Electricity - Electricity Charges,2048541,202312
Rother District Council,13/11/2023,T33NBHDSERV,Neighbourhood Services,20128,Public Conveniences,B2201,Electricity,68.44,Opus Energy Ltd,Electricity - Electricity Charges,2048541,202312
Rother District Council,13/11/2023,T33NBHDSERV,Neighbourhood Services,20128,Public Conveniences,B2201,Electricity,180.23,Opus Energy Ltd,Electricity - Electricity Charges,2048541,202312
Rother District Council,13/11/2023,T33NBHDSERV,Neighbourhood Services,20128,Public Conveniences,B2201,Electricity,89.88,Opus Energy Ltd,Electricity - Electricity Charges,2048541,202312
Rother District Council,13/11/2023,T33NBHDSERV,Neighbourhood Services,20128,Public Conveniences,B2201,Electricity,233.23,Opus Energy Ltd,Electricity - Electricity Charges,2048541,202312
Rother District Council,13/11/2023,T33NBHDSERV,Neighbourhood Services,20128,Public Conveniences,B2201,Electricity,55.32,Opus Energy Ltd,Electricity - Electricity Charges,2048541,202312
Rother District Council,13/11/2023,T33NBHDSERV,Neighbourhood Services,20108,Bexhill Promenade & Foreshore,B2201,Electricity,36.03,Opus Energy Ltd,Electricity - Electricity Charges,2048541,202312
Rother District Council,13/11/2023,T33NBHDSERV,Neighbourhood Services,20108,Bexhill Promenade & Foreshore,B2201,Electricity,16.33,Opus Energy Ltd,Electricity - Electricity Charges,2048541,202312
Rother District Council,13/11/2023,T33NBHDSERV,Neighbourhood Services,20108,Bexhill Promenade & Foreshore,B2201,Electricity,16.33,Opus Energy Ltd,Electricity - Electricity Charges,2048541,202312
Rother District Council,13/11/2023,T32DIGCUSSER,Digital & Customer Services,20242,Communications-Phones,D2621,Telephones,553.06,O2 (UK) Ltd now known as Telefonica UK Ltd,Telephones,2048216,202311
Rother District Council,13/11/2023,T32DIGCUSSER,Digital & Customer Services,20242,Communications-Phones,D2621,Telephones,397,O2 (UK) Ltd now known as Telefonica UK Ltd,Telephones,2048215,202311
Rother District Council,13/11/2023,T32DIGCUSSER,Digital & Customer Services,20242,Communications-Phones,D2621,Telephones,110,O2 (UK) Ltd now known as Telefonica UK Ltd,Telephones,2048219,202311
Rother District Council,13/11/2023,T32DIGCUSSER,Digital & Customer Services,20242,Communications-Phones,D2621,Telephones,155,O2 (UK) Ltd now known as Telefonica UK Ltd,Telephones,2048221,202311
Rother District Council,13/11/2023,T32DIGCUSSER,Digital & Customer Services,20242,Communications-Phones,D2621,Telephones,601,O2 (UK) Ltd now known as Telefonica UK Ltd,Telephones,2048227,202311
Rother District Council,13/11/2023,T32DIGCUSSER,Digital & Customer Services,20242,Communications-Phones,D2621,Telephones,55,O2 (UK) Ltd now known as Telefonica UK Ltd,Telephones,2048229,202311
Rother District Council,14/11/2023,T33HREGEN,Regeneration,20144,Property Management,D2513,Hired and Contracted services,3,H M Land Registry,Hired and contracted services - Land Registry-Property Management,2048312,202311
Rother District Council,14/11/2023,T33PLANDEV,Planning Development Management,20246,Planning Applications,D2513,Hired and Contracted services,21,H M Land Registry,Hired and contracted services - Land Registry-Planning,2048312,202311
Rother District Council,14/11/2023,T32ENVSERV,"Environmental Services, Licensing & Community Safety",20129,Community Safety - CCTV costs only,D2513,Hired and Contracted services,3,H M Land Registry,Hired and contracted services - Env H-Land Registry,2048312,202311
Rother District Council,14/11/2023,T32REVBEN,Revenues & Benefits,20216,Cost Of Collection,D2513,Hired and Contracted services,24,H M Land Registry,Hired and contracted services - Council Tax-Land Registry Enquiries,2048312,202311
Rother District Council,14/11/2023,T33NBHDSERV,Neighbourhood Services,20109,Sports Development,D2923,Grants made,500,Bexhill Breathers,Grants made - Sports Development-Active Rother,2047336,202310
Rother District Council,14/11/2023,T33NBHDSERV,Neighbourhood Services,20109,Sports Development,D2923,Grants made,645,Bexhill Breathers,Grants made - Active Sussex Project workforce dev.,2047335,202310
Rother District Council,14/11/2023,T31CHFFIN,Chief Finance Officer (S151),20209,Corporate management,D2513,Hired and Contracted services,310.2,Lloyds Bank,Bank Charges,2049596,202312
Rother District Council,15/11/2023,T33HOUSING,Housing,20206,UK Resettlement (Syrians),D2513,Hired and Contracted services,1920,REDACTED PERSONAL DATA,Hired and contracted services - Syrian-Education-Exempt VAT,2049283,202312
Rother District Council,15/11/2023,T33HOUSING,Housing,20306,Afghan Relocation Assistance Policy,D2513,Hired and Contracted services,200,REDACTED PERSONAL DATA,Hired and contracted services - Afghan Misc,2047569,202310
Rother District Council,15/11/2023,T33HREGEN,Regeneration,20150,Peasmarsh Workshops,B2201,Electricity,81,Opus Energy Ltd,Electricity - Electricity Charges,2049386,202312
Rother District Council,15/11/2023,T32ENVSERV,"Environmental Services, Licensing & Community Safety",32136,EH Pest Control R + W Partnership,C1104,Derv,3.8,Allstar Business Solutions,Derv - Fuel Service fee payable on fuel cards,2048211,202311
Rother District Council,15/11/2023,T33HREGEN,Regeneration,20145,Maintenance Services,C1104,Derv,13.6,Allstar Business Solutions,Derv - Fuel Service fee payable on fuel cards,2048211,202311
Rother District Council,15/11/2023,T32ENVSERV,"Environmental Services, Licensing & Community Safety",32136,EH Pest Control R + W Partnership,C1104,Derv,91.68,Allstar Business Solutions,Derv,2048211,202311
Rother District Council,15/11/2023,T33HREGEN,Regeneration,20145,Maintenance Services,C1104,Derv,73.05,Allstar Business Solutions,Derv,2048211,202311
Rother District Council,15/11/2023,T33HREGEN,Regeneration,20145,Maintenance Services,C1104,Derv,101.41,Allstar Business Solutions,Derv,2048211,202311
Rother District Council,15/11/2023,T33HREGEN,Regeneration,20145,Maintenance Services,C1104,Derv,77.73,Allstar Business Solutions,Derv,2048211,202311
Rother District Council,16/11/2023,T33NBHDSERV,Neighbourhood Services,20128,Public Conveniences,B2421,Water,6009.68,Castle Water Ltd,Water - Water Charges,2047290,202310
Rother District Council,16/11/2023,T33PLANDEV,Planning Development Management,20246,Planning Applications,D2513,Hired and Contracted services,18,H M Land Registry,Hired and contracted services - Land Registry-Planning,2048317,202311
Rother District Council,16/11/2023,T33HOUSING,Housing,20202,Rother Tenant Finder (prev Rother Letting Service),D2513,Hired and Contracted services,3,H M Land Registry,Hired and contracted services - Housing-Land Registry,2048317,202311
Rother District Council,16/11/2023,T32ENVSERV,"Environmental Services, Licensing & Community Safety",20129,Community Safety - CCTV costs only,D2513,Hired and Contracted services,3,H M Land Registry,Hired and contracted services - Env H-Land Registry,2048317,202311
Rother District Council,16/11/2023,T32ENVSERV,"Environmental Services, Licensing & Community Safety",32134,EH Pollution R + W Partnership,D2513,Hired and Contracted services,3,H M Land Registry,Hired and contracted services - Env H-Land Registry,2048317,202311
Rother District Council,16/11/2023,T32ENVSERV,"Environmental Services, Licensing & Community Safety",32144,EH Environmental Services Admin R + W Partnership,D2513,Hired and Contracted services,6,H M Land Registry,Hired and contracted services - Env H-Land Registry,2048317,202311
Rother District Council,16/11/2023,T32REVBEN,Revenues & Benefits,20216,Cost Of Collection,D2513,Hired and Contracted services,9,H M Land Registry,Hired and contracted services - Council Tax-Land Registry Enquiries,2048317,202311
Rother District Council,16/11/2023,T33NBHDSERV,Neighbourhood Services,20120,Neighbourhood Services,D2513,Hired and Contracted services,18,H M Land Registry,Hired and Contracted services,2048317,202311
Rother District Council,17/11/2023,T33PLANDEV,Planning Development Management,20246,Planning Applications,D2513,Hired and Contracted services,12,H M Land Registry,Hired and contracted services - Land Registry-Planning,2048283,202311
Rother District Council,17/11/2023,T32REVBEN,Revenues & Benefits,20216,Cost Of Collection,D2513,Hired and Contracted services,3,H M Land Registry,Hired and contracted services - Council Tax-Land Registry Enquiries,2048283,202311
Rother District Council,17/11/2023,T3ZCAPITAL,Capital,70706,Capital - Disabled Facilities Grant,N1011,Capital Grants,7224,Prestige Stairlifts Ltd,Capital Grants - Capital Advances Disabled Facilities Grant,2047379,202310
Rother District Council,20/11/2023,T33NBHDSERV,Neighbourhood Services,20108,Bexhill Promenade & Foreshore,B1100,Repairs to Premises,580,EA Group UK Ltd,Repairs to Premises - Beach maintenance,2046973,202310
Rother District Council,20/11/2023,T31HUMANRES,Human Resources,20170,Communications-Postages,D2626,Postages,63,Royal Mail Group Ltd,Postages - Response Service-Royal Mail Chg,2047228,202310
Rother District Council,20/11/2023,T31HUMANRES,Human Resources,20173,Administrative Offices - Town Hall,D2513,Hired and Contracted services,65.34,Speedy Asset Services Ltd,Hired and contracted services - Hire of Scaffolding,2047148,202310
Rother District Council,20/11/2023,T33HOUSING,Housing,20261,"TA Purchases (prev - 41 Jameson Mews, Bexhill on Sea)",D2513,Hired and Contracted services,312,Thomas Building & Refurbishment Ltd,Hired and Contracted services,2047381,202310
Rother District Council,20/11/2023,T33HOUSING,Housing,20261,"TA Purchases (prev - 41 Jameson Mews, Bexhill on Sea)",D2513,Hired and Contracted services,187.71,Thomas Building & Refurbishment Ltd,Hired and Contracted services,2047381,202310
Rother District Council,21/11/2023,T33HOUSING,Housing,20285,Housing Development Team,A2203,Training,780,M3 Housing Ltd,Training,2048951,202311
Rother District Council,21/11/2023,T3ZCAPITAL,Capital,70751,Capital - Temporary Accommodation,N1005,Other fees,60,HFS - Hastings Furniture Service Ltd,Other Fees - Capital exp Std VAT,2049769,202312
Rother District Council,21/11/2023,T3ZCAPITAL,Capital,70751,Capital - Temporary Accommodation,N1005,Other fees,8.33,HFS - Hastings Furniture Service Ltd,Other Fees - Capital exp Std VAT,2049769,202312
Rother District Council,21/11/2023,T33NBHDSERV,Neighbourhood Services,20138,Residual Highway Services,D1201,Equipment & Materials,117.18,Stark Building Materials UK Ltd t/a Jewson,Equipment & Materials - Purchase of Street Name Plates/Numb,2047283,202310
Rother District Council,21/11/2023,T32DIGCUSSER,Digital & Customer Services,20239,Computer Services,D2635,Computer Licences,7480.4,Specialist Computer Centres PLC (SCC),Computer Licences - Computer Licence Renewal,2047397,202310
Rother District Council,22/11/2023,T33HOUSING,Housing,20205,Housing Loans Account,D2514,Accommodation Costs,1000,Leeside Estates Ltd,Accommodation Costs - Homelessness services Rent in Advance for Homeless,2049593,202312
Rother District Council,22/11/2023,T33HOUSING,Housing,20202,Rother Tenant Finder (prev Rother Letting Service),D2514,Accommodation Costs,2000,Leeside Estates Ltd,Accommodation Costs - Homelessness services Housing Landlord Scheme-Rent payment,2049593,202312
Rother District Council,22/11/2023,T33HOUSING,Housing,20205,Housing Loans Account,D2514,Accommodation Costs,1154,Leeside Estates Ltd,Accommodation Costs - Homelessness services Deposit for Landlords,2049593,202312
Rother District Council,22/11/2023,T33HOUSING,Housing,20261,"TA Purchases (prev - 41 Jameson Mews, Bexhill on Sea)",D2513,Hired and Contracted services,3335.4,Thomas Building & Refurbishment Ltd,Hired and Contracted services,2047382,202310
Rother District Council,22/11/2023,T33HOUSING,Housing,20261,"TA Purchases (prev - 41 Jameson Mews, Bexhill on Sea)",D2513,Hired and Contracted services,1205.35,Thomas Building & Refurbishment Ltd,Hired and Contracted services,2047382,202310
Rother District Council,23/11/2023,T32ENVSERV,"Environmental Services, Licensing & Community Safety",32144,EH Environmental Services Admin R + W Partnership,A2203,Training,100,The Martial Arts Centre Eastbourne ltd,Training,2047238,202310
Rother District Council,23/11/2023,T33HOUSING,Housing,20204,Housing Administration Account,D2513,Hired and Contracted services,448.96,Corserv Care Limited,Hired and contracted services - RDC Homelessness Out Of Hours Call Answering Service,2047149,202310
Rother District Council,23/11/2023,T32ENVSERV,"Environmental Services, Licensing & Community Safety",32134,EH Pollution R + W Partnership,D2513,Hired and Contracted services,43.9,Corserv Care Limited,Hired and contracted services - RDC ENV H Out Of Hours Call Answering Service,2047149,202310
Rother District Council,23/11/2023,T33NBHDSERV,Neighbourhood Services,20114,Bexhill Parks & Open Spaces,D2513,Hired and Contracted services,9.5,Hockerill Engraving,Hired and contracted services - Delivery and/or Packaging of Equipm,2048027,202310
Rother District Council,23/11/2023,T33HREGEN,Regeneration,20145,Maintenance Services,D1201,Equipment & Materials,44.98,Stark Building Materials UK Ltd t/a Jewson,Equipment & Materials - Purchase of Materials for 3rd parties - Build Maint,2047284,202310
Rother District Council,23/11/2023,T33NBHDSERV,Neighbourhood Services,20114,Bexhill Parks & Open Spaces,D1201,Equipment & Materials,40,Hockerill Engraving,Equipment & Materials - Parks Purchase of Seats/ Benches/Plaques,2048027,202310
Rother District Council,24/11/2023,T33HREGEN,Regeneration,20338,7-12 Beeching Road Studios ( Regeneration Project ),B2421,Water,319.64,Castle Water Ltd,Water - Water Charges,2047621,202310
Rother District Council,24/11/2023,T33PLANDEV,Planning Development Management,20246,Planning Applications,A2203,Training,400,Sue Manns Associates Limited,Training,2047127,202310
Rother District Council,24/11/2023,T33NBHDSERV,Neighbourhood Services,20128,Public Conveniences,B1100,Repairs to Premises,538.97,Specialist Hygiene Services Ltd,Repairs to Premises - Public Conveniences - Various repairs,2047146,202310
Rother District Council,24/11/2023,T33HREGEN,Regeneration,20155,Investment properties,B1100,Repairs to Premises,175,B and G Environmental Services Limited,Repairs to Premises - Empty gully and jet drain,2047398,202310
Rother District Council,24/11/2023,T33PLANDEV,Planning Development Management,20246,Planning Applications,D2513,Hired and Contracted services,63,H M Land Registry,Hired and contracted services - Land Registry-Planning,2048282,202311
Rother District Council,24/11/2023,T32ENVSERV,"Environmental Services, Licensing & Community Safety",32144,EH Environmental Services Admin R + W Partnership,D2513,Hired and Contracted services,12,H M Land Registry,Hired and contracted services - Env H-Land Registry,2048282,202311
Rother District Council,24/11/2023,T33PLANDEV,Planning Development Management,20258,BC Dangerous Structures H+R Partnership,D2513,Hired and Contracted services,6,H M Land Registry,Hired and contracted services - Env H-Land Registry,2048282,202311
Rother District Council,24/11/2023,T33HOUSING,Housing,20200,Housing Needs - HB (Housing Benefit),D2513,Hired and Contracted services,3,H M Land Registry,Hired and contracted services - Env H-Land Registry,2048282,202311
Rother District Council,24/11/2023,T32REVBEN,Revenues & Benefits,20216,Cost Of Collection,D2513,Hired and Contracted services,18,H M Land Registry,Hired and contracted services - Council Tax-Land Registry Enquiries,2048282,202311
Rother District Council,24/11/2023,T31HUMANRES,Human Resources,20176,Administrative Offices - Print Room,B2202,Gas,177.56,Laser Energy Buying Group (Kent County Council Commercial Services),Gas - Gas Charges,2047495,202310
Rother District Council,24/11/2023,T31HUMANRES,Human Resources,20175,Admin Building - Amherst Rd (fmr Treasurer�s building),B2202,Gas,665.24,Laser Energy Buying Group (Kent County Council Commercial Services),Gas - Gas Charges,2047495,202310
Rother District Council,24/11/2023,T31HUMANRES,Human Resources,20173,Administrative Offices - Town Hall,B2202,Gas,1396.19,Laser Energy Buying Group (Kent County Council Commercial Services),Gas - Gas Charges,2047495,202310
Rother District Council,24/11/2023,T33HREGEN,Regeneration,20154,Committee Property Account,B2202,Gas,15.19,Laser Energy Buying Group (Kent County Council Commercial Services),Gas - Gas Charges,2047495,202310
Rother District Council,24/11/2023,T33NBHDSERV,Neighbourhood Services,20114,Bexhill Parks & Open Spaces,B2202,Gas,61.96,Laser Energy Buying Group (Kent County Council Commercial Services),Electricity - Electricity Charges,2047496,202310
Rother District Council,24/11/2023,T33NBHDSERV,Neighbourhood Services,20128,Public Conveniences,B2202,Gas,15.49,Laser Energy Buying Group (Kent County Council Commercial Services),Electricity - Electricity Charges,2047496,202310
Rother District Council,24/11/2023,T33NBHDSERV,Neighbourhood Services,20128,Public Conveniences,B2202,Gas,7.73,Laser Energy Buying Group (Kent County Council Commercial Services),Electricity - Electricity Charges,2047496,202310
Rother District Council,24/11/2023,T33NBHDSERV,Neighbourhood Services,20114,Bexhill Parks & Open Spaces,B2202,Gas,30.91,Laser Energy Buying Group (Kent County Council Commercial Services),Electricity - Electricity Charges,2047496,202310
Rother District Council,24/11/2023,T33NBHDSERV,Neighbourhood Services,20114,Bexhill Parks & Open Spaces,B2202,Gas,29.68,Laser Energy Buying Group (Kent County Council Commercial Services),Electricity - Electricity Charges,2047496,202310
Rother District Council,24/11/2023,T33NBHDSERV,Neighbourhood Services,20128,Public Conveniences,B2202,Gas,7.42,Laser Energy Buying Group (Kent County Council Commercial Services),Electricity - Electricity Charges,2047496,202310
Rother District Council,24/11/2023,T33NBHDSERV,Neighbourhood Services,20128,Public Conveniences,B2202,Gas,7.33,Laser Energy Buying Group (Kent County Council Commercial Services),Electricity - Electricity Charges,2047496,202310
Rother District Council,24/11/2023,T33NBHDSERV,Neighbourhood Services,20128,Public Conveniences,B2202,Gas,29.33,Laser Energy Buying Group (Kent County Council Commercial Services),Electricity - Electricity Charges,2047496,202310
Rother District Council,24/11/2023,T33NBHDSERV,Neighbourhood Services,20128,Public Conveniences,B2202,Gas,-18.98,Laser Energy Buying Group (Kent County Council Commercial Services),Electricity - Electricity Charges,2047496,202310
Rother District Council,24/11/2023,T33NBHDSERV,Neighbourhood Services,20120,Neighbourhood Services,D2513,Hired and Contracted services,3,H M Land Registry,Hired and Contracted services,2048282,202311
Rother District Council,25/11/2023,T31HUMANRES,Human Resources,20171,Human Resources,A2203,Training,818.1,Croner Group Ltd,Training,2048335,202311
Rother District Council,25/11/2023,T31HUMANRES,Human Resources,20171,Human Resources,A2203,Training,101.81,Croner Group Ltd,Training,2048335,202311
Rother District Council,25/11/2023,T33PLANDEV,Planning Development Management,20246,Planning Applications,D2518,Advertising,15.65,Pipers News Ltd,Advertising - Newspapers/Magazine,2047150,202310
Rother District Council,26/11/2023,T33PLANDEV,Planning Development Management,20246,Planning Applications,E2302,Third party payment private contractors,266.7,Curley Consultants,Third Party Private contractors,2047147,202310
Rother District Council,27/11/2023,T32DIGCUSSER,Digital & Customer Services,20242,Communications-Phones,D2621,Telephones,378.91,BT British Telecommunications plc,Telephones - BT-Rental-General,2046972,202310
Rother District Council,27/11/2023,T32DIGCUSSER,Digital & Customer Services,20242,Communications-Phones,D2621,Telephones,80,BT British Telecommunications plc,Telephones - BT-Rental-General,2046972,202310
Rother District Council,27/11/2023,T31DEMSERV,Democratic Services,20162,Electoral Registration,D2415,Printing by external suppliers,14019.86,Civica Election Services Ltd,Printing by external suppliers - Printing (Not from RDC Print Room),2047866,202310
Rother District Council,27/11/2023,T3ZCAPITAL,Capital,70779,Capital - The Heart of Sidley Community Hub Project,N1004,Architects & Consultant Fees,1600,MGAC LLP,Architects & Consultant Fees Capital-Architect and Conslt Fees,2047399,202310
Rother District Council,28/11/2023,T31HUMANRES,Human Resources,20173,Administrative Offices - Town Hall,B1100,Repairs to Premises,118.5,Alfa Electric Ltd,Repairs to Premises - Repairs - Electrical Works,2047404,202310
Rother District Council,28/11/2023,T33HOUSING,Housing,20261,"TA Purchases (prev - 41 Jameson Mews, Bexhill on Sea)",B1100,Repairs to Premises,12.96,Stark Building Materials UK Ltd t/a Jewson,Repairs to Premises - Purchase of Materials - Build Maint,2047285,202310
Rother District Council,28/11/2023,T33NBHDSERV,Neighbourhood Services,20108,Bexhill Promenade & Foreshore,B1100,Repairs to Premises,79.94,Four Seasons Plastics,Repairs to Premises - Purchase of Materials - Build Maint,2047403,202310
Rother District Council,28/11/2023,T33NBHDSERV,Neighbourhood Services,20137,Car Parks,D2626,Postages,20,Flowbird Smart City UK Ltd,Postages - Carriage of Supplies,2047402,202310
Rother District Council,28/11/2023,T33HOUSING,Housing,20304,Housing First,D2513,Hired and Contracted services,790,Poulton Remedial Services Ltd,Hired and contracted services - Service fee paid,2047401,202310
Rother District Council,28/11/2023,T33HOUSING,Housing,20204,Housing Administration Account,D2513,Hired and Contracted services,93.6,Vandu Language Services Ltd,Hired and contracted services - Service fee paid,2049784,202312
Rother District Council,28/11/2023,T33NBHDSERV,Neighbourhood Services,20114,Bexhill Parks & Open Spaces,D2513,Hired and Contracted services,9.5,Hockerill Engraving,Hired and contracted services - Delivery and/or Packaging of Equipm,2048028,202310
Rother District Council,28/11/2023,T32DIGCUSSER,Digital & Customer Services,20241,Stationery,D2420,General office supplies (Stationery purchased from ext suppliers),22.56,Banner Group Ltd,General office supplies - Stationery (Stationery Services to buy ONLY),2046954,202310
Rother District Council,28/11/2023,T32DIGCUSSER,Digital & Customer Services,20241,Stationery,D2420,General office supplies (Stationery purchased from ext suppliers),177.3,Banner Group Ltd,General office supplies - Stationery (Stationery Services to buy ONLY),2046956,202310
Rother District Council,28/11/2023,T33NBHDSERV,Neighbourhood Services,20108,Bexhill Promenade & Foreshore,D1201,Equipment & Materials,250,Thomas Design & Graphics Ltd,Equipment & Materials - Purchase of Signs,2047030,202310
Rother District Council,28/11/2023,T33HREGEN,Regeneration,20145,Maintenance Services,D1201,Equipment & Materials,1112.5,GT Access Ltd,Equipment & Materials - Purchase of Materials for 3rd parties - Build Maint,2047400,202310
Rother District Council,28/11/2023,T33NBHDSERV,Neighbourhood Services,20114,Bexhill Parks & Open Spaces,D1201,Equipment & Materials,54,Hockerill Engraving,Equipment & Materials - Parks Purchase of Seats/ Benches/Plaques,2048028,202310
Rother District Council,28/11/2023,T33NBHDSERV,Neighbourhood Services,20137,Car Parks,D1201,Equipment & Materials,199,Flowbird Smart City UK Ltd,Equipment & Materials - Car Parks various,2047402,202310
Rother District Council,28/11/2023,T31CHFFIN,Chief Finance Officer (S151),20209,Corporate management,D2511,Bank Charges,964.95,Card Processing Advisory Service Ltd,Bank Charges,2047151,202310
Rother District Council,28/11/2023,T33HOUSING,Housing,20200,Housing Needs - HB (Housing Benefit),D2508,Removals and Storage,27.5,Witham Brothers Ltd,Removals and Storage,2046613,202312
Rother District Council,29/11/2023,T33PLANDEV,Planning Development Management,20246,Planning Applications,E2302,Third party payment private contractors,4140,Socotec UK Ltd,Third Party Private contractors,2047265,202310
Rother District Council,29/11/2023,T33NBHDSERV,Neighbourhood Services,20137,Car Parks,B1100,Repairs to Premises,65,Alfa Electric Ltd,Repairs to Premises - Repairs - Electrical Works,2047405,202310
Rother District Council,29/11/2023,T33NBHDSERV,Neighbourhood Services,20125,Coast Protection,B1100,Repairs to Premises,1082.4,Coppard Plant Hire Ltd,Repairs to Premises - Beach maintenance,2047013,202310
Rother District Council,29/11/2023,T32DIGCUSSER,Digital & Customer Services,20241,Stationery,D2638,Photocopier Contracts,1269.35,Konica Minolta Business Solutions (UK) Ltd,Photocopier Contracts,2047755,202310
Rother District Council,29/11/2023,T33NBHDSERV,Neighbourhood Services,20107,Camber Beach & Foreshore,D2513,Hired and Contracted services,8409.7,The Police and Crime Commissioner for Sussex,Hired and contracted services - Funding-Operation Radcott Camber,2047224,202310
Rother District Council,29/11/2023,T32DIGCUSSER,Digital & Customer Services,20239,Computer Services,D2633,Computer Equipment,1019.6,Specialist Computer Centres PLC (SCC),Computer Equipment - Advance Pay Maint Web Cont Man Sys,2048033,202311
Rother District Council,29/11/2023,T3ZCAPITAL,Capital,70777,Capital - LUF De La Warr Pavilion Project,N1004,Architects & Consultant Fees,1625,Precision Resource Group Ltd,Architects & Consultants Fees - Project support consultancy,2047174,202310
Rother District Council,29/11/2023,T3ZCAPITAL,Capital,70735,Capital - Beeching Road Hotel & Foodstore Development,N1004,Architects & Consultant Fees,1625,Precision Resource Group Ltd,Architects & Consultants Fees - Project support consultancy,2047174,202310
Rother District Council,29/11/2023,T3ZCAPITAL,Capital,70737,Capital � Barnhorn Green,N1004,Architects & Consultant Fees,3000,Precision Resource Group Ltd,Architects & Consultants Fees - Project support consultancy,2047188,202310
Rother District Council,29/11/2023,T3ZCAPITAL,Capital,70725,Capital - Blackfriars,N1004,Architects & Consultant Fees,3000,Precision Resource Group Ltd,Architects & Consultants Fees - Project support consultancy,2047188,202310
Rother District Council,29/11/2023,T3ZCAPITAL,Capital,70781,Capital - Camber Sands Welcome Centre,N1004,Architects & Consultant Fees,2400,Sweco UK Limited,Architects & Consultant Fees Capital-Architect and Conslt Fees,2047406,202310
Rother District Council,29/11/2023,T3ZCAPITAL,Capital,70777,Capital - LUF De La Warr Pavilion Project,N1004,Architects & Consultant Fees,49909.2,Rider Levett Bucknall UK LTD (RLB),Architects & Consultant Fees Capital-Architect and Conslt Fees,2047622,202310
Rother District Council,30/11/2023,T33NBHDSERV,Neighbourhood Services,20114,Bexhill Parks & Open Spaces,B2421,Water,71.21,Castle Water Ltd,Water - Water Charges,2047597,202310
Rother District Council,30/11/2023,T33DIRPLACLI,Director - Place & Climate Change,20350,Director of Place and Climate Change,A2203,Training,1680,The Open University,Training,2047467,202310
Rother District Council,30/11/2023,T33NBHDSERV,Neighbourhood Services,20133,Refuse Collection,E2302,Third party payment private contractors,67.73,CFH Docmail Ltd,Third party payment private contractors - Payments to Contractor,2047221,202310
Rother District Council,30/11/2023,T33NBHDSERV,Neighbourhood Services,20133,Refuse Collection,E2302,Third party payment private contractors,174.8,Biffa Waste Services Ltd,Third party payment private contractors - Commercial Waste Collection Contract,2047189,202310
Rother District Council,30/11/2023,T33NBHDSERV,Neighbourhood Services,20133,Refuse Collection,E2302,Third party payment private contractors,79.25,Biffa Waste Services Ltd,Third party payment private contractors - Commercial Waste Collection Contract,2047190,202310
Rother District Council,30/11/2023,T33NBHDSERV,Neighbourhood Services,20133,Refuse Collection,E2302,Third party payment private contractors,31.7,Biffa Waste Services Ltd,Third party payment private contractors - Commercial Waste Collection Contract,2047409,202310
Rother District Council,30/11/2023,T33NBHDSERV,Neighbourhood Services,20133,Refuse Collection,E2302,Third party payment private contractors,87.4,Biffa Waste Services Ltd,Third party payment private contractors - Commercial Waste Collection Contract,2047410,202310
Rother District Council,30/11/2023,T33NBHDSERV,Neighbourhood Services,20133,Refuse Collection,E2302,Third party payment private contractors,349.91,Biffa Waste Services Ltd,Third party payment private contractors - Commercial Waste Collection Contract,2047468,202310
Rother District Council,30/11/2023,T32DIGCUSSER,Digital & Customer Services,20239,Computer Services,D2621,Telephones,489.51,MLL Telecom Ltd,Telephones - Broadband Connection,2048040,202310
Rother District Council,30/11/2023,T31DEMSERV,Democratic Services,20162,Electoral Registration,D2415,Printing by external suppliers,1170.67,Civica Election Services Ltd,Printing by external suppliers - Printing (Not from RDC Print Room),2047459,202310
Rother District Council,30/11/2023,T31CHFEXEC,Chief Executive,20183,Chief Executive,D2513,Hired and Contracted services,5250,Penna PLC,Hired and contracted services - Staff Recruitment Fee,2047208,202310
Rother District Council,30/11/2023,T33HREGEN,Regeneration,20122,Economic Development,D2513,Hired and Contracted services,3250,Penna PLC,Hired and contracted services - Staff Recruitment Fee,2048565,202311
Rother District Council,30/11/2023,T32ENVSERV,"Environmental Services, Licensing & Community Safety",32142,EH Taxi and Private Hire Licences R + W Partnership,D2513,Hired and Contracted services,532,DBS The Disclosure and Barring Service,Hired and contracted services - Service fee paid,2047185,202310
Rother District Council,30/11/2023,T33PLANPOL,Planning Policy,20255,Local Development Framework,D2513,Hired and Contracted services,6429.5,Aspinall Verdi Limited,Hired and contracted services - LDF Consultancy,2047482,202310
Rother District Council,30/11/2023,T33PLANDEV,Planning Development Management,20246,Planning Applications,D2513,Hired and Contracted services,9,H M Land Registry,Hired and contracted services - Land Registry-Planning,2048320,202311
Rother District Council,30/11/2023,T33HOUSING,Housing,20200,Housing Needs - HB (Housing Benefit),D2513,Hired and Contracted services,3,H M Land Registry,Hired and contracted services - Housing-Land Registry,2048320,202311
Rother District Council,30/11/2023,T33HREGEN,Regeneration,20145,Maintenance Services,D2513,Hired and Contracted services,395,R French and  Son Ltd,Hired and contracted services - Hire of Skip,2047469,202310
Rother District Council,30/11/2023,T32ENVSERV,"Environmental Services, Licensing & Community Safety",32144,EH Environmental Services Admin R + W Partnership,D2513,Hired and Contracted services,15,H M Land Registry,Hired and contracted services - Env H-Land Registry,2048320,202311
Rother District Council,30/11/2023,T32ENVSERV,"Environmental Services, Licensing & Community Safety",20129,Community Safety - CCTV costs only,D2513,Hired and Contracted services,3,H M Land Registry,Hired and contracted services - Env H-Land Registry,2048320,202311
Rother District Council,30/11/2023,T33PLANDEV,Planning Development Management,20258,BC Dangerous Structures H+R Partnership,D2513,Hired and Contracted services,9,H M Land Registry,Hired and contracted services - Env H-Land Registry,2048320,202311
Rother District Council,30/11/2023,T32REVBEN,Revenues & Benefits,20216,Cost Of Collection,D2513,Hired and Contracted services,21,H M Land Registry,Hired and contracted services - Council Tax-Land Registry Enquiries,2048320,202311
Rother District Council,30/11/2023,T31HUMANRES,Human Resources,20171,Human Resources,D2513,Hired and Contracted services,23.44,Computershare Voucher Services,Hired and contracted services - Child Care Voucher Service Charge,2048186,202311
Rother District Council,30/11/2023,T31CHFFIN,Chief Finance Officer (S151),20209,Corporate management,D2513,Hired and Contracted services,24.34,allpay.net Ltd,Hired and contracted services - Allpay Card/Rep/Let Chrg - Vatable,2048201,202311
Rother District Council,30/11/2023,T31CHFFIN,Chief Finance Officer (S151),20209,Corporate management,D2513,Hired and Contracted services,11.72,allpay.net Ltd,Hired and contracted services - Allpay Card/Rep/Let Chrg - Vatable,2048200,202311
Rother District Council,30/11/2023,T31CHFFIN,Chief Finance Officer (S151),20209,Corporate management,D2513,Hired and Contracted services,14.43,allpay.net Ltd,Hired and contracted services - Allpay Card/Rep/Let Chrg - Vatable,2048199,202311
Rother District Council,30/11/2023,T31CHFFIN,Chief Finance Officer (S151),20209,Corporate management,D2513,Hired and Contracted services,798.52,allpay.net Ltd,Hired and contracted services - Allpay Card/Rep/Let Chrg - Vatable,2048197,202311
Rother District Council,30/11/2023,T33HOUSING,Housing,20306,Afghan Relocation Assistance Policy,D2513,Hired and Contracted services,124.58,Migrant Help Trading Ltd t/a Clear Voice,Hired and contracted services - Afghan-Translation Services,2048047,202312
Rother District Council,30/11/2023,T32DIGCUSSER,Digital & Customer Services,20240,Printing Services,D1201,Equipment & Materials,9.95,Canon (UK) Ltd,Equipment & Materials - Carriage/Handling Charge,2047466,202310
Rother District Council,30/11/2023,T32ENVSERV,"Environmental Services, Licensing & Community Safety",32136,EH Pest Control R + W Partnership,C1104,Derv,5.7,Allstar Business Solutions,Derv - Fuel Service fee payable on fuel cards,2048212,202311
Rother District Council,30/11/2023,T33HREGEN,Regeneration,20145,Maintenance Services,C1104,Derv,7.6,Allstar Business Solutions,Derv - Fuel Service fee payable on fuel cards,2048212,202311
Rother District Council,30/11/2023,T32DIGCUSSER,Digital & Customer Services,20239,Computer Services,D2631,Computer Equip Maintenance,7994.74,MLL Telecom Ltd,Computer Equip Maintenance - Maintenance of Network Equipment,2047626,202310
Rother District Council,30/11/2023,T3ZCAPITAL,Capital,70706,Capital - Disabled Facilities Grant,N1011,Capital Grants,1111.28,Alfa Electric Ltd,Capital Grants - Capital Advances Disabled Facilities Grant,2047508,202310
Rother District Council,30/11/2023,T3ZCAPITAL,Capital,70725,Capital - Blackfriars,N1004,Architects & Consultant Fees,2700,Technical & Development Services (Southern) Ltd TDS,Architects & Consultants Fees - Project support consultancy,2047463,202310
Rother District Council,30/11/2023,T3ZCAPITAL,Capital,70725,Capital - Blackfriars,N1004,Architects & Consultant Fees,1950,Shear Management Limited,Architects & Consultant Fees Capital-Architect and Conslt Fees,2047219,202310
Rother District Council,30/11/2023,T3ZCAPITAL,Capital,70737,Capital � Barnhorn Green,N1004,Architects & Consultant Fees,3636,Potter Raper Ltd,Architects & Consultant Fees Capital-Architect and Conslt Fees,2047417,202310
Rother District Council,30/11/2023,T3ZCAPITAL,Capital,70781,Capital - Camber Sands Welcome Centre,N1004,Architects & Consultant Fees,2750,Webb Yates Engineers Limited,Architects & Consultant Fees Capital-Architect and Conslt Fees,2047462,202310
Rother District Council,30/11/2023,T3ZCAPITAL,Capital,70759,Capital - Town Hall Renaissance Project,N1004,Architects & Consultant Fees,4975,Austin-Smith:Lord Ltd,Architects & Consultant Fees Capital-Architect and Conslt Fees,2047769,202310
Rother District Council,30/11/2023,T3ZCAPITAL,Capital,70777,Capital - LUF De La Warr Pavilion Project,N1004,Architects & Consultant Fees,27944.45,Haworth Tompkins Ltd,Architects & Consultant Fees Capital-Architect and Conslt Fees,2048545,202311
Rother District Council,30/11/2023,T3ZCAPITAL,Capital,70777,Capital - LUF De La Warr Pavilion Project,N1004,Architects & Consultant Fees,43362.18,Haworth Tompkins Ltd,Architects & Consultant Fees Capital-Architect and Conslt Fees,2048547,202311
Rother District Council,30/11/2023,T33PLANDEV,Planning Development Management,20246,Planning Applications,A1110,Agency Staff,971.5,Carrington West Ltd,Agency Staff,2047465,202310
Rother District Council,30/11/2023,T33HOUSING,Housing,20261,"TA Purchases (prev - 41 Jameson Mews, Bexhill on Sea)",D2513,Hired and Contracted services,180,TLP Building Services Ltd,Hired and Contracted services,2047141,202310
Rother District Council,30/11/2023,T33HOUSING,Housing,20261,"TA Purchases (prev - 41 Jameson Mews, Bexhill on Sea)",D2513,Hired and Contracted services,220,TLP Building Services Ltd,Hired and Contracted services,2047141,202310
Rother District Council,30/11/2023,T33HOUSING,Housing,20261,"TA Purchases (prev - 41 Jameson Mews, Bexhill on Sea)",D2513,Hired and Contracted services,3000,TLP Building Services Ltd,Hired and Contracted services,2047142,202310
Rother District Council,30/11/2023,T33HOUSING,Housing,20261,"TA Purchases (prev - 41 Jameson Mews, Bexhill on Sea)",D2513,Hired and Contracted services,3994.58,TLP Building Services Ltd,Hired and Contracted services,2047142,202310
Rother District Council,30/11/2023,T33HOUSING,Housing,20204,Housing Administration Account,D2513,Hired and Contracted services,-300,Skyguard Ltd t/a Peoplesafe,Hired and Contracted services,2047171,202310
Rother District Council,30/11/2023,T33HOUSING,Housing,20200,Housing Needs - HB (Housing Benefit),D2513,Hired and Contracted services,56.2,Town Taxis,Hired and Contracted services,2047782,202310
Rother District Council,30/11/2023,T32ENVSERV,"Environmental Services, Licensing & Community Safety",32136,EH Pest Control R + W Partnership,C1104,Derv,168.34,Allstar Business Solutions,Derv,2048212,202311
Rother District Council,30/11/2023,T33HREGEN,Regeneration,20145,Maintenance Services,C1104,Derv,73.68,Allstar Business Solutions,Derv,2048212,202311
Rother District Council,30/11/2023,T33HREGEN,Regeneration,20145,Maintenance Services,C1104,Derv,77.08,Allstar Business Solutions,Derv,2048212,202311
Rother District Council,30/11/2023,T33HREGEN,Regeneration,20145,Maintenance Services,C1104,Derv,88.26,Allstar Business Solutions,Derv,2048212,202311
Rother District Council,30/11/2023,T33HREGEN,Regeneration,20145,Maintenance Services,C1104,Derv,70.41,Allstar Business Solutions,Derv,2048212,202311
Rother District Council,30/11/2023,T33NBHDSERV,Neighbourhood Services,20120,Neighbourhood Services,D2513,Hired and Contracted services,6,H M Land Registry,Hired and Contracted services,2048320,202311
Rother District Council,30/11/2023,T3ZZNOREPORT,Resources,90000,Balance sheet all accounts,T1002,Childcare Vouchers,293,Computershare Voucher Services,Childcare Vouchers,2048186,202311
Rother District Council,01/12/2023,T33HOUSING,Housing,20261,"TA Purchases (prev - 41 Jameson Mews, Bexhill on Sea)",B2421,Water,212.52,South East Water Ltd,Water - Water Charges,2047021,202312
Rother District Council,01/12/2023,T32DIGCUSSER,Digital & Customer Services,20242,Communications-Phones,D2621,Telephones,29.52,GCI Network Solutions Ltd / Nasstar,Telephones - KCOM Smartnumber Charges,2048035,202310
Rother District Council,01/12/2023,T32DIGCUSSER,Digital & Customer Services,20242,Communications-Phones,D2621,Telephones,177.08,GCI Network Solutions Ltd / Nasstar,Telephones - KCOM Smartnumber Charges,2048036,202310
Rother District Council,01/12/2023,T33NBHDSERV,Neighbourhood Services,20107,Camber Beach & Foreshore,D2621,Telephones,118,Beaming Ltd,Telephones - Broadband Connection,2048193,202311
Rother District Council,01/12/2023,T33PLANDEV,Planning Development Management,20246,Planning Applications,D2519,Statutory Advertising,806.88,National World Publishing Ltd,Statutory Advertising - Planadv - Rye+Battle Observer,2047470,202310
Rother District Council,01/12/2023,T33HOUSING,Housing,20261,"TA Purchases (prev - 41 Jameson Mews, Bexhill on Sea)",B2422,Sewerage,219.55,South East Water Ltd,Sewerage - Sewerage Charges,2047021,202312
Rother District Council,01/12/2023,T31HUMANRES,Human Resources,20173,Administrative Offices - Town Hall,B1100,Repairs to Premises,140.08,Alfa Electric Ltd,Repairs to Premises - Repairs - Electrical Works,2047484,202310
Rother District Council,01/12/2023,T31HUMANRES,Human Resources,20176,Administrative Offices - Print Room,B1100,Repairs to Premises,2599.4,ADT Fire and  Security Plc,Repairs to Premises - Fire Alarm System Maintenance,2048077,202310
Rother District Council,01/12/2023,T3ZCAPITAL,Capital,70751,Capital - Temporary Accommodation,N1005,Other fees,1259.38,HFS - Hastings Furniture Service Ltd,Other Fees - Capital exp Std VAT,2047473,202310
Rother District Council,01/12/2023,T3ZCAPITAL,Capital,70751,Capital - Temporary Accommodation,N1005,Other fees,535,HFS - Hastings Furniture Service Ltd,Other Fees - Capital exp Std VAT,2047473,202310
Rother District Council,01/12/2023,T32DIGCUSSER,Digital & Customer Services,20239,Computer Services,D2622,Mobile Phones,780.78,Telefonica UK Ltd,Mobile Phones - Purchase of mobile phones,2048034,202311
Rother District Council,01/12/2023,T31CHFFIN,Chief Finance Officer (S151),20209,Corporate management,D2513,Hired and Contracted services,28.29,Merchant Rentals Ltd,Hired and contracted services - Streamline Machine-Rental,2049589,202312
Rother District Council,01/12/2023,T33HOUSING,Housing,20317,Rother Leasing Scheme,D2513,Hired and Contracted services,332.62,Vebra Solutions Ltd,Hired and contracted services - Service fee paid,2047487,202310
Rother District Council,01/12/2023,T32ENVSERV,"Environmental Services, Licensing & Community Safety",20129,Community Safety - CCTV costs only,D2513,Hired and Contracted services,3,H M Land Registry,Hired and contracted services - Env H-Land Registry,2048315,202311
Rother District Council,01/12/2023,T31CHFFIN,Chief Finance Officer (S151),20209,Corporate management,D2513,Hired and Contracted services,665,Her Majestys Court Service,Hired and contracted services - Court Costs/Fees,2048276,202311
Rother District Council,01/12/2023,T32REVBEN,Revenues & Benefits,20216,Cost Of Collection,D2513,Hired and Contracted services,3,H M Land Registry,Hired and contracted services - Council Tax-Land Registry Enquiries,2048315,202311
Rother District Council,01/12/2023,T33NBHDSERV,Neighbourhood Services,20137,Car Parks,D2513,Hired and Contracted services,4198.66,RingGo Ltd,Hired and contracted services - Car Parks-RingGo service charges,2047488,202310
Rother District Council,01/12/2023,T32DIGCUSSER,Digital & Customer Services,20241,Stationery,D2420,General office supplies (Stationery purchased from ext suppliers),5.28,Banner Group Ltd,General office supplies - Stationery (Stationery Services to buy ONLY),2046957,202310
Rother District Council,01/12/2023,T32ENVSERV,"Environmental Services, Licensing & Community Safety",20130,Crime and Disorder Initiatives,D1201,Equipment & Materials,2590,Rapid Vision Systems Ltd,Equipment & Materials - Safer Rother Partnership,2047485,202310
Rother District Council,01/12/2023,T32ENVSERV,"Environmental Services, Licensing & Community Safety",32134,EH Pollution R + W Partnership,D1201,Equipment & Materials,144.4,Gradko International Ltd,Equipment & Materials - EnvH- Air Quality Maintenance Contract,2047542,202310
Rother District Council,01/12/2023,T32ENVSERV,"Environmental Services, Licensing & Community Safety",32134,EH Pollution R + W Partnership,D1201,Equipment & Materials,5.7,Gradko International Ltd,Equipment & Materials - Carriage/Handling Charge,2047542,202310
Rother District Council,01/12/2023,T33NBHDSERV,Neighbourhood Services,20128,Public Conveniences,B2611,Contract cleaning,1123.66,Specialist Hygiene Services Ltd,Contract cleaning - Public Conveniences Cleaning Servic,2047415,202310
Rother District Council,01/12/2023,T33NBHDSERV,Neighbourhood Services,20128,Public Conveniences,B2611,Contract cleaning,993.94,Specialist Hygiene Services Ltd,Contract cleaning - Public Conveniences Cleaning Servic,2047415,202310
Rother District Council,01/12/2023,T33NBHDSERV,Neighbourhood Services,20128,Public Conveniences,B2611,Contract cleaning,262.25,Specialist Hygiene Services Ltd,Contract cleaning - Public Conveniences Cleaning Servic,2047415,202310
Rother District Council,01/12/2023,T33NBHDSERV,Neighbourhood Services,20128,Public Conveniences,B2611,Contract cleaning,936.33,Specialist Hygiene Services Ltd,Contract cleaning - Public Conveniences Cleaning Servic,2047415,202310
Rother District Council,01/12/2023,T33NBHDSERV,Neighbourhood Services,20128,Public Conveniences,B2611,Contract cleaning,674.2,Specialist Hygiene Services Ltd,Contract cleaning - Public Conveniences Cleaning Servic,2047415,202310
Rother District Council,01/12/2023,T33NBHDSERV,Neighbourhood Services,20128,Public Conveniences,B2611,Contract cleaning,1123.66,Specialist Hygiene Services Ltd,Contract cleaning - Public Conveniences Cleaning Servic,2047415,202310
Rother District Council,01/12/2023,T33NBHDSERV,Neighbourhood Services,20128,Public Conveniences,B2611,Contract cleaning,674.2,Specialist Hygiene Services Ltd,Contract cleaning - Public Conveniences Cleaning Servic,2047415,202310
Rother District Council,01/12/2023,T33NBHDSERV,Neighbourhood Services,20128,Public Conveniences,B2611,Contract cleaning,823.9,Specialist Hygiene Services Ltd,Contract cleaning - Public Conveniences Cleaning Servic,2047415,202310
Rother District Council,01/12/2023,T33NBHDSERV,Neighbourhood Services,20128,Public Conveniences,B2611,Contract cleaning,374.55,Specialist Hygiene Services Ltd,Contract cleaning - Public Conveniences Cleaning Servic,2047415,202310
Rother District Council,01/12/2023,T33NBHDSERV,Neighbourhood Services,20128,Public Conveniences,B2611,Contract cleaning,449.47,Specialist Hygiene Services Ltd,Contract cleaning - Public Conveniences Cleaning Servic,2047415,202310
Rother District Council,01/12/2023,T33NBHDSERV,Neighbourhood Services,20128,Public Conveniences,B2611,Contract cleaning,786.51,Specialist Hygiene Services Ltd,Contract cleaning - Public Conveniences Cleaning Servic,2047415,202310
Rother District Council,01/12/2023,T33NBHDSERV,Neighbourhood Services,20128,Public Conveniences,B2611,Contract cleaning,711.61,Specialist Hygiene Services Ltd,Contract cleaning - Public Conveniences Cleaning Servic,2047415,202310
Rother District Council,01/12/2023,T33NBHDSERV,Neighbourhood Services,20128,Public Conveniences,B2611,Contract cleaning,337.04,Specialist Hygiene Services Ltd,Contract cleaning - Public Conveniences Cleaning Servic,2047415,202310
Rother District Council,01/12/2023,T33NBHDSERV,Neighbourhood Services,20128,Public Conveniences,B2611,Contract cleaning,748.99,Specialist Hygiene Services Ltd,Contract cleaning - Public Conveniences Cleaning Servic,2047415,202310
Rother District Council,01/12/2023,T33NBHDSERV,Neighbourhood Services,20128,Public Conveniences,B2611,Contract cleaning,411.96,Specialist Hygiene Services Ltd,Contract cleaning - Public Conveniences Cleaning Servic,2047415,202310
Rother District Council,01/12/2023,T33NBHDSERV,Neighbourhood Services,20128,Public Conveniences,B2611,Contract cleaning,674.2,Specialist Hygiene Services Ltd,Contract cleaning - Public Conveniences Cleaning Servic,2047415,202310
Rother District Council,01/12/2023,T33NBHDSERV,Neighbourhood Services,20128,Public Conveniences,B2611,Contract cleaning,993.24,Specialist Hygiene Services Ltd,Contract cleaning - Public Conveniences Cleaning Servic,2047415,202310
Rother District Council,01/12/2023,T33NBHDSERV,Neighbourhood Services,20128,Public Conveniences,B2611,Contract cleaning,1625.87,Specialist Hygiene Services Ltd,Contract cleaning - Public Conveniences Cleaning Servic,2047415,202310
Rother District Council,01/12/2023,T33NBHDSERV,Neighbourhood Services,20128,Public Conveniences,B2611,Contract cleaning,632.5,Specialist Hygiene Services Ltd,Contract cleaning - Public Conveniences Cleaning Servic,2047415,202310
Rother District Council,01/12/2023,T33NBHDSERV,Neighbourhood Services,20128,Public Conveniences,B2611,Contract cleaning,1241.44,Specialist Hygiene Services Ltd,Contract cleaning - Public Conveniences Cleaning Servic,2047415,202310
Rother District Council,01/12/2023,T33NBHDSERV,Neighbourhood Services,20128,Public Conveniences,B2611,Contract cleaning,1681.67,Specialist Hygiene Services Ltd,Contract cleaning - Public Conveniences Cleaning Servic,2047415,202310
